Workbook

Sheet Cover
A1: District name | D1: Liberty Elementary School District No. 25 | I1: County | J1: Maricopa | O1: CTDS number | Q1: 070425000 | Z1: 030305000 | AA1: File origination date: | AB1: 2025-08-14
Z2: 100337000
Z3: 100344000
Z4: 130302000
Z5: 130307000
Z6: 060345000
Z7: 050309000
Z8: 020801000
Z9: 030801000
A10: Annual Financial Report | O10: =IF(OR(P11<>"",P13<>" ",P24<>" ",P29<>" ",P32<>" "),"ALERT: The following items need to be addressed before the AFR is submitted."," ") ->  | Z10: 050802000
P11: =IF('Page 2'!J46=0,"",IF(OR('Coding Errors'!G17<>"",'Coding Errors'!G29<>"",'Coding Errors'!G42<>"",'Coding Errors'!G56<>"",'Coding Errors'!G64<>""),"Corrections needed in accounting records - See highlighted cells on the Coding Errors tab.","")) ->  | Z11: 070801000
G12: Instructions | Z12: 070802000
P13: =IF('Accounting Data'!AA1>0,"The Rollup Fund column on the Accounting Data tab is not complete. Enter an appropriate fund code from the USFR Chart of Accounts in the Rollup Fund column for any Final Fund cell that is highlighted red."," ") ->  | Z13: 080850000
A14: We, the Governing Board of the District, hereby certify the | Z14: 090835000
A15: Annual Financial Report and School Level Reporting Form per A.R.S. §15-904 | Z15: 090836000
A16: for the Fiscal Year | Z16: 100811000
A17: 2025 | Z17: 110801000
Z18: 110802000
Z19: 130801000
C20: Signature/Date | I20: Signature/Date | Z20: 130802000
Z21: 060203000
C22: Michael Todd | Z22: 140801000
C23: Kris Kenyon
C24: Bryan Cirrincione | P24: =IF(SUM('Page 9'!D43:D44)=0," ",IF(AND(((SUM('Page 9'!D35:D39,'Page 9'!F35:F39)/SUM('Page 9'!D43:D44))>10000),(SUM('Page 9'!D35:D39,'Page 9'!F35:F39)/SUM('Page 9'!D43:D44))<100000)," ","Page 9: Please double check the Teacher salary information and FTE to ensure they are correct.")) -> 
C25: Sarah Schmidt
C26: Kellie Zimmerman
A29: District website link of posted AFR | E29: www.Liberty25.org | P29: =IF('Page 2'!J46=0," ",IF(OR('Page 1'!AB11="yes",'Page 1'!AB33="yes",'Page 1'!AB38="yes",'Page 1'!AB45="yes",'Page 1'!AB55="yes",'Page 1'!AB61="yes",'Page 4'!AB7="yes",'Page 5'!AA6="yes",'Page 6'!Y7="yes",'Page 6'!Y41="yes",'Page 7'!AA5="yes",'Page 8'!AA5="yes",'Page 9'!AA57="yes",'Page 10'!Z41="yes",'Food Service'!AB26="yes",Summary!AB3="yes",'Fund Balance Reserve'!AB3="yes"),Z29," ")) ->  | Z29: Manually entered cells have not been completed. Enter the applicable amount or account code in the cells with orange highlighting on Pages 1, 4, 5, 6, 7, 8, 9, 10, Summary, or Fund Balance Reserve. See the Data Uploading Instructions document for more information on manually completed cells.
P30: CVRDEBTSERV
C31: The annual financial report file(s) for FY 2025 uploaded to the Arizona Department of Education's website on
C32: 2025-10-07 | F32: contain(s) the data for the annual financial report described above. | P32: =IF('Accounting Data'!C100001=""," ","Accounting data entered has too many rows for this file please contact the Accountability Services Division of the Auditor General's Office for a larger file.") -> 
C33: Date
P34: =IF(AA34="X","","Districts must review the FY 2025 AFR Formula Corrections file and make any required formula corrections before finalizing and submitting the AFR. Select the X in the dropdown box in cell AA34 once this step is complete.") ->  | AA34: X
C37: Superintendent signature | I37: Business Manager signature
C39: Dr. Stephanie Mohorne | I39: Dr. Stephanie Mohorne
C40: Superintendent (typed name) | I40: Business Manager (typed name) | P40: Total expenditures by fund
O41: 1. | P41: Maintenance & Operation (from page 2, line 32) | V41: $ | W41: =F001TOTALEXP -> 36958246
C42: Crystal Mosher | I42: 623-474-6600 | O42: 2. | P42: Classroom Site Funds (from page 3, line 13) | V42: $ | W42: ='Page 3'!M21 -> 2844226
C43: District contact employee | I43: Telephone number | O43: 3. | P43: Unrestricted Capital Outlay (from page 4, UCO Fund line 10) | V43: $ | W43: =F610TotActExp -> 1378470
I45: cmosher@liberty25.org
I46: Email

Sheet Page 1
A1: District name | B1: =CoverDistrictName -> Liberty Elementary School District No. 25 | F1: County | G1: =County -> Maricopa | L1: CTDS number | M1: =Cover!Q1 -> 070425000
B3: Instructions | E3: Maintenance and Operation Fund 001 | F3: Unrestricted Capital Outlay Fund 610 | G3: Adjacent Ways Fund 620 | H3: Bond Building Fund 630 | I3: Debt Service Fund 700 (4)
A4: Funds available | J4: All other funds
E5: Actual | F5: Actual | G5: Actual | H5: Actual | I5: Actual | J5: Actual
A6: Beginning fund balance (1) | D6: 1. | E6: ='Accounting Data'!R2 -> 1829061 | F6: ='Accounting Data'!R373 -> 710867 | G6: ='Accounting Data'!R374 -> 2869390 | H6: ='Accounting Data'!R375 -> 17696393 | I6: ='Accounting Data'!R384 -> 692482 | K6: 1.
A7: Revenues
A8: 1000 Local
A9: 1110 Property taxes | D9: 2. | E9: =-(SUMIFS('Accounting Data'!C2:C100000,'Accounting Data'!E2:E100000,"001",'Accounting Data'!J2:J100000,"111?")) -> 7750166 | F9: =-(SUMIFS('Accounting Data'!C2:C100000,'Accounting Data'!E2:E100000,"610",'Accounting Data'!J2:J100000,"111?")) -> 1000004 | G9: =-(SUMIFS('Accounting Data'!C2:C100000,'Accounting Data'!E2:E100000,"620",'Accounting Data'!J2:J100000,"111?")) -> 1800000 | I9: =-(SUMIFS('Accounting Data'!C2:C100000,'Accounting Data'!E2:E100000,"700",'Accounting Data'!J2:J100000,"111?")) -> 4676898 | J9: =-(SUMIFS('Accounting Data'!C2:C100000,'Accounting Data'!J2:J100000,"111?"))-(E9+F9+G9+I9) -> 0 | K9: 2. | L9: -1 | M9: The Maintenance and Operation fund beginning fund balance includes the revolving
A10: 1140 Penalties and interest on taxes | D10: 3. | E10: =-(SUMIFS('Accounting Data'!C2:C100000,'Accounting Data'!E2:E100000,"001",'Accounting Data'!J2:J100000,"114?")) -> 0 | J10: =-(SUMIFS('Accounting Data'!C2:C100000,'Accounting Data'!J2:J100000,"114?"))-(E10) -> 0 | K10: 3. | M10: account cash balance of | O10: 0 | P10: at 7/1/24.
A11: 1280 Revenue in lieu of taxes | D11: 4. | E11: =-(SUMIFS('Accounting Data'!C2:C100000,'Accounting Data'!E2:E100000,"001",'Accounting Data'!J2:J100000,"128?")) -> 32060 | F11: =-(SUMIFS('Accounting Data'!C2:C100000,'Accounting Data'!E2:E100000,"610",'Accounting Data'!J2:J100000,"128?")) -> 0 | G11: =-(SUMIFS('Accounting Data'!C2:C100000,'Accounting Data'!E2:E100000,"620",'Accounting Data'!J2:J100000,"128?")) -> 0 | I11: =-(SUMIFS('Accounting Data'!C2:C100000,'Accounting Data'!E2:E100000,"700",'Accounting Data'!J2:J100000,"128?")) -> 11564 | J11: =-(SUMIFS('Accounting Data'!C2:C100000,'Accounting Data'!J2:J100000,"128?"))-(E11+F11+G11+I11) -> 0 | K11: 4. | AB11: =IF(OR($O$10="",$O$10="$",$M$13="",$M$13="$",$O$16="",$O$16="$",$Q$18="",$Q$18="$"),"yes","") -> 
A12: 1311 Tuition from individuals excluding summer school | D12: 5. | E12: =-(SUMIFS('Accounting Data'!C2:C100000,'Accounting Data'!E2:E100000,"001",'Accounting Data'!J2:J100000,"1311")) -> 0 | F12: =-(SUMIFS('Accounting Data'!C2:C100000,'Accounting Data'!E2:E100000,"610",'Accounting Data'!J2:J100000,"1311")) -> 0 | I12: =-(SUMIFS('Accounting Data'!C2:C100000,'Accounting Data'!E2:E100000,"700",'Accounting Data'!J2:J100000,"1311")) -> 0 | J12: =-(SUMIFS('Accounting Data'!C2:C100000,'Accounting Data'!J2:J100000,"1311"))-(E12+F12+I12) -> 0 | K12: 5. | L12: -2 | M12: The Government Property Lease Excise Tax revenue included on line 26 is
A13: 1312 Tuition from individuals for summer school | D13: 6. | E13: =-(SUMIFS('Accounting Data'!C2:C100000,'Accounting Data'!E2:E100000,"001",'Accounting Data'!J2:J100000,"1312")) -> 0 | F13: =-(SUMIFS('Accounting Data'!C2:C100000,'Accounting Data'!E2:E100000,"610",'Accounting Data'!J2:J100000,"1312")) -> 0 | I13: =-(SUMIFS('Accounting Data'!C2:C100000,'Accounting Data'!E2:E100000,"700",'Accounting Data'!J2:J100000,"1312")) -> 0 | J13: =-(SUMIFS('Accounting Data'!C2:C100000,'Accounting Data'!J2:J100000,"1312"))-(E13+F13+I13) -> 0 | K13: 6. | M13: 0
A14: 1320 Tuition from other Arizona districts | D14: 7. | E14: =-(SUMIFS('Accounting Data'!C2:C100000,'Accounting Data'!E2:E100000,"001",'Accounting Data'!J2:J100000,"132?")) -> 0 | F14: =-(SUMIFS('Accounting Data'!C2:C100000,'Accounting Data'!E2:E100000,"610",'Accounting Data'!J2:J100000,"132?")) -> 0 | I14: =-(SUMIFS('Accounting Data'!C2:C100000,'Accounting Data'!E2:E100000,"700",'Accounting Data'!J2:J100000,"132?")) -> 0 | J14: =-(SUMIFS('Accounting Data'!C2:C100000,'Accounting Data'!J2:J100000,"132?"))-(E14+F14+I14) -> 0 | K14: 7.
A15: 1330 Tuition from out-of-state districts | D15: 8. | E15: =-(SUMIFS('Accounting Data'!C2:C100000,'Accounting Data'!E2:E100000,"001",'Accounting Data'!J2:J100000,"133?")) -> 0 | F15: =-(SUMIFS('Accounting Data'!C2:C100000,'Accounting Data'!E2:E100000,"610",'Accounting Data'!J2:J100000,"133?")) -> 0 | I15: =-(SUMIFS('Accounting Data'!C2:C100000,'Accounting Data'!E2:E100000,"700",'Accounting Data'!J2:J100000,"133?")) -> 0 | J15: =-(SUMIFS('Accounting Data'!C2:C100000,'Accounting Data'!J2:J100000,"133?"))-(E15+F15+I15) -> 0 | K15: 8. | L15: -3 | M15: The Maintenance and Operation fund ending fund balance includes the revolving
A16: 1340 Tuition from other private sources (other than individuals) | D16: 9. | E16: =-(SUMIFS('Accounting Data'!C2:C100000,'Accounting Data'!E2:E100000,"001",'Accounting Data'!J2:J100000,"134?")) -> 0 | F16: =-(SUMIFS('Accounting Data'!C2:C100000,'Accounting Data'!E2:E100000,"610",'Accounting Data'!J2:J100000,"134?")) -> 0 | I16: =-(SUMIFS('Accounting Data'!C2:C100000,'Accounting Data'!E2:E100000,"700",'Accounting Data'!J2:J100000,"134?")) -> 0 | J16: =-(SUMIFS('Accounting Data'!C2:C100000,'Accounting Data'!J2:J100000,"134?"))-(E16+F16+I16) -> 0 | K16: 9. | M16: account cash balance of | O16: 0 | P16: at 6/30/25.
A17: 1350 Tuition from other government sources within Arizona | D17: 10. | E17: =-(SUMIFS('Accounting Data'!C2:C100000,'Accounting Data'!E2:E100000,"001",'Accounting Data'!J2:J100000,"135?")) -> 0 | F17: =-(SUMIFS('Accounting Data'!C2:C100000,'Accounting Data'!E2:E100000,"610",'Accounting Data'!J2:J100000,"135?")) -> 0 | I17: =-(SUMIFS('Accounting Data'!C2:C100000,'Accounting Data'!E2:E100000,"700",'Accounting Data'!J2:J100000,"135?")) -> 0 | J17: =-(SUMIFS('Accounting Data'!C2:C100000,'Accounting Data'!J2:J100000,"135?"))-(E17+F17+I17) -> 0 | K17: 10.
A18: 1360 Tuition from other government sources outside Arizona | D18: 11. | E18: =-(SUMIFS('Accounting Data'!C2:C100000,'Accounting Data'!E2:E100000,"001",'Accounting Data'!J2:J100000,"136?")) -> 0 | F18: =-(SUMIFS('Accounting Data'!C2:C100000,'Accounting Data'!E2:E100000,"610",'Accounting Data'!J2:J100000,"136?")) -> 0 | I18: =-(SUMIFS('Accounting Data'!C2:C100000,'Accounting Data'!E2:E100000,"700",'Accounting Data'!J2:J100000,"136?")) -> 0 | J18: =-(SUMIFS('Accounting Data'!C2:C100000,'Accounting Data'!J2:J100000,"136?"))-(E18+F18+I18) -> 0 | K18: 11. | L18: -4 | M18: Debt Service fund, interest expenditures amount: | Q18: 2067775
A19: 1410 Transportation fees from individuals | D19: 12. | E19: =-(SUMIFS('Accounting Data'!C2:C100000,'Accounting Data'!E2:E100000,"001",'Accounting Data'!J2:J100000,"141?")) -> 0 | F19: =-(SUMIFS('Accounting Data'!C2:C100000,'Accounting Data'!E2:E100000,"610",'Accounting Data'!J2:J100000,"141?")) -> 0 | I19: =-(SUMIFS('Accounting Data'!C2:C100000,'Accounting Data'!E2:E100000,"700",'Accounting Data'!J2:J100000,"141?")) -> 0 | J19: =-(SUMIFS('Accounting Data'!C2:C100000,'Accounting Data'!J2:J100000,"141?"))-(E19+F19+I19) -> 0 | K19: 12.
A20: 1420 Transportation fees from other Arizona districts | D20: 13. | E20: =-(SUMIFS('Accounting Data'!C2:C100000,'Accounting Data'!E2:E100000,"001",'Accounting Data'!J2:J100000,"142?")) -> 0 | F20: =-(SUMIFS('Accounting Data'!C2:C100000,'Accounting Data'!E2:E100000,"610",'Accounting Data'!J2:J100000,"142?")) -> 0 | I20: =-(SUMIFS('Accounting Data'!C2:C100000,'Accounting Data'!E2:E100000,"700",'Accounting Data'!J2:J100000,"142?")) -> 0 | J20: =-(SUMIFS('Accounting Data'!C2:C100000,'Accounting Data'!J2:J100000,"142?"))-(E20+F20+I20) -> 0 | K20: 13.
A21: 1430 Transportation fees from out-of-state districts | D21: 14. | E21: =-(SUMIFS('Accounting Data'!C2:C100000,'Accounting Data'!E2:E100000,"001",'Accounting Data'!J2:J100000,"143?")) -> 0 | F21: =-(SUMIFS('Accounting Data'!C2:C100000,'Accounting Data'!E2:E100000,"610",'Accounting Data'!J2:J100000,"143?")) -> 0 | I21: =-(SUMIFS('Accounting Data'!C2:C100000,'Accounting Data'!E2:E100000,"700",'Accounting Data'!J2:J100000,"143?")) -> 0 | J21: =-(SUMIFS('Accounting Data'!C2:C100000,'Accounting Data'!J2:J100000,"143?"))-(E21+F21+I21) -> 0 | K21: 14.
A22: 1440 Transportation fees from other private sources (other than individuals) | D22: 15. | E22: =-(SUMIFS('Accounting Data'!C2:C100000,'Accounting Data'!E2:E100000,"001",'Accounting Data'!J2:J100000,"144?")) -> 0 | F22: =-(SUMIFS('Accounting Data'!C2:C100000,'Accounting Data'!E2:E100000,"610",'Accounting Data'!J2:J100000,"144?")) -> 0 | I22: =-(SUMIFS('Accounting Data'!C2:C100000,'Accounting Data'!E2:E100000,"700",'Accounting Data'!J2:J100000,"144?")) -> 0 | J22: =-(SUMIFS('Accounting Data'!C2:C100000,'Accounting Data'!J2:J100000,"144?"))-(E22+F22+I22) -> 0 | K22: 15.
A23: 1450 Transportation fees from other government sources within Arizona | D23: 16. | E23: =-(SUMIFS('Accounting Data'!C2:C100000,'Accounting Data'!E2:E100000,"001",'Accounting Data'!J2:J100000,"145?")) -> 0 | F23: =-(SUMIFS('Accounting Data'!C2:C100000,'Accounting Data'!E2:E100000,"610",'Accounting Data'!J2:J100000,"145?")) -> 0 | I23: =-(SUMIFS('Accounting Data'!C2:C100000,'Accounting Data'!E2:E100000,"700",'Accounting Data'!J2:J100000,"145?")) -> 0 | J23: =-(SUMIFS('Accounting Data'!C2:C100000,'Accounting Data'!J2:J100000,"145?"))-(E23+F23+I23) -> 0 | K23: 16.
A24: 1460 Transportation fees from other government sources outside Arizona | D24: 17. | E24: =-(SUMIFS('Accounting Data'!C2:C100000,'Accounting Data'!E2:E100000,"001",'Accounting Data'!J2:J100000,"146?")) -> 0 | F24: =-(SUMIFS('Accounting Data'!C2:C100000,'Accounting Data'!E2:E100000,"610",'Accounting Data'!J2:J100000,"146?")) -> 0 | I24: =-(SUMIFS('Accounting Data'!C2:C100000,'Accounting Data'!E2:E100000,"700",'Accounting Data'!J2:J100000,"146?")) -> 0 | J24: =-(SUMIFS('Accounting Data'!C2:C100000,'Accounting Data'!J2:J100000,"146?"))-(E24+F24+I24) -> 0 | K24: 17.
A25: 1500 Investment income | D25: 18. | E25: =-(SUMIFS('Accounting Data'!C2:C100000,'Accounting Data'!E2:E100000,"001",'Accounting Data'!J2:J100000,"15??")) -> 92077 | F25: =-(SUMIFS('Accounting Data'!C2:C100000,'Accounting Data'!E2:E100000,"610",'Accounting Data'!J2:J100000,"15??")) -> -18555 | G25: =-(SUMIFS('Accounting Data'!C2:C100000,'Accounting Data'!E2:E100000,"620",'Accounting Data'!J2:J100000,"15??")) -> 61120 | H25: =-(SUMIFS('Accounting Data'!C2:C100000,'Accounting Data'!E2:E100000,"630",'Accounting Data'!J2:J100000,"15??")) -> 0 | I25: =-(SUMIFS('Accounting Data'!C2:C100000,'Accounting Data'!E2:E100000,"700",'Accounting Data'!J2:J100000,"15??")) -> 570323 | J25: =-(SUMIFS('Accounting Data'!C2:C100000,'Accounting Data'!J2:J100000,"15??"))-(E25+F25+G25+H25+I25) -> 279925 | K25: 18.
A26: 1750 Revenue from enterprise and student activities | D26: 19. | E26: =-(SUMIFS('Accounting Data'!C2:C100000,'Accounting Data'!E2:E100000,"001",'Accounting Data'!J2:J100000,"175?")) -> 0 | F26: =-(SUMIFS('Accounting Data'!C2:C100000,'Accounting Data'!E2:E100000,"610",'Accounting Data'!J2:J100000,"175?")) -> 0 | I26: =-(SUMIFS('Accounting Data'!C2:C100000,'Accounting Data'!E2:E100000,"700",'Accounting Data'!J2:J100000,"175?")) -> 0 | J26: =-(SUMIFS('Accounting Data'!C2:C100000,'Accounting Data'!J2:J100000,"175?"))-(E26+F26+I26) -> 420724 | K26: 19.
A27: 1790 Extracurricular activities fees tax credit | D27: 20. | E27: =-(SUMIFS('Accounting Data'!C2:C100000,'Accounting Data'!E2:E100000,"001",'Accounting Data'!J2:J100000,"179?")) -> 0 | F27: =-(SUMIFS('Accounting Data'!C2:C100000,'Accounting Data'!E2:E100000,"610",'Accounting Data'!J2:J100000,"179?")) -> 0 | I27: =-(SUMIFS('Accounting Data'!C2:C100000,'Accounting Data'!E2:E100000,"700",'Accounting Data'!J2:J100000,"179?")) -> 0 | J27: =-(SUMIFS('Accounting Data'!C2:C100000,'Accounting Data'!J2:J100000,"179?"))-(E27+F27+I27) -> 83792 | K27: 20.
A28: 1800 Revenue from community services activities | D28: 21. | E28: =-(SUMIFS('Accounting Data'!C2:C100000,'Accounting Data'!E2:E100000,"001",'Accounting Data'!J2:J100000,"18??")) -> 0 | F28: =-(SUMIFS('Accounting Data'!C2:C100000,'Accounting Data'!E2:E100000,"610",'Accounting Data'!J2:J100000,"18??")) -> 0 | I28: =-(SUMIFS('Accounting Data'!C2:C100000,'Accounting Data'!E2:E100000,"700",'Accounting Data'!J2:J100000,"18??")) -> 0 | J28: =-(SUMIFS('Accounting Data'!C2:C100000,'Accounting Data'!J2:J100000,"18??"))-(E28+F28+I28) -> 458599 | K28: 21.
A29: 1910 Rentals | D29: 22. | E29: =-(SUMIFS('Accounting Data'!C2:C100000,'Accounting Data'!E2:E100000,"001",'Accounting Data'!J2:J100000,"191?")) -> 0 | F29: =-(SUMIFS('Accounting Data'!C2:C100000,'Accounting Data'!E2:E100000,"610",'Accounting Data'!J2:J100000,"191?")) -> 0 | I29: =-(SUMIFS('Accounting Data'!C2:C100000,'Accounting Data'!E2:E100000,"700",'Accounting Data'!J2:J100000,"191?")) -> 0 | J29: =-(SUMIFS('Accounting Data'!C2:C100000,'Accounting Data'!J2:J100000,"191?"))-(E29+F29+I29) -> 0 | K29: 22.
A30: 1920 Contributions and donations from private sources | D30: 23. | E30: =-(SUMIFS('Accounting Data'!C2:C100000,'Accounting Data'!E2:E100000,"001",'Accounting Data'!J2:J100000,"192?")) -> 0 | F30: =-(SUMIFS('Accounting Data'!C2:C100000,'Accounting Data'!E2:E100000,"610",'Accounting Data'!J2:J100000,"192?")) -> 0 | I30: =-(SUMIFS('Accounting Data'!C2:C100000,'Accounting Data'!E2:E100000,"700",'Accounting Data'!J2:J100000,"192?")) -> 0 | J30: =-(SUMIFS('Accounting Data'!C2:C100000,'Accounting Data'!J2:J100000,"192?"))-(E30+F30+I30) -> 45901 | K30: 23.
A31: 1950 Miscellaneous revenues from other districts | D31: 24. | E31: =-(SUMIFS('Accounting Data'!C2:C100000,'Accounting Data'!E2:E100000,"001",'Accounting Data'!J2:J100000,"195?")) -> 0 | F31: =-(SUMIFS('Accounting Data'!C2:C100000,'Accounting Data'!E2:E100000,"610",'Accounting Data'!J2:J100000,"195?")) -> 0 | I31: =-(SUMIFS('Accounting Data'!C2:C100000,'Accounting Data'!E2:E100000,"700",'Accounting Data'!J2:J100000,"195?")) -> 0 | J31: =-(SUMIFS('Accounting Data'!C2:C100000,'Accounting Data'!J2:J100000,"195?"))-(E31+F31+I31) -> 0 | K31: 24.
A32: 1960 Miscellaneous revenues from other local governmental units | D32: 25. | E32: =-(SUMIFS('Accounting Data'!C2:C100000,'Accounting Data'!E2:E100000,"001",'Accounting Data'!J2:J100000,"196?")) -> 0 | F32: =-(SUMIFS('Accounting Data'!C2:C100000,'Accounting Data'!E2:E100000,"610",'Accounting Data'!J2:J100000,"196?")) -> 0 | I32: =-(SUMIFS('Accounting Data'!C2:C100000,'Accounting Data'!E2:E100000,"700",'Accounting Data'!J2:J100000,"196?")) -> 0 | J32: =-(SUMIFS('Accounting Data'!C2:C100000,'Accounting Data'!J2:J100000,"196?"))-(E32+F32+I32) -> 0 | K32: 25.
A33: Other (specify) (2) | B33: 1940, 1980, 1981, 1990 | D33: 26. | E33: =-(SUMIFS('Accounting Data'!C2:C100000,'Accounting Data'!E2:E100000,"001",'Accounting Data'!J2:J100000,"1???"))-SUM(E9:E32) -> 135406 | F33: =-(SUMIFS('Accounting Data'!C2:C100000,'Accounting Data'!E2:E100000,"610",'Accounting Data'!J2:J100000,"1???"))-SUM(F9:F32) -> 31200 | G33: =-(SUMIFS('Accounting Data'!C2:C100000,'Accounting Data'!E2:E100000,"620",'Accounting Data'!J2:J100000,"1???"))-(G9+G11+G25) -> 0 | H33: =-(SUMIFS('Accounting Data'!C2:C100000,'Accounting Data'!E2:E100000,"630",'Accounting Data'!J2:J100000,"1???"))-H25 -> 28528 | I33: =-(SUMIFS('Accounting Data'!C2:C100000,'Accounting Data'!E2:E100000,"700",'Accounting Data'!J2:J100000,"1???"))-SUM(I9:I32) -> 0 | J33: =-(SUMIFS('Accounting Data'!C2:C100000,'Accounting Data'!J2:J100000,"1???"))-(E34+F34+G34+H34+I34+SUM(J9:J32)) -> 727283 | K33: 26. | AB33: =IF(OR(AND(E33<>0,B33=""),AND(F33<>0,B33=""),AND(G33<>0,B33=""),AND(H33<>0,B33=""),AND(I33<>0,B33=""),AND(J33<>0,B33="")),"Yes","") -> 
A34: Total Local Revenues (lines 2-26) | D34: 27. | E34: =SUM(E9:E33) -> 8009709 | F34: =F9+SUM(F11:F33) -> 1012649 | G34: =G9+G11+G25+G33 -> 1861120 | H34: =H25+H33 -> 28528 | I34: =I9+SUM(I11:I33) -> 5258785 | J34: =SUM(J9:J33) -> 2016224 | K34: 27.
A35: 2000 County
A36: 2110 County School Fund | D36: 28. | E36: =-(SUMIFS('Accounting Data'!C2:C100000,'Accounting Data'!E2:E100000,"001",'Accounting Data'!J2:J100000,"21??")) -> 254 | F36: =-(SUMIFS('Accounting Data'!C2:C100000,'Accounting Data'!E2:E100000,"610",'Accounting Data'!J2:J100000,"21??")) -> -7689 | K36: 28.
A37: 2210 Special County School Reserve Fund | D37: 29. | E37: =-(SUMIFS('Accounting Data'!C2:C100000,'Accounting Data'!E2:E100000,"001",'Accounting Data'!J2:J100000,"221?")) -> 0 | F37: =-(SUMIFS('Accounting Data'!C2:C100000,'Accounting Data'!E2:E100000,"610",'Accounting Data'!J2:J100000,"221?")) -> 0 | K37: 29.
A38: Other (specify) | D38: 30. | E38: =-(SUMIFS('Accounting Data'!C2:C100000,'Accounting Data'!E2:E100000,"001",'Accounting Data'!J2:J100000,"2???"))-SUM(E36:E37) -> 0 | F38: =-(SUMIFS('Accounting Data'!C2:C100000,'Accounting Data'!E2:E100000,"610",'Accounting Data'!J2:J100000,"2???"))-SUM(F36:F37) -> 0 | K38: 30. | AB38: =IF(OR(AND(E38<>0,B38=""),AND(F38<>0,B38=""),AND(G38<>0,B38=""),AND(H38<>0,B38=""),AND(I38<>0,B38=""),AND(J38<>0,B38="")),"Yes","") -> 
A39: Total County Revenues (lines 28-30) | D39: 31. | E39: =SUM(E36:E38) -> 254 | F39: =SUM(F36:F38) -> -7689 | K39: 31.
A40: 3000 State
A41: 3100 Unrestricted | D41: 32. | E41: =-(SUMIFS('Accounting Data'!C2:C100000,'Accounting Data'!E2:E100000,"001",'Accounting Data'!J2:J100000,"310?")) -> 382615 | F41: =-(SUMIFS('Accounting Data'!C2:C100000,'Accounting Data'!E2:E100000,"610",'Accounting Data'!J2:J100000,"310?")) -> 0 | J41: =-(SUMIFS('Accounting Data'!C2:C100000,'Accounting Data'!J2:J100000,"310?"))-(E41+F41) -> 0 | K41: 32.
A42: 3110 State Equalization Assistance | D42: 33. | E42: =-(SUMIFS('Accounting Data'!C2:C100000,'Accounting Data'!E2:E100000,"001",'Accounting Data'!J2:J100000,"311?")) -> 26467514 | F42: =-(SUMIFS('Accounting Data'!C2:C100000,'Accounting Data'!E2:E100000,"610",'Accounting Data'!J2:J100000,"311?")) -> 0 | J42: =-(SUMIFS('Accounting Data'!C2:C100000,'Accounting Data'!J2:J100000,"311?"))-(E42+F42) -> 0 | K42: 33.
A43: 3120 Additional State Aid | D43: 34. | E43: =-(SUMIFS('Accounting Data'!C2:C100000,'Accounting Data'!E2:E100000,"001",'Accounting Data'!J2:J100000,"312?")) -> 2181640 | F43: =-(SUMIFS('Accounting Data'!C2:C100000,'Accounting Data'!E2:E100000,"610",'Accounting Data'!J2:J100000,"312?")) -> 0 | J43: =-(SUMIFS('Accounting Data'!C2:C100000,'Accounting Data'!J2:J100000,"312?"))-(E43+F43) -> 0 | K43: 34.
A44: 3200 Restricted | D44: 35. | J44: =-(SUMIFS('Accounting Data'!C2:C100000,'Accounting Data'!J2:J100000,"32??"))-(E44+F44) -> 24519256 | K44: 35.
A45: Other (specify) | B45: Rounding | D45: 36. | E45: =-(SUMIFS('Accounting Data'!C2:C100000,'Accounting Data'!E2:E100000,"001",'Accounting Data'!J2:J100000,"3???"))-SUM(E41:E43) -> -3 | F45: =-(SUMIFS('Accounting Data'!C2:C100000,'Accounting Data'!E2:E100000,"610",'Accounting Data'!J2:J100000,"3???"))-SUM(F41:F43) -> 0 | I45: =-(SUMIFS('Accounting Data'!C2:C100000,'Accounting Data'!E2:E100000,"700",'Accounting Data'!J2:J100000,"3???")) -> 0 | J45: =-(SUMIFS('Accounting Data'!C2:C100000,'Accounting Data'!J2:J100000,"3???"))-(E46+F46+I46+SUM(J41:J44)) -> 1 | K45: 36. | AB45: =IF(OR(AND(E45<>0,B45=""),AND(F45<>0,B45=""),AND(G45<>0,B45=""),AND(H45<>0,B45=""),AND(I45<>0,B45=""),AND(J45<>0,B45="")),"Yes","") -> 
A46: Total State Revenues (lines 32-36) | D46: 37. | E46: =SUM(E41:E45) -> 29031766 | F46: =SUM(F41:F45) -> 0 | I46: =I45 -> 0 | J46: =SUM(J41:J45) -> 24519257 | K46: 37.
A47: 4000 Federal
A48: 4100 Unrestricted revenue received directly from the federal government | D48: 38. | E48: =-(SUMIFS('Accounting Data'!C2:C100000,'Accounting Data'!E2:E100000,"001",'Accounting Data'!J2:J100000,"41??")) -> 0 | J48: =-(SUMIFS('Accounting Data'!C2:C100000,'Accounting Data'!J2:J100000,"41??"))-E48 -> 0 | K48: 38.
A49: 4200 Unrestricted revenue received from the federal government through the state | D49: 39. | E49: =-(SUMIFS('Accounting Data'!C2:C100000,'Accounting Data'!E2:E100000,"001",'Accounting Data'!J2:J100000,"42??")) -> 0 | J49: =-(SUMIFS('Accounting Data'!C2:C100000,'Accounting Data'!J2:J100000,"42??"))-E49 -> 198426 | K49: 39.
A50: 4300 Restricted revenue received directly from the federal government | D50: 40. | J50: =-(SUMIFS('Accounting Data'!C2:C100000,'Accounting Data'!J2:J100000,"43??")) -> 0 | K50: 40.
A51: 4500 Restricted revenue received from the federal government through the state | D51: 41. | J51: =-(SUMIFS('Accounting Data'!C2:C100000,'Accounting Data'!J2:J100000,"45??"))-(E51+F51) -> 4823745 | K51: 41.
A52: 4700 Revenue received from the federal government through other intermediate agencies | D52: 42. | E52: =-(SUMIFS('Accounting Data'!C2:C100000,'Accounting Data'!E2:E100000,"001",'Accounting Data'!J2:J100000,"47??")) -> 0 | J52: =-(SUMIFS('Accounting Data'!C2:C100000,'Accounting Data'!J2:J100000,"47??"))-E52 -> 0 | K52: 42.
A53: 4800 Revenue in lieu of taxes | D53: 43. | E53: =-(SUMIFS('Accounting Data'!C2:C100000,'Accounting Data'!E2:E100000,"001",'Accounting Data'!J2:J100000,"48??")) -> 0 | J53: =-(SUMIFS('Accounting Data'!C2:C100000,'Accounting Data'!J2:J100000,"48??"))-E53 -> 0 | K53: 43.
A54: 4900 Revenue for/on behalf of the district | D54: 44. | E54: =-(SUMIFS('Accounting Data'!C2:C100000,'Accounting Data'!E2:E100000,"001",'Accounting Data'!J2:J100000,"49??")) -> 0 | J54: =-(SUMIFS('Accounting Data'!C2:C100000,'Accounting Data'!J2:J100000,"49??"))-E54 -> 20628 | K54: 44.
A55: Other (specify) | D55: 45. | E55: =-(SUMIFS('Accounting Data'!C2:C100000,'Accounting Data'!E2:E100000,"001",'Accounting Data'!J2:J100000,"4???"))-SUM(E48:E54) -> 0 | I55: =-(SUMIFS('Accounting Data'!C2:C100000,'Accounting Data'!E2:E100000,"700",'Accounting Data'!J2:J100000,"4???")) -> 0 | J55: =-(SUMIFS('Accounting Data'!C2:C100000,'Accounting Data'!J2:J100000,"4???"))-(E56+I56+SUM(J48:J54)) -> 0 | K55: 45. | AB55: =IF(OR(AND(E55<>0,B55=""),AND(F55<>0,B55=""),AND(G55<>0,B55=""),AND(H55<>0,B55=""),AND(I55<>0,B55="")*AND(J55<>0,B55="")),"Yes","") -> 
A56: Total Federal Revenues (lines 38-45) | D56: 46. | E56: =SUM(E48:E49)+SUM(E52:E55) -> 0 | I56: =I55 -> 0 | J56: =SUM(J48:J55) -> 5042799 | K56: 46.
A58: Total fund revenue (lines 27, 31, 37, and 46) | D58: 47. | E58: =E34+E39+E46+E56 -> 37041729 | F58: =F34+F39+F46+F56 -> 1004960 | G58: =G34+G39+G46+G56 -> 1861120 | H58: =H34+H39+H46+H56 -> 28528 | I58: =I34+I39+I46+I56 -> 5258785 | K58: 47.
A59: 5100 Issuance of bonds | D59: 48. | H59: =-(SUMIFS('Accounting Data'!C2:C100000,'Accounting Data'!E2:E100000,"630",'Accounting Data'!J2:J100000,"51??")) -> 0 | I59: =-(SUMIFS('Accounting Data'!C2:C100000,'Accounting Data'!E2:E100000,"700",'Accounting Data'!J2:J100000,"51??")) -> 0 | K59: 48.
A60: 5200 Fund transfers-in | D60: 49. | E60: =-(SUMIFS('Accounting Data'!C2:C100000,'Accounting Data'!E2:E100000,"001",'Accounting Data'!J2:J100000,"52??")) -> 0 | F60: =-(SUMIFS('Accounting Data'!C2:C100000,'Accounting Data'!E2:E100000,"610",'Accounting Data'!J2:J100000,"52??")) -> 0 | G60: =-(SUMIFS('Accounting Data'!C2:C100000,'Accounting Data'!E2:E100000,"620",'Accounting Data'!J2:J100000,"52??")) -> 0 | H60: =-(SUMIFS('Accounting Data'!C2:C100000,'Accounting Data'!E2:E100000,"630",'Accounting Data'!J2:J100000,"52??")) -> 0 | I60: =-(SUMIFS('Accounting Data'!C2:C100000,'Accounting Data'!E2:E100000,"700",'Accounting Data'!J2:J100000,"52??")) -> 0 | K60: 49.
A61: Other (specify) | D61: 50. | E61: =-(SUMIFS('Accounting Data'!C2:C100000,'Accounting Data'!E2:E100000,"001",'Accounting Data'!J2:J100000,"5???"))-F001TransIn -> 0 | F61: =-(SUMIFS('Accounting Data'!C2:C100000,'Accounting Data'!E2:E100000,"610",'Accounting Data'!J2:J100000,"5???"))-F610TransIn -> 0 | G61: =-(SUMIFS('Accounting Data'!C2:C100000,'Accounting Data'!E2:E100000,"620",'Accounting Data'!J2:J100000,"5???"))-F620TransfIn -> 0 | H61: =-(SUMIFS('Accounting Data'!C2:C100000,'Accounting Data'!E2:E100000,"630",'Accounting Data'!J2:J100000,"5???"))-SUM(H59:H60) -> 0 | I61: =-(SUMIFS('Accounting Data'!C2:C100000,'Accounting Data'!E2:E100000,"700",'Accounting Data'!J2:J100000,"5???"))-SUM(I59:I60) -> 0 | K61: 50. | AB61: =IF(OR(AND(E61<>0,B61=""),AND(F61<>0,B61=""),AND(G61<>0,B61=""),AND(H61<>0,B61=""),AND(I61<>0,B61=""),AND(J61<>0,B61="")),"Yes","") -> 
A62: Total funds available (lines 1 and 47 through 50) | D62: 51. | E62: =SUM(E6+E58+E60+E61) -> 38870790 | F62: =SUM(F6+F58+F60+F61) -> 1715827 | G62: =SUM(G6+G58+G60+G61) -> 4730510 | H62: =SUM(H6+H58+H59+H60+H61) -> 17724921 | I62: =SUM(I6+I58+I59+I60+I61) -> 5951267 | K62: 51.
A63: Total expenditures | D63: 52. | E63: =F001TOTALEXP -> 36958246 | F63: =F610TotActExp -> 1378470 | G63: =SUMIFS('Accounting Data'!C2:C100000,'Accounting Data'!E2:E100000,"620",'Accounting Data'!J2:J100000,"6???")-SUMIFS('Accounting Data'!C2:C100000,'Accounting Data'!E2:E100000,"620",'Accounting Data'!J2:J100000,"69??") -> 3209060 | H63: =SUMIFS('Accounting Data'!C2:C100000,'Accounting Data'!E2:E100000,"630",'Accounting Data'!J2:J100000,"6???")-SUMIFS('Accounting Data'!C2:C100000,'Accounting Data'!E2:E100000,"630",'Accounting Data'!J2:J100000,"69??") -> 13592323 | I63: =SUMIFS('Accounting Data'!C2:C100000,'Accounting Data'!E2:E100000,"700",'Accounting Data'!J2:J100000,"6???")-SUMIFS('Accounting Data'!C2:C100000,'Accounting Data'!E2:E100000,"700",'Accounting Data'!J2:J100000,"69??") -> 5291625 | K63: 52.
A64: 6900 Other financing uses and other items including transfers-out | D64: 53. | E64: =SUMIFS('Accounting Data'!C2:C100000,'Accounting Data'!E2:E100000,"001",'Accounting Data'!J2:J100000,"69??") -> 0 | F64: =SUMIFS('Accounting Data'!C2:C100000,'Accounting Data'!E2:E100000,"610",'Accounting Data'!J2:J100000,"69??") -> 0 | G64: =SUMIFS('Accounting Data'!C2:C100000,'Accounting Data'!E2:E100000,"620",'Accounting Data'!J2:J100000,"69??") -> 0 | H64: =SUMIFS('Accounting Data'!C2:C100000,'Accounting Data'!E2:E100000,"630",'Accounting Data'!J2:J100000,"69??") -> 0 | I64: =SUMIFS('Accounting Data'!C2:C100000,'Accounting Data'!E2:E100000,"700",'Accounting Data'!J2:J100000,"69??") -> 0 | K64: 53.
A65: Total expenditures and other uses (lines 52 plus 53) | D65: 54. | E65: =E63+E64 -> 36958246 | F65: =SUM(F63:F64) -> 1378470 | G65: =SUM(G63:G64) -> 3209060 | H65: =SUM(H63:H64) -> 13592323 | I65: =SUM(I63:I64) -> 5291625 | K65: 54.
A66: Ending fund balance (line 51 minus line 54) (3) | D66: 55. | E66: =SUM(E62-E65) -> 1912544 | F66: =SUM(F62-F65) -> 337357 | G66: =SUM(G62-G65) -> 1521450 | H66: =SUM(H62-H65) -> 4132598 | I66: =SUM(I62-I65) -> 659642 | K66: 55.

Sheet Page 2
A1: District name | B1: =CoverDistrictName -> Liberty Elementary School District No. 25 | E1: County | F1: =County -> Maricopa | I1: CTDS Number | J1: =Cover!Q1 -> 070425000
A2: Maintenance and Operation Fund (001)—Expenditures
E4: Employee | F4: Purchased services | I4: Totals | L4: % Increase/ decrease in actual
A5: Expenditures | D5: Salaries | E5: benefits | F5: 6300, 6400, | G5: Supplies | H5: Other | I5: Budget | J5: Actual | K5: Prior year actual
D6: 6100 | E6: 6200 | F6: 6500 | G6: 6600 | H6: 6800
A7: 100 Regular education
A8: 1000 Instruction | C8: 1. | D8: =SUMIFS('Accounting Data'!C2:C100000,'Accounting Data'!E2:E100000,"001",'Accounting Data'!H2:H100000,"1??",'Accounting Data'!I2:I100000,"1???",'Accounting Data'!J2:J100000,"61??") -> 11311681 | E8: =SUMIFS('Accounting Data'!C2:C100000,'Accounting Data'!E2:E100000,"001",'Accounting Data'!H2:H100000,"1??",'Accounting Data'!I2:I100000,"1???",'Accounting Data'!J2:J100000,"62??") -> 3560685 | F8: =SUMIFS('Accounting Data'!C2:C100000,'Accounting Data'!E2:E100000,"001",'Accounting Data'!H2:H100000,"1??",'Accounting Data'!I2:I100000,"1???",'Accounting Data'!J2:J100000,"63??")+SUMIFS('Accounting Data'!C2:C100000,'Accounting Data'!E2:E100000,"001",'Accounting Data'!H2:H100000,"1??",'Accounting Data'!I2:I100000,"1???",'Accounting Data'!J2:J100000,"64??")+SUMIFS('Accounting Data'!C2:C100000,'Accounting Data'!E2:E100000,"001",'Accounting Data'!H2:H100000,"1??",'Accounting Data'!I2:I100000,"1???",'Accounting Data'!J2:J100000,"65??") -> 62691 | G8: =SUMIFS('Accounting Data'!C2:C100000,'Accounting Data'!E2:E100000,"001",'Accounting Data'!H2:H100000,"1??",'Accounting Data'!I2:I100000,"1???",'Accounting Data'!J2:J100000,"66??") -> 130302 | H8: =SUMIFS('Accounting Data'!C2:C100000,'Accounting Data'!E2:E100000,"001",'Accounting Data'!H2:H100000,"1??",'Accounting Data'!I2:I100000,"1???",'Accounting Data'!J2:J100000,"68??") -> 4135 | I8: =[1]!F001P100F1000 -> 15209276 | J8: =SUM(D8:H8) -> 15069494 | K8: =[2]!F001P100F1000 -> 14564702 | L8: =IF(J8=K8,0,IF(K8>0,(J8-K8)/K8,"--")) -> 0.035 | M8: 1.
A9: 2000 Support services
A10: 2100 Students | C10: 2. | D10: =SUMIFS('Accounting Data'!C2:C100000,'Accounting Data'!E2:E100000,"001",'Accounting Data'!H2:H100000,"1??",'Accounting Data'!I2:I100000,"21??",'Accounting Data'!J2:J100000,"61??") -> 353035 | E10: =SUMIFS('Accounting Data'!C2:C100000,'Accounting Data'!E2:E100000,"001",'Accounting Data'!H2:H100000,"1??",'Accounting Data'!I2:I100000,"21??",'Accounting Data'!J2:J100000,"62??") -> 134482 | F10: =SUMIFS('Accounting Data'!C2:C100000,'Accounting Data'!E2:E100000,"001",'Accounting Data'!H2:H100000,"1??",'Accounting Data'!I2:I100000,"21??",'Accounting Data'!J2:J100000,"63??")+SUMIFS('Accounting Data'!C2:C100000,'Accounting Data'!E2:E100000,"001",'Accounting Data'!H2:H100000,"1??",'Accounting Data'!I2:I100000,"21??",'Accounting Data'!J2:J100000,"64??")+SUMIFS('Accounting Data'!C2:C100000,'Accounting Data'!E2:E100000,"001",'Accounting Data'!H2:H100000,"1??",'Accounting Data'!I2:I100000,"21??",'Accounting Data'!J2:J100000,"65??") -> 66894 | G10: =SUMIFS('Accounting Data'!C2:C100000,'Accounting Data'!E2:E100000,"001",'Accounting Data'!H2:H100000,"1??",'Accounting Data'!I2:I100000,"21??",'Accounting Data'!J2:J100000,"66??") -> 10803 | H10: =SUMIFS('Accounting Data'!C2:C100000,'Accounting Data'!E2:E100000,"001",'Accounting Data'!H2:H100000,"1??",'Accounting Data'!I2:I100000,"21??",'Accounting Data'!J2:J100000,"68??") -> 129 | I10: =[1]!F001P100F2100 -> 613604 | J10: =SUM(D10:H10) -> 565343 | K10: =[2]!F001P100F2100 -> 535607 | L10: =IF(J10=K10,0,IF(K10>0,(J10-K10)/K10,"--")) -> 0.056 | M10: 2.
A11: 2200 Instructional staff | C11: 3. | D11: =SUMIFS('Accounting Data'!C2:C100000,'Accounting Data'!E2:E100000,"001",'Accounting Data'!H2:H100000,"1??",'Accounting Data'!I2:I100000,"22??",'Accounting Data'!J2:J100000,"61??") -> 997612 | E11: =SUMIFS('Accounting Data'!C2:C100000,'Accounting Data'!E2:E100000,"001",'Accounting Data'!H2:H100000,"1??",'Accounting Data'!I2:I100000,"22??",'Accounting Data'!J2:J100000,"62??") -> 307538 | F11: =SUMIFS('Accounting Data'!C2:C100000,'Accounting Data'!E2:E100000,"001",'Accounting Data'!H2:H100000,"1??",'Accounting Data'!I2:I100000,"22??",'Accounting Data'!J2:J100000,"63??")+SUMIFS('Accounting Data'!C2:C100000,'Accounting Data'!E2:E100000,"001",'Accounting Data'!H2:H100000,"1??",'Accounting Data'!I2:I100000,"22??",'Accounting Data'!J2:J100000,"64??")+SUMIFS('Accounting Data'!C2:C100000,'Accounting Data'!E2:E100000,"001",'Accounting Data'!H2:H100000,"1??",'Accounting Data'!I2:I100000,"22??",'Accounting Data'!J2:J100000,"65??") -> 43136 | G11: =SUMIFS('Accounting Data'!C2:C100000,'Accounting Data'!E2:E100000,"001",'Accounting Data'!H2:H100000,"1??",'Accounting Data'!I2:I100000,"22??",'Accounting Data'!J2:J100000,"66??") -> 9854 | H11: =SUMIFS('Accounting Data'!C2:C100000,'Accounting Data'!E2:E100000,"001",'Accounting Data'!H2:H100000,"1??",'Accounting Data'!I2:I100000,"22??",'Accounting Data'!J2:J100000,"68??") -> 1894 | I11: =[1]!F001P100F2200 -> 1345239 | J11: =SUM(D11:H11) -> 1360034 | K11: =[2]!F001P100F2200 -> 1384529 | L11: =IF(J11=K11,0,IF(K11>0,(J11-K11)/K11,"--")) -> -0.018 | M11: 3.
A12: 2300 General administration | C12: 4. | D12: =SUMIFS('Accounting Data'!C2:C100000,'Accounting Data'!E2:E100000,"001",'Accounting Data'!H2:H100000,"1??",'Accounting Data'!I2:I100000,"23??",'Accounting Data'!J2:J100000,"61??") -> 304736 | E12: =SUMIFS('Accounting Data'!C2:C100000,'Accounting Data'!E2:E100000,"001",'Accounting Data'!H2:H100000,"1??",'Accounting Data'!I2:I100000,"23??",'Accounting Data'!J2:J100000,"62??") -> 80257 | F12: =SUMIFS('Accounting Data'!C2:C100000,'Accounting Data'!E2:E100000,"001",'Accounting Data'!H2:H100000,"1??",'Accounting Data'!I2:I100000,"23??",'Accounting Data'!J2:J100000,"63??")+SUMIFS('Accounting Data'!C2:C100000,'Accounting Data'!E2:E100000,"001",'Accounting Data'!H2:H100000,"1??",'Accounting Data'!I2:I100000,"23??",'Accounting Data'!J2:J100000,"64??")+SUMIFS('Accounting Data'!C2:C100000,'Accounting Data'!E2:E100000,"001",'Accounting Data'!H2:H100000,"1??",'Accounting Data'!I2:I100000,"23??",'Accounting Data'!J2:J100000,"65??") -> 111653 | G12: =SUMIFS('Accounting Data'!C2:C100000,'Accounting Data'!E2:E100000,"001",'Accounting Data'!H2:H100000,"1??",'Accounting Data'!I2:I100000,"23??",'Accounting Data'!J2:J100000,"66??") -> 27024 | H12: =SUMIFS('Accounting Data'!C2:C100000,'Accounting Data'!E2:E100000,"001",'Accounting Data'!H2:H100000,"1??",'Accounting Data'!I2:I100000,"23??",'Accounting Data'!J2:J100000,"68??") -> 47555 | I12: =[1]!F001P100F2300 -> 601976 | J12: =SUM(D12:H12) -> 571225 | K12: =[2]!F001P100F2300 -> 688738 | L12: =IF(J12=K12,0,IF(K12>0,(J12-K12)/K12,"--")) -> -0.171 | M12: 4.
A13: 2400 School administration | C13: 5. | D13: =SUMIFS('Accounting Data'!C2:C100000,'Accounting Data'!E2:E100000,"001",'Accounting Data'!H2:H100000,"1??",'Accounting Data'!I2:I100000,"24??",'Accounting Data'!J2:J100000,"61??") -> 1784825 | E13: =SUMIFS('Accounting Data'!C2:C100000,'Accounting Data'!E2:E100000,"001",'Accounting Data'!H2:H100000,"1??",'Accounting Data'!I2:I100000,"24??",'Accounting Data'!J2:J100000,"62??") -> 518224 | F13: =SUMIFS('Accounting Data'!C2:C100000,'Accounting Data'!E2:E100000,"001",'Accounting Data'!H2:H100000,"1??",'Accounting Data'!I2:I100000,"24??",'Accounting Data'!J2:J100000,"63??")+SUMIFS('Accounting Data'!C2:C100000,'Accounting Data'!E2:E100000,"001",'Accounting Data'!H2:H100000,"1??",'Accounting Data'!I2:I100000,"24??",'Accounting Data'!J2:J100000,"64??")+SUMIFS('Accounting Data'!C2:C100000,'Accounting Data'!E2:E100000,"001",'Accounting Data'!H2:H100000,"1??",'Accounting Data'!I2:I100000,"24??",'Accounting Data'!J2:J100000,"65??") -> 42072 | G13: =SUMIFS('Accounting Data'!C2:C100000,'Accounting Data'!E2:E100000,"001",'Accounting Data'!H2:H100000,"1??",'Accounting Data'!I2:I100000,"24??",'Accounting Data'!J2:J100000,"66??") -> 10782 | H13: =SUMIFS('Accounting Data'!C2:C100000,'Accounting Data'!E2:E100000,"001",'Accounting Data'!H2:H100000,"1??",'Accounting Data'!I2:I100000,"24??",'Accounting Data'!J2:J100000,"68??") -> 26318 | I13: =[1]!F001P100F2400 -> 2493253 | J13: 2382221 | K13: =[2]!F001P100F2400 -> 2321095 | L13: 0.026 | M13: 5.
A14: 2500 Central services | C14: 6. | D14: =SUMIFS('Accounting Data'!C2:C100000,'Accounting Data'!E2:E100000,"001",'Accounting Data'!H2:H100000,"1??",'Accounting Data'!I2:I100000,"25??",'Accounting Data'!J2:J100000,"61??") -> 937696 | E14: =SUMIFS('Accounting Data'!C2:C100000,'Accounting Data'!E2:E100000,"001",'Accounting Data'!H2:H100000,"1??",'Accounting Data'!I2:I100000,"25??",'Accounting Data'!J2:J100000,"62??") -> 326381 | F14: =SUMIFS('Accounting Data'!C2:C100000,'Accounting Data'!E2:E100000,"001",'Accounting Data'!H2:H100000,"1??",'Accounting Data'!I2:I100000,"25??",'Accounting Data'!J2:J100000,"63??")+SUMIFS('Accounting Data'!C2:C100000,'Accounting Data'!E2:E100000,"001",'Accounting Data'!H2:H100000,"1??",'Accounting Data'!I2:I100000,"25??",'Accounting Data'!J2:J100000,"64??")+SUMIFS('Accounting Data'!C2:C100000,'Accounting Data'!E2:E100000,"001",'Accounting Data'!H2:H100000,"1??",'Accounting Data'!I2:I100000,"25??",'Accounting Data'!J2:J100000,"65??") -> 244326 | G14: =SUMIFS('Accounting Data'!C2:C100000,'Accounting Data'!E2:E100000,"001",'Accounting Data'!H2:H100000,"1??",'Accounting Data'!I2:I100000,"25??",'Accounting Data'!J2:J100000,"66??") -> 71798 | H14: =SUMIFS('Accounting Data'!C2:C100000,'Accounting Data'!E2:E100000,"001",'Accounting Data'!H2:H100000,"1??",'Accounting Data'!I2:I100000,"25??",'Accounting Data'!J2:J100000,"68??") -> 2004 | I14: =[1]!F001P100F2500 -> 1647341 | J14: 1582205 | K14: =[2]!F001P100F2500 -> 1749056 | L14: -0.095 | M14: 6.
A15: 2600 Operation & maintenance of plant | C15: 7. | D15: =SUMIFS('Accounting Data'!C2:C100000,'Accounting Data'!E2:E100000,"001",'Accounting Data'!H2:H100000,"1??",'Accounting Data'!I2:I100000,"26??",'Accounting Data'!J2:J100000,"61??") -> 769563 | E15: =SUMIFS('Accounting Data'!C2:C100000,'Accounting Data'!E2:E100000,"001",'Accounting Data'!H2:H100000,"1??",'Accounting Data'!I2:I100000,"26??",'Accounting Data'!J2:J100000,"62??") -> 273092 | F15: =SUMIFS('Accounting Data'!C2:C100000,'Accounting Data'!E2:E100000,"001",'Accounting Data'!H2:H100000,"1??",'Accounting Data'!I2:I100000,"26??",'Accounting Data'!J2:J100000,"63??")+SUMIFS('Accounting Data'!C2:C100000,'Accounting Data'!E2:E100000,"001",'Accounting Data'!H2:H100000,"1??",'Accounting Data'!I2:I100000,"26??",'Accounting Data'!J2:J100000,"64??")+SUMIFS('Accounting Data'!C2:C100000,'Accounting Data'!E2:E100000,"001",'Accounting Data'!H2:H100000,"1??",'Accounting Data'!I2:I100000,"26??",'Accounting Data'!J2:J100000,"65??") -> 2037319 | G15: =SUMIFS('Accounting Data'!C2:C100000,'Accounting Data'!E2:E100000,"001",'Accounting Data'!H2:H100000,"1??",'Accounting Data'!I2:I100000,"26??",'Accounting Data'!J2:J100000,"66??") -> 1065228 | H15: =SUMIFS('Accounting Data'!C2:C100000,'Accounting Data'!E2:E100000,"001",'Accounting Data'!H2:H100000,"1??",'Accounting Data'!I2:I100000,"26??",'Accounting Data'!J2:J100000,"68??") -> 1350 | I15: =[1]!F001P100F2600 -> 4651147 | J15: 4146552 | K15: =[2]!F001P100F2600 -> 4499111 | L15: -0.078 | M15: 7.
A16: 2900 Other | C16: 8. | D16: =SUMIFS('Accounting Data'!C2:C100000,'Accounting Data'!E2:E100000,"001",'Accounting Data'!H2:H100000,"1??",'Accounting Data'!I2:I100000,"29??",'Accounting Data'!J2:J100000,"61??") -> 0 | E16: =SUMIFS('Accounting Data'!C2:C100000,'Accounting Data'!E2:E100000,"001",'Accounting Data'!H2:H100000,"1??",'Accounting Data'!I2:I100000,"29??",'Accounting Data'!J2:J100000,"62??") -> 0 | F16: =SUMIFS('Accounting Data'!C2:C100000,'Accounting Data'!E2:E100000,"001",'Accounting Data'!H2:H100000,"1??",'Accounting Data'!I2:I100000,"29??",'Accounting Data'!J2:J100000,"63??")+SUMIFS('Accounting Data'!C2:C100000,'Accounting Data'!E2:E100000,"001",'Accounting Data'!H2:H100000,"1??",'Accounting Data'!I2:I100000,"29??",'Accounting Data'!J2:J100000,"64??")+SUMIFS('Accounting Data'!C2:C100000,'Accounting Data'!E2:E100000,"001",'Accounting Data'!H2:H100000,"1??",'Accounting Data'!I2:I100000,"29??",'Accounting Data'!J2:J100000,"65??") -> 0 | G16: =SUMIFS('Accounting Data'!C2:C100000,'Accounting Data'!E2:E100000,"001",'Accounting Data'!H2:H100000,"1??",'Accounting Data'!I2:I100000,"29??",'Accounting Data'!J2:J100000,"66??") -> 0 | H16: =SUMIFS('Accounting Data'!C2:C100000,'Accounting Data'!E2:E100000,"001",'Accounting Data'!H2:H100000,"1??",'Accounting Data'!I2:I100000,"29??",'Accounting Data'!J2:J100000,"68??") -> 0 | I16: =[1]!F001P100F2900 -> 0 | J16: 0 | K16: =[2]!F001P100F2900 -> 0 | L16: 0 | M16: 8.
A17: 3000 Operation of noninstructional services | C17: 9. | D17: =SUMIFS('Accounting Data'!C2:C100000,'Accounting Data'!E2:E100000,"001",'Accounting Data'!H2:H100000,"1??",'Accounting Data'!I2:I100000,"3???",'Accounting Data'!J2:J100000,"61??") -> 0 | E17: =SUMIFS('Accounting Data'!C2:C100000,'Accounting Data'!E2:E100000,"001",'Accounting Data'!H2:H100000,"1??",'Accounting Data'!I2:I100000,"3???",'Accounting Data'!J2:J100000,"62??") -> 0 | F17: =SUMIFS('Accounting Data'!C2:C100000,'Accounting Data'!E2:E100000,"001",'Accounting Data'!H2:H100000,"1??",'Accounting Data'!I2:I100000,"3???",'Accounting Data'!J2:J100000,"63??")+SUMIFS('Accounting Data'!C2:C100000,'Accounting Data'!E2:E100000,"001",'Accounting Data'!H2:H100000,"1??",'Accounting Data'!I2:I100000,"3???",'Accounting Data'!J2:J100000,"64??")+SUMIFS('Accounting Data'!C2:C100000,'Accounting Data'!E2:E100000,"001",'Accounting Data'!H2:H100000,"1??",'Accounting Data'!I2:I100000,"3???",'Accounting Data'!J2:J100000,"65??") -> 0 | G17: =SUMIFS('Accounting Data'!C2:C100000,'Accounting Data'!E2:E100000,"001",'Accounting Data'!H2:H100000,"1??",'Accounting Data'!I2:I100000,"3???",'Accounting Data'!J2:J100000,"66??") -> 0 | H17: =SUMIFS('Accounting Data'!C2:C100000,'Accounting Data'!E2:E100000,"001",'Accounting Data'!H2:H100000,"1??",'Accounting Data'!I2:I100000,"3???",'Accounting Data'!J2:J100000,"68??") -> 0 | I17: =[1]!F001P100F3000 -> 60083 | J17: 0 | K17: =[2]!F001P100F3000 -> 107938 | L17: -1 | M17: 9.
A18: 610 School-sponsored cocurricular activities | C18: 10. | D18: =SUMIFS('Accounting Data'!C2:C100000,'Accounting Data'!E2:E100000,"001",'Accounting Data'!H2:H100000,"61?",'Accounting Data'!J2:J100000,"61??") -> 21631 | E18: =SUMIFS('Accounting Data'!C2:C100000,'Accounting Data'!E2:E100000,"001",'Accounting Data'!H2:H100000,"61?",'Accounting Data'!J2:J100000,"62??") -> 4251 | F18: =SUMIFS('Accounting Data'!C2:C100000,'Accounting Data'!E2:E100000,"001",'Accounting Data'!H2:H100000,"61?",'Accounting Data'!J2:J100000,"63??")+SUMIFS('Accounting Data'!C2:C100000,'Accounting Data'!E2:E100000,"001",'Accounting Data'!H2:H100000,"61?",'Accounting Data'!J2:J100000,"64??")+SUMIFS('Accounting Data'!C2:C100000,'Accounting Data'!E2:E100000,"001",'Accounting Data'!H2:H100000,"61?",'Accounting Data'!J2:J100000,"65??") -> 0 | G18: =SUMIFS('Accounting Data'!C2:C100000,'Accounting Data'!E2:E100000,"001",'Accounting Data'!H2:H100000,"61?",'Accounting Data'!J2:J100000,"66??") -> 0 | H18: =SUMIFS('Accounting Data'!C2:C100000,'Accounting Data'!E2:E100000,"001",'Accounting Data'!H2:H100000,"61?",'Accounting Data'!J2:J100000,"68??") -> 0 | I18: =[1]!F001P610 -> 34718 | J18: 25882 | K18: =[2]!F001P610 -> 29074 | L18: -0.11 | M18: 10.
A19: 620 School-sponsored athletics | C19: 11. | D19: =SUMIFS('Accounting Data'!C2:C100000,'Accounting Data'!E2:E100000,"001",'Accounting Data'!H2:H100000,"62?",'Accounting Data'!J2:J100000,"61??") -> 65358 | E19: =SUMIFS('Accounting Data'!C2:C100000,'Accounting Data'!E2:E100000,"001",'Accounting Data'!H2:H100000,"62?",'Accounting Data'!J2:J100000,"62??") -> 11937 | F19: =SUMIFS('Accounting Data'!C2:C100000,'Accounting Data'!E2:E100000,"001",'Accounting Data'!H2:H100000,"62?",'Accounting Data'!J2:J100000,"63??")+SUMIFS('Accounting Data'!C2:C100000,'Accounting Data'!E2:E100000,"001",'Accounting Data'!H2:H100000,"62?",'Accounting Data'!J2:J100000,"64??")+SUMIFS('Accounting Data'!C2:C100000,'Accounting Data'!E2:E100000,"001",'Accounting Data'!H2:H100000,"62?",'Accounting Data'!J2:J100000,"65??") -> 0 | G19: =SUMIFS('Accounting Data'!C2:C100000,'Accounting Data'!E2:E100000,"001",'Accounting Data'!H2:H100000,"62?",'Accounting Data'!J2:J100000,"66??") -> 1444 | H19: =SUMIFS('Accounting Data'!C2:C100000,'Accounting Data'!E2:E100000,"001",'Accounting Data'!H2:H100000,"62?",'Accounting Data'!J2:J100000,"68??") -> 0 | I19: =[1]!F001P620 -> 82829 | J19: 78739 | K19: =[2]!F001P620 -> 125249 | L19: -0.371 | M19: 11.
A20: 630 Other instructional programs | C20: 12. | D20: =SUMIFS('Accounting Data'!C2:C100000,'Accounting Data'!E2:E100000,"001",'Accounting Data'!H2:H100000,"63?",'Accounting Data'!J2:J100000,"61??") -> 0 | E20: =SUMIFS('Accounting Data'!C2:C100000,'Accounting Data'!E2:E100000,"001",'Accounting Data'!H2:H100000,"63?",'Accounting Data'!J2:J100000,"62??") -> 0 | F20: =SUMIFS('Accounting Data'!C2:C100000,'Accounting Data'!E2:E100000,"001",'Accounting Data'!H2:H100000,"63?",'Accounting Data'!J2:J100000,"63??")+SUMIFS('Accounting Data'!C2:C100000,'Accounting Data'!E2:E100000,"001",'Accounting Data'!H2:H100000,"63?",'Accounting Data'!J2:J100000,"64??")+SUMIFS('Accounting Data'!C2:C100000,'Accounting Data'!E2:E100000,"001",'Accounting Data'!H2:H100000,"63?",'Accounting Data'!J2:J100000,"65??") -> 0 | G20: =SUMIFS('Accounting Data'!C2:C100000,'Accounting Data'!E2:E100000,"001",'Accounting Data'!H2:H100000,"63?",'Accounting Data'!J2:J100000,"66??") -> 0 | H20: =SUMIFS('Accounting Data'!C2:C100000,'Accounting Data'!E2:E100000,"001",'Accounting Data'!H2:H100000,"63?",'Accounting Data'!J2:J100000,"68??") -> 0 | I20: =[1]!F001P630 -> 0 | J20: 0 | K20: =[2]!F001P630 -> 0 | L20: 0 | M20: 12.
A21: 700, 800, 900 Other programs | C21: 13. | D21: =SUMIFS('Accounting Data'!C2:C100000,'Accounting Data'!E2:E100000,"001",'Accounting Data'!H2:H100000,"7??",'Accounting Data'!J2:J100000,"61??")+SUMIFS('Accounting Data'!C2:C100000,'Accounting Data'!E2:E100000,"001",'Accounting Data'!H2:H100000,"8??",'Accounting Data'!J2:J100000,"61??")+SUMIFS('Accounting Data'!C2:C100000,'Accounting Data'!E2:E100000,"001",'Accounting Data'!H2:H100000,"9??",'Accounting Data'!J2:J100000,"61??") -> 0 | E21: =SUMIFS('Accounting Data'!C2:C100000,'Accounting Data'!E2:E100000,"001",'Accounting Data'!H2:H100000,"7??",'Accounting Data'!J2:J100000,"62??")+SUMIFS('Accounting Data'!C2:C100000,'Accounting Data'!E2:E100000,"001",'Accounting Data'!H2:H100000,"8??",'Accounting Data'!J2:J100000,"62??")+SUMIFS('Accounting Data'!C2:C100000,'Accounting Data'!E2:E100000,"001",'Accounting Data'!H2:H100000,"9??",'Accounting Data'!J2:J100000,"62??") -> 0 | F21: =SUMIFS('Accounting Data'!C2:C100000,'Accounting Data'!E2:E100000,"001",'Accounting Data'!H2:H100000,"7??",'Accounting Data'!J2:J100000,"63??")+SUMIFS('Accounting Data'!C2:C100000,'Accounting Data'!E2:E100000,"001",'Accounting Data'!H2:H100000,"7??",'Accounting Data'!J2:J100000,"64??")+SUMIFS('Accounting Data'!C2:C100000,'Accounting Data'!E2:E100000,"001",'Accounting Data'!H2:H100000,"7??",'Accounting Data'!J2:J100000,"65??")+SUMIFS('Accounting Data'!C2:C100000,'Accounting Data'!E2:E100000,"001",'Accounting Data'!H2:H100000,"8??",'Accounting Data'!J2:J100000,"63??")+SUMIFS('Accounting Data'!C2:C100000,'Accounting Data'!E2:E100000,"001",'Accounting Data'!H2:H100000,"8??",'Accounting Data'!J2:J100000,"64??")+SUMIFS('Accounting Data'!C2:C100000,'Accounting Data'!E2:E100000,"001",'Accounting Data'!H2:H100000,"8??",'Accounting Data'!J2:J100000,"65??")+SUMIFS('Accounting Data'!C2:C100000,'Accounting Data'!E2:E100000,"001",'Accounting Data'!H2:H100000,"9??",'Accounting Data'!J2:J100000,"63??")+SUMIFS('Accounting Data'!C2:C100000,'Accounting Data'!E2:E100000,"001",'Accounting Data'!H2:H100000,"9??",'Accounting Data'!J2:J100000,"64??")+SUMIFS('Accounting Data'!C2:C100000,'Accounting Data'!E2:E100000,"001",'Accounting Data'!H2:H100000,"9??",'Accounting Data'!J2:J100000,"65??") -> 0 | G21: =SUMIFS('Accounting Data'!C2:C100000,'Accounting Data'!E2:E100000,"001",'Accounting Data'!H2:H100000,"7??",'Accounting Data'!J2:J100000,"66??")+SUMIFS('Accounting Data'!C2:C100000,'Accounting Data'!E2:E100000,"001",'Accounting Data'!H2:H100000,"8??",'Accounting Data'!J2:J100000,"66??")+SUMIFS('Accounting Data'!C2:C100000,'Accounting Data'!E2:E100000,"001",'Accounting Data'!H2:H100000,"9??",'Accounting Data'!J2:J100000,"66??") -> 0 | H21: =SUMIFS('Accounting Data'!C2:C100000,'Accounting Data'!E2:E100000,"001",'Accounting Data'!H2:H100000,"7??",'Accounting Data'!J2:J100000,"68??")+SUMIFS('Accounting Data'!C2:C100000,'Accounting Data'!E2:E100000,"001",'Accounting Data'!H2:H100000,"8??",'Accounting Data'!J2:J100000,"68??")+SUMIFS('Accounting Data'!C2:C100000,'Accounting Data'!E2:E100000,"001",'Accounting Data'!H2:H100000,"9??",'Accounting Data'!J2:J100000,"68??") -> 0 | I21: =[1]!F001P700800900 -> 0 | J21: 0 | K21: =[2]!F001P700800900 -> 0 | L21: 0 | M21: 13.
A22: Subtotal (lines 1-13) | C22: 14. | D22: =D8+D10+SUM(D11:D17)+SUM(D18:D21) -> 16546137 | E22: =E8+E10+SUM(E11:E17)+SUM(E18:E21) -> 5216847 | F22: =F8+F10+SUM(F11:F17)+SUM(F18:F21) -> 2608091 | G22: =G8+G10+SUM(G11:G17)+SUM(G18:G21) -> 1327235 | H22: =H8+H10+SUM(H11:H17)+SUM(H18:H21) -> 83385 | I22: =I8+I10+SUM(I11:I21) -> 26739466 | J22: =J8+J10+SUM(J11:J21) -> 25781695 | K22: =K8+K10+SUM(K11:K21) -> 26005099 | L22: -0.009 | M22: 14.
A23: 200 and 300 Special education
A24: 1000 Instruction | C24: 15. | D24: =SUMIFS('Accounting Data'!C2:C100000,'Accounting Data'!E2:E100000,"001",'Accounting Data'!H2:H100000,"2??",'Accounting Data'!I2:I100000,"1???",'Accounting Data'!J2:J100000,"61??")+SUMIFS('Accounting Data'!C2:C100000,'Accounting Data'!E2:E100000,"001",'Accounting Data'!H2:H100000,"3??",'Accounting Data'!I2:I100000,"1???",'Accounting Data'!J2:J100000,"61??") -> 2507605 | E24: =SUMIFS('Accounting Data'!C2:C100000,'Accounting Data'!E2:E100000,"001",'Accounting Data'!H2:H100000,"2??",'Accounting Data'!I2:I100000,"1???",'Accounting Data'!J2:J100000,"62??")+SUMIFS('Accounting Data'!C2:C100000,'Accounting Data'!E2:E100000,"001",'Accounting Data'!H2:H100000,"3??",'Accounting Data'!I2:I100000,"1???",'Accounting Data'!J2:J100000,"62??") -> 874208 | F24: =SUMIFS('Accounting Data'!C2:C100000,'Accounting Data'!E2:E100000,"001",'Accounting Data'!H2:H100000,"2??",'Accounting Data'!I2:I100000,"1???",'Accounting Data'!J2:J100000,"63??")+SUMIFS('Accounting Data'!C2:C100000,'Accounting Data'!E2:E100000,"001",'Accounting Data'!H2:H100000,"2??",'Accounting Data'!I2:I100000,"1???",'Accounting Data'!J2:J100000,"64??")+SUMIFS('Accounting Data'!C2:C100000,'Accounting Data'!E2:E100000,"001",'Accounting Data'!H2:H100000,"2??",'Accounting Data'!I2:I100000,"1???",'Accounting Data'!J2:J100000,"65??")+SUMIFS('Accounting Data'!C2:C100000,'Accounting Data'!E2:E100000,"001",'Accounting Data'!H2:H100000,"3??",'Accounting Data'!I2:I100000,"1???",'Accounting Data'!J2:J100000,"63??")+SUMIFS('Accounting Data'!C2:C100000,'Accounting Data'!E2:E100000,"001",'Accounting Data'!H2:H100000,"3??",'Accounting Data'!I2:I100000,"1???",'Accounting Data'!J2:J100000,"64??")+SUMIFS('Accounting Data'!C2:C100000,'Accounting Data'!E2:E100000,"001",'Accounting Data'!H2:H100000,"3??",'Accounting Data'!I2:I100000,"1???",'Accounting Data'!J2:J100000,"65??") -> 1728465 | G24: =SUMIFS('Accounting Data'!C2:C100000,'Accounting Data'!E2:E100000,"001",'Accounting Data'!H2:H100000,"2??",'Accounting Data'!I2:I100000,"1???",'Accounting Data'!J2:J100000,"66??")+SUMIFS('Accounting Data'!C2:C100000,'Accounting Data'!E2:E100000,"001",'Accounting Data'!H2:H100000,"3??",'Accounting Data'!I2:I100000,"1???",'Accounting Data'!J2:J100000,"66??") -> 7353 | H24: =SUMIFS('Accounting Data'!C2:C100000,'Accounting Data'!E2:E100000,"001",'Accounting Data'!H2:H100000,"2??",'Accounting Data'!I2:I100000,"1???",'Accounting Data'!J2:J100000,"68??")+SUMIFS('Accounting Data'!C2:C100000,'Accounting Data'!E2:E100000,"001",'Accounting Data'!H2:H100000,"3??",'Accounting Data'!I2:I100000,"1???",'Accounting Data'!J2:J100000,"68??") -> 0 | I24: =[1]!F001P200F1000 -> 4891815 | J24: =SUM(D24:H24) -> 5117631 | K24: =[2]!F001P200F1000 -> 4432683 | L24: =IF(J24=K24,0,IF(K24>0,(J24-K24)/K24,"--")) -> 0.155 | M24: 15.
A25: 2000 Support services
A26: 2100 Students | C26: 16. | D26: =SUMIFS('Accounting Data'!C2:C100000,'Accounting Data'!E2:E100000,"001",'Accounting Data'!H2:H100000,"2??",'Accounting Data'!I2:I100000,"21??",'Accounting Data'!J2:J100000,"61??")+SUMIFS('Accounting Data'!C2:C100000,'Accounting Data'!E2:E100000,"001",'Accounting Data'!H2:H100000,"3??",'Accounting Data'!I2:I100000,"21??",'Accounting Data'!J2:J100000,"61??") -> 1778319 | E26: =SUMIFS('Accounting Data'!C2:C100000,'Accounting Data'!E2:E100000,"001",'Accounting Data'!H2:H100000,"2??",'Accounting Data'!I2:I100000,"21??",'Accounting Data'!J2:J100000,"62??")+SUMIFS('Accounting Data'!C2:C100000,'Accounting Data'!E2:E100000,"001",'Accounting Data'!H2:H100000,"3??",'Accounting Data'!I2:I100000,"21??",'Accounting Data'!J2:J100000,"62??") -> 547023 | F26: =SUMIFS('Accounting Data'!C2:C100000,'Accounting Data'!E2:E100000,"001",'Accounting Data'!H2:H100000,"2??",'Accounting Data'!I2:I100000,"21??",'Accounting Data'!J2:J100000,"63??")+SUMIFS('Accounting Data'!C2:C100000,'Accounting Data'!E2:E100000,"001",'Accounting Data'!H2:H100000,"2??",'Accounting Data'!I2:I100000,"21??",'Accounting Data'!J2:J100000,"64??")+SUMIFS('Accounting Data'!C2:C100000,'Accounting Data'!E2:E100000,"001",'Accounting Data'!H2:H100000,"2??",'Accounting Data'!I2:I100000,"21??",'Accounting Data'!J2:J100000,"65??")+SUMIFS('Accounting Data'!C2:C100000,'Accounting Data'!E2:E100000,"001",'Accounting Data'!H2:H100000,"3??",'Accounting Data'!I2:I100000,"21??",'Accounting Data'!J2:J100000,"63??")+SUMIFS('Accounting Data'!C2:C100000,'Accounting Data'!E2:E100000,"001",'Accounting Data'!H2:H100000,"3??",'Accounting Data'!I2:I100000,"21??",'Accounting Data'!J2:J100000,"64??")+SUMIFS('Accounting Data'!C2:C100000,'Accounting Data'!E2:E100000,"001",'Accounting Data'!H2:H100000,"3??",'Accounting Data'!I2:I100000,"21??",'Accounting Data'!J2:J100000,"65??") -> 378882 | G26: =SUMIFS('Accounting Data'!C2:C100000,'Accounting Data'!E2:E100000,"001",'Accounting Data'!H2:H100000,"2??",'Accounting Data'!I2:I100000,"21??",'Accounting Data'!J2:J100000,"66??")+SUMIFS('Accounting Data'!C2:C100000,'Accounting Data'!E2:E100000,"001",'Accounting Data'!H2:H100000,"3??",'Accounting Data'!I2:I100000,"21??",'Accounting Data'!J2:J100000,"66??") -> 21164 | H26: =SUMIFS('Accounting Data'!C2:C100000,'Accounting Data'!E2:E100000,"001",'Accounting Data'!H2:H100000,"2??",'Accounting Data'!I2:I100000,"21??",'Accounting Data'!J2:J100000,"68??")+SUMIFS('Accounting Data'!C2:C100000,'Accounting Data'!E2:E100000,"001",'Accounting Data'!H2:H100000,"3??",'Accounting Data'!I2:I100000,"21??",'Accounting Data'!J2:J100000,"68??") -> 0 | I26: =[1]!F001P200F2100 -> 2731899 | J26: =SUM(D26:H26) -> 2725388 | K26: =[2]!F001P200F2100 -> 2882915 | L26: =IF(J26=K26,0,IF(K26>0,(J26-K26)/K26,"--")) -> -0.055 | M26: 16.
A27: 2200 Instructional staff | C27: 17. | D27: =SUMIFS('Accounting Data'!C2:C100000,'Accounting Data'!E2:E100000,"001",'Accounting Data'!H2:H100000,"2??",'Accounting Data'!I2:I100000,"22??",'Accounting Data'!J2:J100000,"61??")+SUMIFS('Accounting Data'!C2:C100000,'Accounting Data'!E2:E100000,"001",'Accounting Data'!H2:H100000,"3??",'Accounting Data'!I2:I100000,"22??",'Accounting Data'!J2:J100000,"61??") -> 317968 | E27: =SUMIFS('Accounting Data'!C2:C100000,'Accounting Data'!E2:E100000,"001",'Accounting Data'!H2:H100000,"2??",'Accounting Data'!I2:I100000,"22??",'Accounting Data'!J2:J100000,"62??")+SUMIFS('Accounting Data'!C2:C100000,'Accounting Data'!E2:E100000,"001",'Accounting Data'!H2:H100000,"3??",'Accounting Data'!I2:I100000,"22??",'Accounting Data'!J2:J100000,"62??") -> 89814 | F27: =SUMIFS('Accounting Data'!C2:C100000,'Accounting Data'!E2:E100000,"001",'Accounting Data'!H2:H100000,"2??",'Accounting Data'!I2:I100000,"22??",'Accounting Data'!J2:J100000,"63??")+SUMIFS('Accounting Data'!C2:C100000,'Accounting Data'!E2:E100000,"001",'Accounting Data'!H2:H100000,"2??",'Accounting Data'!I2:I100000,"22??",'Accounting Data'!J2:J100000,"64??")+SUMIFS('Accounting Data'!C2:C100000,'Accounting Data'!E2:E100000,"001",'Accounting Data'!H2:H100000,"2??",'Accounting Data'!I2:I100000,"22??",'Accounting Data'!J2:J100000,"65??")+SUMIFS('Accounting Data'!C2:C100000,'Accounting Data'!E2:E100000,"001",'Accounting Data'!H2:H100000,"3??",'Accounting Data'!I2:I100000,"22??",'Accounting Data'!J2:J100000,"63??")+SUMIFS('Accounting Data'!C2:C100000,'Accounting Data'!E2:E100000,"001",'Accounting Data'!H2:H100000,"3??",'Accounting Data'!I2:I100000,"22??",'Accounting Data'!J2:J100000,"64??")+SUMIFS('Accounting Data'!C2:C100000,'Accounting Data'!E2:E100000,"001",'Accounting Data'!H2:H100000,"3??",'Accounting Data'!I2:I100000,"22??",'Accounting Data'!J2:J100000,"65??") -> 36503 | G27: =SUMIFS('Accounting Data'!C2:C100000,'Accounting Data'!E2:E100000,"001",'Accounting Data'!H2:H100000,"2??",'Accounting Data'!I2:I100000,"22??",'Accounting Data'!J2:J100000,"66??")+SUMIFS('Accounting Data'!C2:C100000,'Accounting Data'!E2:E100000,"001",'Accounting Data'!H2:H100000,"3??",'Accounting Data'!I2:I100000,"22??",'Accounting Data'!J2:J100000,"66??") -> 4807 | H27: =SUMIFS('Accounting Data'!C2:C100000,'Accounting Data'!E2:E100000,"001",'Accounting Data'!H2:H100000,"2??",'Accounting Data'!I2:I100000,"22??",'Accounting Data'!J2:J100000,"68??")+SUMIFS('Accounting Data'!C2:C100000,'Accounting Data'!E2:E100000,"001",'Accounting Data'!H2:H100000,"3??",'Accounting Data'!I2:I100000,"22??",'Accounting Data'!J2:J100000,"68??") -> 2774 | I27: =[1]!F001P200F2200 -> 460982 | J27: =SUM(D27:H27) -> 451866 | K27: =[2]!F001P200F2200 -> 436900 | L27: =IF(J27=K27,0,IF(K27>0,(J27-K27)/K27,"--")) -> 0.034 | M27: 17.
A28: 2300 General administration | C28: 18. | D28: =SUMIFS('Accounting Data'!C2:C100000,'Accounting Data'!E2:E100000,"001",'Accounting Data'!H2:H100000,"2??",'Accounting Data'!I2:I100000,"23??",'Accounting Data'!J2:J100000,"61??")+SUMIFS('Accounting Data'!C2:C100000,'Accounting Data'!E2:E100000,"001",'Accounting Data'!H2:H100000,"3??",'Accounting Data'!I2:I100000,"23??",'Accounting Data'!J2:J100000,"61??") -> 0 | E28: =SUMIFS('Accounting Data'!C2:C100000,'Accounting Data'!E2:E100000,"001",'Accounting Data'!H2:H100000,"2??",'Accounting Data'!I2:I100000,"23??",'Accounting Data'!J2:J100000,"62??")+SUMIFS('Accounting Data'!C2:C100000,'Accounting Data'!E2:E100000,"001",'Accounting Data'!H2:H100000,"3??",'Accounting Data'!I2:I100000,"23??",'Accounting Data'!J2:J100000,"62??") -> 0 | F28: =SUMIFS('Accounting Data'!C2:C100000,'Accounting Data'!E2:E100000,"001",'Accounting Data'!H2:H100000,"2??",'Accounting Data'!I2:I100000,"23??",'Accounting Data'!J2:J100000,"63??")+SUMIFS('Accounting Data'!C2:C100000,'Accounting Data'!E2:E100000,"001",'Accounting Data'!H2:H100000,"2??",'Accounting Data'!I2:I100000,"23??",'Accounting Data'!J2:J100000,"64??")+SUMIFS('Accounting Data'!C2:C100000,'Accounting Data'!E2:E100000,"001",'Accounting Data'!H2:H100000,"2??",'Accounting Data'!I2:I100000,"23??",'Accounting Data'!J2:J100000,"65??")+SUMIFS('Accounting Data'!C2:C100000,'Accounting Data'!E2:E100000,"001",'Accounting Data'!H2:H100000,"3??",'Accounting Data'!I2:I100000,"23??",'Accounting Data'!J2:J100000,"63??")+SUMIFS('Accounting Data'!C2:C100000,'Accounting Data'!E2:E100000,"001",'Accounting Data'!H2:H100000,"3??",'Accounting Data'!I2:I100000,"23??",'Accounting Data'!J2:J100000,"64??")+SUMIFS('Accounting Data'!C2:C100000,'Accounting Data'!E2:E100000,"001",'Accounting Data'!H2:H100000,"3??",'Accounting Data'!I2:I100000,"23??",'Accounting Data'!J2:J100000,"65??") -> 0 | G28: =SUMIFS('Accounting Data'!C2:C100000,'Accounting Data'!E2:E100000,"001",'Accounting Data'!H2:H100000,"2??",'Accounting Data'!I2:I100000,"23??",'Accounting Data'!J2:J100000,"66??")+SUMIFS('Accounting Data'!C2:C100000,'Accounting Data'!E2:E100000,"001",'Accounting Data'!H2:H100000,"3??",'Accounting Data'!I2:I100000,"23??",'Accounting Data'!J2:J100000,"66??") -> 0 | H28: =SUMIFS('Accounting Data'!C2:C100000,'Accounting Data'!E2:E100000,"001",'Accounting Data'!H2:H100000,"2??",'Accounting Data'!I2:I100000,"23??",'Accounting Data'!J2:J100000,"68??")+SUMIFS('Accounting Data'!C2:C100000,'Accounting Data'!E2:E100000,"001",'Accounting Data'!H2:H100000,"3??",'Accounting Data'!I2:I100000,"23??",'Accounting Data'!J2:J100000,"68??") -> 0 | I28: =[1]!F001P200F2300 -> 0 | J28: 0 | K28: =[2]!F001P200F2300 -> 0 | L28: =IF(J28=K28,0,IF(K28>0,(J28-K28)/K28,"--")) -> 0 | M28: 18.
A29: 2400 School administration | C29: 19. | D29: =SUMIFS('Accounting Data'!C2:C100000,'Accounting Data'!E2:E100000,"001",'Accounting Data'!H2:H100000,"2??",'Accounting Data'!I2:I100000,"24??",'Accounting Data'!J2:J100000,"61??")+SUMIFS('Accounting Data'!C2:C100000,'Accounting Data'!E2:E100000,"001",'Accounting Data'!H2:H100000,"3??",'Accounting Data'!I2:I100000,"24??",'Accounting Data'!J2:J100000,"61??") -> 0 | E29: =SUMIFS('Accounting Data'!C2:C100000,'Accounting Data'!E2:E100000,"001",'Accounting Data'!H2:H100000,"2??",'Accounting Data'!I2:I100000,"24??",'Accounting Data'!J2:J100000,"62??")+SUMIFS('Accounting Data'!C2:C100000,'Accounting Data'!E2:E100000,"001",'Accounting Data'!H2:H100000,"3??",'Accounting Data'!I2:I100000,"24??",'Accounting Data'!J2:J100000,"62??") -> 0 | F29: =SUMIFS('Accounting Data'!C2:C100000,'Accounting Data'!E2:E100000,"001",'Accounting Data'!H2:H100000,"2??",'Accounting Data'!I2:I100000,"24??",'Accounting Data'!J2:J100000,"63??")+SUMIFS('Accounting Data'!C2:C100000,'Accounting Data'!E2:E100000,"001",'Accounting Data'!H2:H100000,"2??",'Accounting Data'!I2:I100000,"24??",'Accounting Data'!J2:J100000,"64??")+SUMIFS('Accounting Data'!C2:C100000,'Accounting Data'!E2:E100000,"001",'Accounting Data'!H2:H100000,"2??",'Accounting Data'!I2:I100000,"24??",'Accounting Data'!J2:J100000,"65??")+SUMIFS('Accounting Data'!C2:C100000,'Accounting Data'!E2:E100000,"001",'Accounting Data'!H2:H100000,"3??",'Accounting Data'!I2:I100000,"24??",'Accounting Data'!J2:J100000,"63??")+SUMIFS('Accounting Data'!C2:C100000,'Accounting Data'!E2:E100000,"001",'Accounting Data'!H2:H100000,"3??",'Accounting Data'!I2:I100000,"24??",'Accounting Data'!J2:J100000,"64??")+SUMIFS('Accounting Data'!C2:C100000,'Accounting Data'!E2:E100000,"001",'Accounting Data'!H2:H100000,"3??",'Accounting Data'!I2:I100000,"24??",'Accounting Data'!J2:J100000,"65??") -> 0 | G29: =SUMIFS('Accounting Data'!C2:C100000,'Accounting Data'!E2:E100000,"001",'Accounting Data'!H2:H100000,"2??",'Accounting Data'!I2:I100000,"24??",'Accounting Data'!J2:J100000,"66??")+SUMIFS('Accounting Data'!C2:C100000,'Accounting Data'!E2:E100000,"001",'Accounting Data'!H2:H100000,"3??",'Accounting Data'!I2:I100000,"24??",'Accounting Data'!J2:J100000,"66??") -> 0 | H29: =SUMIFS('Accounting Data'!C2:C100000,'Accounting Data'!E2:E100000,"001",'Accounting Data'!H2:H100000,"2??",'Accounting Data'!I2:I100000,"24??",'Accounting Data'!J2:J100000,"68??")+SUMIFS('Accounting Data'!C2:C100000,'Accounting Data'!E2:E100000,"001",'Accounting Data'!H2:H100000,"3??",'Accounting Data'!I2:I100000,"24??",'Accounting Data'!J2:J100000,"68??") -> 0 | I29: =[1]!F001P200F2400 -> 0 | J29: 0 | K29: =[2]!F001P200F2400 -> 0 | L29: 0 | M29: 19.
A30: 2500 Central services | C30: 20. | D30: =SUMIFS('Accounting Data'!C2:C100000,'Accounting Data'!E2:E100000,"001",'Accounting Data'!H2:H100000,"2??",'Accounting Data'!I2:I100000,"25??",'Accounting Data'!J2:J100000,"61??")+SUMIFS('Accounting Data'!C2:C100000,'Accounting Data'!E2:E100000,"001",'Accounting Data'!H2:H100000,"3??",'Accounting Data'!I2:I100000,"25??",'Accounting Data'!J2:J100000,"61??") -> 491 | E30: =SUMIFS('Accounting Data'!C2:C100000,'Accounting Data'!E2:E100000,"001",'Accounting Data'!H2:H100000,"2??",'Accounting Data'!I2:I100000,"25??",'Accounting Data'!J2:J100000,"62??")+SUMIFS('Accounting Data'!C2:C100000,'Accounting Data'!E2:E100000,"001",'Accounting Data'!H2:H100000,"3??",'Accounting Data'!I2:I100000,"25??",'Accounting Data'!J2:J100000,"62??") -> 100 | F30: =SUMIFS('Accounting Data'!C2:C100000,'Accounting Data'!E2:E100000,"001",'Accounting Data'!H2:H100000,"2??",'Accounting Data'!I2:I100000,"25??",'Accounting Data'!J2:J100000,"63??")+SUMIFS('Accounting Data'!C2:C100000,'Accounting Data'!E2:E100000,"001",'Accounting Data'!H2:H100000,"2??",'Accounting Data'!I2:I100000,"25??",'Accounting Data'!J2:J100000,"64??")+SUMIFS('Accounting Data'!C2:C100000,'Accounting Data'!E2:E100000,"001",'Accounting Data'!H2:H100000,"2??",'Accounting Data'!I2:I100000,"25??",'Accounting Data'!J2:J100000,"65??")+SUMIFS('Accounting Data'!C2:C100000,'Accounting Data'!E2:E100000,"001",'Accounting Data'!H2:H100000,"3??",'Accounting Data'!I2:I100000,"25??",'Accounting Data'!J2:J100000,"63??")+SUMIFS('Accounting Data'!C2:C100000,'Accounting Data'!E2:E100000,"001",'Accounting Data'!H2:H100000,"3??",'Accounting Data'!I2:I100000,"25??",'Accounting Data'!J2:J100000,"64??")+SUMIFS('Accounting Data'!C2:C100000,'Accounting Data'!E2:E100000,"001",'Accounting Data'!H2:H100000,"3??",'Accounting Data'!I2:I100000,"25??",'Accounting Data'!J2:J100000,"65??") -> 0 | G30: =SUMIFS('Accounting Data'!C2:C100000,'Accounting Data'!E2:E100000,"001",'Accounting Data'!H2:H100000,"2??",'Accounting Data'!I2:I100000,"25??",'Accounting Data'!J2:J100000,"66??")+SUMIFS('Accounting Data'!C2:C100000,'Accounting Data'!E2:E100000,"001",'Accounting Data'!H2:H100000,"3??",'Accounting Data'!I2:I100000,"25??",'Accounting Data'!J2:J100000,"66??") -> 0 | H30: =SUMIFS('Accounting Data'!C2:C100000,'Accounting Data'!E2:E100000,"001",'Accounting Data'!H2:H100000,"2??",'Accounting Data'!I2:I100000,"25??",'Accounting Data'!J2:J100000,"68??")+SUMIFS('Accounting Data'!C2:C100000,'Accounting Data'!E2:E100000,"001",'Accounting Data'!H2:H100000,"3??",'Accounting Data'!I2:I100000,"25??",'Accounting Data'!J2:J100000,"68??") -> 0 | I30: =[1]!F001P200F2500 -> 600 | J30: 591 | K30: =[2]!F001P200F2500 -> 0 | L30: -- | M30: 20.
A31: 2600 Operation & maintenance of plant | C31: 21. | D31: =SUMIFS('Accounting Data'!C2:C100000,'Accounting Data'!E2:E100000,"001",'Accounting Data'!H2:H100000,"2??",'Accounting Data'!I2:I100000,"26??",'Accounting Data'!J2:J100000,"61??")+SUMIFS('Accounting Data'!C2:C100000,'Accounting Data'!E2:E100000,"001",'Accounting Data'!H2:H100000,"3??",'Accounting Data'!I2:I100000,"26??",'Accounting Data'!J2:J100000,"61??") -> 0 | E31: =SUMIFS('Accounting Data'!C2:C100000,'Accounting Data'!E2:E100000,"001",'Accounting Data'!H2:H100000,"2??",'Accounting Data'!I2:I100000,"26??",'Accounting Data'!J2:J100000,"62??")+SUMIFS('Accounting Data'!C2:C100000,'Accounting Data'!E2:E100000,"001",'Accounting Data'!H2:H100000,"3??",'Accounting Data'!I2:I100000,"26??",'Accounting Data'!J2:J100000,"62??") -> 0 | F31: =SUMIFS('Accounting Data'!C2:C100000,'Accounting Data'!E2:E100000,"001",'Accounting Data'!H2:H100000,"2??",'Accounting Data'!I2:I100000,"26??",'Accounting Data'!J2:J100000,"63??")+SUMIFS('Accounting Data'!C2:C100000,'Accounting Data'!E2:E100000,"001",'Accounting Data'!H2:H100000,"2??",'Accounting Data'!I2:I100000,"26??",'Accounting Data'!J2:J100000,"64??")+SUMIFS('Accounting Data'!C2:C100000,'Accounting Data'!E2:E100000,"001",'Accounting Data'!H2:H100000,"2??",'Accounting Data'!I2:I100000,"26??",'Accounting Data'!J2:J100000,"65??")+SUMIFS('Accounting Data'!C2:C100000,'Accounting Data'!E2:E100000,"001",'Accounting Data'!H2:H100000,"3??",'Accounting Data'!I2:I100000,"26??",'Accounting Data'!J2:J100000,"63??")+SUMIFS('Accounting Data'!C2:C100000,'Accounting Data'!E2:E100000,"001",'Accounting Data'!H2:H100000,"3??",'Accounting Data'!I2:I100000,"26??",'Accounting Data'!J2:J100000,"64??")+SUMIFS('Accounting Data'!C2:C100000,'Accounting Data'!E2:E100000,"001",'Accounting Data'!H2:H100000,"3??",'Accounting Data'!I2:I100000,"26??",'Accounting Data'!J2:J100000,"65??") -> 0 | G31: =SUMIFS('Accounting Data'!C2:C100000,'Accounting Data'!E2:E100000,"001",'Accounting Data'!H2:H100000,"2??",'Accounting Data'!I2:I100000,"26??",'Accounting Data'!J2:J100000,"66??")+SUMIFS('Accounting Data'!C2:C100000,'Accounting Data'!E2:E100000,"001",'Accounting Data'!H2:H100000,"3??",'Accounting Data'!I2:I100000,"26??",'Accounting Data'!J2:J100000,"66??") -> 0 | H31: =SUMIFS('Accounting Data'!C2:C100000,'Accounting Data'!E2:E100000,"001",'Accounting Data'!H2:H100000,"2??",'Accounting Data'!I2:I100000,"26??",'Accounting Data'!J2:J100000,"68??")+SUMIFS('Accounting Data'!C2:C100000,'Accounting Data'!E2:E100000,"001",'Accounting Data'!H2:H100000,"3??",'Accounting Data'!I2:I100000,"26??",'Accounting Data'!J2:J100000,"68??") -> 0 | I31: =[1]!F001P200F2600 -> 0 | J31: 0 | K31: =[2]!F001P200F2600 -> 0 | L31: 0 | M31: 21.
A32: 2900 Other | C32: 22. | D32: =SUMIFS('Accounting Data'!C2:C100000,'Accounting Data'!E2:E100000,"001",'Accounting Data'!H2:H100000,"2??",'Accounting Data'!I2:I100000,"29??",'Accounting Data'!J2:J100000,"61??")+SUMIFS('Accounting Data'!C2:C100000,'Accounting Data'!E2:E100000,"001",'Accounting Data'!H2:H100000,"3??",'Accounting Data'!I2:I100000,"29??",'Accounting Data'!J2:J100000,"61??") -> 0 | E32: =SUMIFS('Accounting Data'!C2:C100000,'Accounting Data'!E2:E100000,"001",'Accounting Data'!H2:H100000,"2??",'Accounting Data'!I2:I100000,"29??",'Accounting Data'!J2:J100000,"62??")+SUMIFS('Accounting Data'!C2:C100000,'Accounting Data'!E2:E100000,"001",'Accounting Data'!H2:H100000,"3??",'Accounting Data'!I2:I100000,"29??",'Accounting Data'!J2:J100000,"62??") -> 0 | F32: =SUMIFS('Accounting Data'!C2:C100000,'Accounting Data'!E2:E100000,"001",'Accounting Data'!H2:H100000,"2??",'Accounting Data'!I2:I100000,"29??",'Accounting Data'!J2:J100000,"63??")+SUMIFS('Accounting Data'!C2:C100000,'Accounting Data'!E2:E100000,"001",'Accounting Data'!H2:H100000,"2??",'Accounting Data'!I2:I100000,"29??",'Accounting Data'!J2:J100000,"64??")+SUMIFS('Accounting Data'!C2:C100000,'Accounting Data'!E2:E100000,"001",'Accounting Data'!H2:H100000,"2??",'Accounting Data'!I2:I100000,"29??",'Accounting Data'!J2:J100000,"65??")+SUMIFS('Accounting Data'!C2:C100000,'Accounting Data'!E2:E100000,"001",'Accounting Data'!H2:H100000,"3??",'Accounting Data'!I2:I100000,"29??",'Accounting Data'!J2:J100000,"63??")+SUMIFS('Accounting Data'!C2:C100000,'Accounting Data'!E2:E100000,"001",'Accounting Data'!H2:H100000,"3??",'Accounting Data'!I2:I100000,"29??",'Accounting Data'!J2:J100000,"64??")+SUMIFS('Accounting Data'!C2:C100000,'Accounting Data'!E2:E100000,"001",'Accounting Data'!H2:H100000,"3??",'Accounting Data'!I2:I100000,"29??",'Accounting Data'!J2:J100000,"65??") -> 0 | G32: =SUMIFS('Accounting Data'!C2:C100000,'Accounting Data'!E2:E100000,"001",'Accounting Data'!H2:H100000,"2??",'Accounting Data'!I2:I100000,"29??",'Accounting Data'!J2:J100000,"66??")+SUMIFS('Accounting Data'!C2:C100000,'Accounting Data'!E2:E100000,"001",'Accounting Data'!H2:H100000,"3??",'Accounting Data'!I2:I100000,"29??",'Accounting Data'!J2:J100000,"66??") -> 0 | H32: =SUMIFS('Accounting Data'!C2:C100000,'Accounting Data'!E2:E100000,"001",'Accounting Data'!H2:H100000,"2??",'Accounting Data'!I2:I100000,"29??",'Accounting Data'!J2:J100000,"68??")+SUMIFS('Accounting Data'!C2:C100000,'Accounting Data'!E2:E100000,"001",'Accounting Data'!H2:H100000,"3??",'Accounting Data'!I2:I100000,"29??",'Accounting Data'!J2:J100000,"68??") -> 0 | I32: =[1]!F001P200F2900 -> 0 | J32: 0 | K32: =[2]!F001P200F2900 -> 0 | L32: 0 | M32: 22.
A33: 3000 Operation of noninstructional services | C33: 23. | D33: =SUMIFS('Accounting Data'!C2:C100000,'Accounting Data'!E2:E100000,"001",'Accounting Data'!H2:H100000,"2??",'Accounting Data'!I2:I100000,"3???",'Accounting Data'!J2:J100000,"61??")+SUMIFS('Accounting Data'!C2:C100000,'Accounting Data'!E2:E100000,"001",'Accounting Data'!H2:H100000,"3??",'Accounting Data'!I2:I100000,"3???",'Accounting Data'!J2:J100000,"61??") -> 0 | E33: =SUMIFS('Accounting Data'!C2:C100000,'Accounting Data'!E2:E100000,"001",'Accounting Data'!H2:H100000,"2??",'Accounting Data'!I2:I100000,"3???",'Accounting Data'!J2:J100000,"62??")+SUMIFS('Accounting Data'!C2:C100000,'Accounting Data'!E2:E100000,"001",'Accounting Data'!H2:H100000,"3??",'Accounting Data'!I2:I100000,"3???",'Accounting Data'!J2:J100000,"62??") -> 0 | F33: =SUMIFS('Accounting Data'!C2:C100000,'Accounting Data'!E2:E100000,"001",'Accounting Data'!H2:H100000,"2??",'Accounting Data'!I2:I100000,"3???",'Accounting Data'!J2:J100000,"63??")+SUMIFS('Accounting Data'!C2:C100000,'Accounting Data'!E2:E100000,"001",'Accounting Data'!H2:H100000,"2??",'Accounting Data'!I2:I100000,"3???",'Accounting Data'!J2:J100000,"64??")+SUMIFS('Accounting Data'!C2:C100000,'Accounting Data'!E2:E100000,"001",'Accounting Data'!H2:H100000,"2??",'Accounting Data'!I2:I100000,"3???",'Accounting Data'!J2:J100000,"65??")+SUMIFS('Accounting Data'!C2:C100000,'Accounting Data'!E2:E100000,"001",'Accounting Data'!H2:H100000,"3??",'Accounting Data'!I2:I100000,"3???",'Accounting Data'!J2:J100000,"63??")+SUMIFS('Accounting Data'!C2:C100000,'Accounting Data'!E2:E100000,"001",'Accounting Data'!H2:H100000,"3??",'Accounting Data'!I2:I100000,"3???",'Accounting Data'!J2:J100000,"64??")+SUMIFS('Accounting Data'!C2:C100000,'Accounting Data'!E2:E100000,"001",'Accounting Data'!H2:H100000,"3??",'Accounting Data'!I2:I100000,"3???",'Accounting Data'!J2:J100000,"65??") -> 0 | G33: =SUMIFS('Accounting Data'!C2:C100000,'Accounting Data'!E2:E100000,"001",'Accounting Data'!H2:H100000,"2??",'Accounting Data'!I2:I100000,"3???",'Accounting Data'!J2:J100000,"66??")+SUMIFS('Accounting Data'!C2:C100000,'Accounting Data'!E2:E100000,"001",'Accounting Data'!H2:H100000,"3??",'Accounting Data'!I2:I100000,"3???",'Accounting Data'!J2:J100000,"66??") -> 0 | H33: =SUMIFS('Accounting Data'!C2:C100000,'Accounting Data'!E2:E100000,"001",'Accounting Data'!H2:H100000,"2??",'Accounting Data'!I2:I100000,"3???",'Accounting Data'!J2:J100000,"68??")+SUMIFS('Accounting Data'!C2:C100000,'Accounting Data'!E2:E100000,"001",'Accounting Data'!H2:H100000,"3??",'Accounting Data'!I2:I100000,"3???",'Accounting Data'!J2:J100000,"68??") -> 0 | I33: =[1]!F001P200F3000 -> 0 | J33: 0 | K33: =[2]!F001P200F3000 -> 0 | L33: 0 | M33: 23.
A34: Subtotal (lines 15-23) | C34: 24. | D34: =D24+D26+SUM(D27:D33) -> 4604383 | E34: 1511145 | F34: 2143850 | G34: 33324 | H34: 2774 | I34: 8085296 | J34: =ROUND(J24+J26+SUM(J27:J33),0) -> 8295476 | K34: =K24+K26+SUM(K27:K33) -> 7752498 | L34: 0.07 | M34: 24.
A36: 400 Pupil transportation | C36: 25. | D36: =SUMIFS('Accounting Data'!C2:C100000,'Accounting Data'!E2:E100000,"001",'Accounting Data'!H2:H100000,"4??",'Accounting Data'!J2:J100000,"61??") -> 1358782 | E36: =SUMIFS('Accounting Data'!C2:C100000,'Accounting Data'!E2:E100000,"001",'Accounting Data'!H2:H100000,"4??",'Accounting Data'!J2:J100000,"62??") -> 540300 | F36: =SUMIFS('Accounting Data'!C2:C100000,'Accounting Data'!E2:E100000,"001",'Accounting Data'!H2:H100000,"4??",'Accounting Data'!J2:J100000,"63??")+SUMIFS('Accounting Data'!C2:C100000,'Accounting Data'!E2:E100000,"001",'Accounting Data'!H2:H100000,"4??",'Accounting Data'!J2:J100000,"64??")+SUMIFS('Accounting Data'!C2:C100000,'Accounting Data'!E2:E100000,"001",'Accounting Data'!H2:H100000,"4??",'Accounting Data'!J2:J100000,"65??") -> 147821 | G36: =SUMIFS('Accounting Data'!C2:C100000,'Accounting Data'!E2:E100000,"001",'Accounting Data'!H2:H100000,"4??",'Accounting Data'!J2:J100000,"66??") -> 370029 | H36: =SUMIFS('Accounting Data'!C2:C100000,'Accounting Data'!E2:E100000,"001",'Accounting Data'!H2:H100000,"4??",'Accounting Data'!J2:J100000,"68??") -> 150 | I36: =[1]!F001P400 -> 2356952 | J36: =SUM(D36:H36) -> 2417082 | K36: =[2]!F001P400 -> 2576238 | L36: =IF(J36=K36,0,IF(K36>0,(J36-K36)/K36,"--")) -> -0.062 | M36: 25.
A37: 510 Desegregation
A38: (from districtwide desegregation expenditures, page 2, line 44) | C38: 26. | D38: =[3]Districtwide!$D$66 -> 0 | E38: =[3]Districtwide!$E$66 -> 0 | F38: =[3]Districtwide!$F$66 -> 0 | G38: =[3]Districtwide!$G$66 -> 0 | H38: =[3]Districtwide!$H$66 -> 0 | I38: =[3]Districtwide!$I$66 -> 0 | J38: =[3]Districtwide!$J$66 -> 0 | K38: =[2]!F001P510 -> 0 | L38: =IF(J38=K38,0,IF(K38>0,(J38-K38)/K38,"--")) -> 0 | M38: 26.
A39: 530 Dropout prevention programs
A40: 1000 Instruction | C40: 27. | D40: =SUMIFS('Accounting Data'!C2:C100000,'Accounting Data'!E2:E100000,"001",'Accounting Data'!H2:H100000,"53?",'Accounting Data'!I2:I100000,"1???",'Accounting Data'!J2:J100000,"61??") -> 0 | E40: =SUMIFS('Accounting Data'!C2:C100000,'Accounting Data'!E2:E100000,"001",'Accounting Data'!H2:H100000,"53?",'Accounting Data'!I2:I100000,"1???",'Accounting Data'!J2:J100000,"62??") -> 0 | F40: =SUMIFS('Accounting Data'!C2:C100000,'Accounting Data'!E2:E100000,"001",'Accounting Data'!H2:H100000,"53?",'Accounting Data'!I2:I100000,"1???",'Accounting Data'!J2:J100000,"63??")+SUMIFS('Accounting Data'!C2:C100000,'Accounting Data'!E2:E100000,"001",'Accounting Data'!H2:H100000,"53?",'Accounting Data'!I2:I100000,"1???",'Accounting Data'!J2:J100000,"64??")+SUMIFS('Accounting Data'!C2:C100000,'Accounting Data'!E2:E100000,"001",'Accounting Data'!H2:H100000,"53?",'Accounting Data'!I2:I100000,"1???",'Accounting Data'!J2:J100000,"65??") -> 0 | G40: =SUMIFS('Accounting Data'!C2:C100000,'Accounting Data'!E2:E100000,"001",'Accounting Data'!H2:H100000,"53?",'Accounting Data'!I2:I100000,"1???",'Accounting Data'!J2:J100000,"66??") -> 0 | H40: =SUMIFS('Accounting Data'!C2:C100000,'Accounting Data'!E2:E100000,"001",'Accounting Data'!H2:H100000,"53?",'Accounting Data'!I2:I100000,"1???",'Accounting Data'!J2:J100000,"68??") -> 0 | J40: =SUM(D40:H40) -> 0 | K40: =[2]!F001P530F1000 -> 0 | L40: =IF(J40=K40,0,IF(K40>0,(J40-K40)/K40,"--")) -> 0 | M40: 27.
A41: 2000-3000 Support serv. & oper. of noninstructional serv. | C41: 28. | D41: =SUMIFS('Accounting Data'!C2:C100000,'Accounting Data'!E2:E100000,"001",'Accounting Data'!H2:H100000,"53?",'Accounting Data'!I2:I100000,"2???",'Accounting Data'!J2:J100000,"61??")+SUMIFS('Accounting Data'!C2:C100000,'Accounting Data'!E2:E100000,"001",'Accounting Data'!H2:H100000,"53?",'Accounting Data'!I2:I100000,"3???",'Accounting Data'!J2:J100000,"61??") -> 0 | E41: =SUMIFS('Accounting Data'!C2:C100000,'Accounting Data'!E2:E100000,"001",'Accounting Data'!H2:H100000,"53?",'Accounting Data'!I2:I100000,"2???",'Accounting Data'!J2:J100000,"62??")+SUMIFS('Accounting Data'!C2:C100000,'Accounting Data'!E2:E100000,"001",'Accounting Data'!H2:H100000,"53?",'Accounting Data'!I2:I100000,"3???",'Accounting Data'!J2:J100000,"62??") -> 0 | F41: =SUMIFS('Accounting Data'!C2:C100000,'Accounting Data'!E2:E100000,"001",'Accounting Data'!H2:H100000,"53?",'Accounting Data'!I2:I100000,"2???",'Accounting Data'!J2:J100000,"63??")+SUMIFS('Accounting Data'!C2:C100000,'Accounting Data'!E2:E100000,"001",'Accounting Data'!H2:H100000,"53?",'Accounting Data'!I2:I100000,"2???",'Accounting Data'!J2:J100000,"64??")+SUMIFS('Accounting Data'!C2:C100000,'Accounting Data'!E2:E100000,"001",'Accounting Data'!H2:H100000,"53?",'Accounting Data'!I2:I100000,"2???",'Accounting Data'!J2:J100000,"65??")+SUMIFS('Accounting Data'!C2:C100000,'Accounting Data'!E2:E100000,"001",'Accounting Data'!H2:H100000,"53?",'Accounting Data'!I2:I100000,"3???",'Accounting Data'!J2:J100000,"63??")+SUMIFS('Accounting Data'!C2:C100000,'Accounting Data'!E2:E100000,"001",'Accounting Data'!H2:H100000,"53?",'Accounting Data'!I2:I100000,"3???",'Accounting Data'!J2:J100000,"64??")+SUMIFS('Accounting Data'!C2:C100000,'Accounting Data'!E2:E100000,"001",'Accounting Data'!H2:H100000,"53?",'Accounting Data'!I2:I100000,"3???",'Accounting Data'!J2:J100000,"65??") -> 0 | G41: =SUMIFS('Accounting Data'!C2:C100000,'Accounting Data'!E2:E100000,"001",'Accounting Data'!H2:H100000,"53?",'Accounting Data'!I2:I100000,"2???",'Accounting Data'!J2:J100000,"66??")+SUMIFS('Accounting Data'!C2:C100000,'Accounting Data'!E2:E100000,"001",'Accounting Data'!H2:H100000,"53?",'Accounting Data'!I2:I100000,"3???",'Accounting Data'!J2:J100000,"66??") -> 0 | H41: =SUMIFS('Accounting Data'!C2:C100000,'Accounting Data'!E2:E100000,"001",'Accounting Data'!H2:H100000,"53?",'Accounting Data'!I2:I100000,"2???",'Accounting Data'!J2:J100000,"68??")+SUMIFS('Accounting Data'!C2:C100000,'Accounting Data'!E2:E100000,"001",'Accounting Data'!H2:H100000,"53?",'Accounting Data'!I2:I100000,"3???",'Accounting Data'!J2:J100000,"68??") -> 0 | J41: =SUM(D41:H41) -> 0 | K41: =[2]!F001P530F20003000 -> 0 | L41: =IF(J41=K41,0,IF(K41>0,(J41-K41)/K41,"--")) -> 0 | M41: 28.
A42: Subtotal (lines 27 and 28) | C42: 29. | D42: =SUM(D40:D41) -> 0 | E42: =SUM(E40:E41) -> 0 | F42: =SUM(F40:F41) -> 0 | G42: =SUM(G40:G41) -> 0 | H42: =SUM(H40:H41) -> 0 | I42: =[1]!F001P530 -> 0 | J42: =J40+J41 -> 0 | K42: =SUM(K40:K41) -> 0 | L42: =IF(J42=K42,0,IF(K42>0,(J42-K42)/K42,"--")) -> 0 | M42: 29.
A43: 540 Joint career and technical education and vocational
A44: education center | C44: 30. | D44: 0 | E44: 0 | F44: 0 | G44: 0 | H44: 0 | I44: 0 | J44: =SUM(D44:H44) -> 0 | K44: =[2]!F001P540 -> 0 | L44: =IF(J44=K44,0,IF(K44>0,(J44-K44)/K44,"--")) -> 0 | M44: 30.
A45: 550 K-3 Reading program | C45: 31. | D45: =SUMIFS('Accounting Data'!C2:C100000,'Accounting Data'!E2:E100000,"001",'Accounting Data'!H2:H100000,"55?",'Accounting Data'!J2:J100000,"61??") -> 362394 | E45: =SUMIFS('Accounting Data'!C2:C100000,'Accounting Data'!E2:E100000,"001",'Accounting Data'!H2:H100000,"55?",'Accounting Data'!J2:J100000,"62??") -> 101599 | F45: =SUMIFS('Accounting Data'!C2:C100000,'Accounting Data'!E2:E100000,"001",'Accounting Data'!H2:H100000,"55?",'Accounting Data'!J2:J100000,"63??")+SUMIFS('Accounting Data'!C2:C100000,'Accounting Data'!E2:E100000,"001",'Accounting Data'!H2:H100000,"55?",'Accounting Data'!J2:J100000,"64??")+SUMIFS('Accounting Data'!C2:C100000,'Accounting Data'!E2:E100000,"001",'Accounting Data'!H2:H100000,"55?",'Accounting Data'!J2:J100000,"65??") -> 0 | G45: =SUMIFS('Accounting Data'!C2:C100000,'Accounting Data'!E2:E100000,"001",'Accounting Data'!H2:H100000,"55?",'Accounting Data'!J2:J100000,"66??") -> 0 | H45: =SUMIFS('Accounting Data'!C2:C100000,'Accounting Data'!E2:E100000,"001",'Accounting Data'!H2:H100000,"55?",'Accounting Data'!J2:J100000,"68??") -> 0 | I45: =[1]!F001P550 -> 418124 | J45: =SUM(D45:H45) -> 463993 | K45: =[2]!F001P550TotActExp -> 346768 | L45: =IF(J45=K45,0,IF(K45>0,(J45-K45)/K45,"--")) -> 0.338 | M45: 31.
A46: Total expenditures (lines 14, 24-26, 29-31) | C46: 32. | D46: =D22+D34+D36+D38+D42+D44+D45 -> 22871696 | E46: 7369891 | F46: 4899762 | G46: 1730588 | H46: 86309 | I46: 37599838 | J46: 36958246 | K46: 36680603 | L46: =IF(J46=K46,0,IF(K46>0,(J46-K46)/K46,"--")) -> 0.008 | M46: 32.
I48: Total actual Fund 001 expenditures from accounting records (should agree to cell J46) | J48: =SUMIFS('Accounting Data'!C2:C100000,'Accounting Data'!E2:E100000,"001",'Accounting Data'!J2:J100000,"61??")+SUMIFS('Accounting Data'!C2:C100000,'Accounting Data'!E2:E100000,"001",'Accounting Data'!J2:J100000,"62??")+SUMIFS('Accounting Data'!C2:C100000,'Accounting Data'!E2:E100000,"001",'Accounting Data'!J2:J100000,"63??")+SUMIFS('Accounting Data'!C2:C100000,'Accounting Data'!E2:E100000,"001",'Accounting Data'!J2:J100000,"64??")+SUMIFS('Accounting Data'!C2:C100000,'Accounting Data'!E2:E100000,"001",'Accounting Data'!J2:J100000,"65??")+SUMIFS('Accounting Data'!C2:C100000,'Accounting Data'!E2:E100000,"001",'Accounting Data'!J2:J100000,"66??")+SUMIFS('Accounting Data'!C2:C100000,'Accounting Data'!E2:E100000,"001",'Accounting Data'!J2:J100000,"67??")+SUMIFS('Accounting Data'!C2:C100000,'Accounting Data'!E2:E100000,"001",'Accounting Data'!J2:J100000,"68??") -> 36958247
J49: =IF(ABS(J48-F001TOTALEXP)<5,"","Total M&O expenditures do not agree with accounting records. See Coding Errors tab.") -> 

Sheet Page 3
A1: District name | B1: =CoverDistrictName -> Liberty Elementary School District No. 25 | H1: County | I1: =County -> Maricopa | M1: CTDS number | N1: =Cover!Q1 -> 070425000
B2: Instructions | E2: Classroom Site Fund—Revenues, expenditures, and fund balances
D3: Beginning | K3: Debt service | L3: Total expenditures | O3: % Increase/ decrease in actual | P3: Ending
D4: fund | E4: Actual | F4: Salaries | G4: Employee benefits | H4: Purchased services | I4: Supplies | J4: Property | K4: and miscellaneous | L4: Budget | M4: Actual | N4: Prior year actual | P4: fund
D5: balance | E5: revenues | F5: 6100 | G5: 6200 | H5: 6300, 6400,6500 | I5: 6600 | J5: 6700 | K5: 6800 | P5: balance
A6: Classroom Site Fund 010
A7: Revenues
A8: CSF revenue | C8: 1. | E8: =-(SUMIFS('Accounting Data'!C2:C100000,'Accounting Data'!E2:E100000,"010",'Accounting Data'!J2:J100000,"3???")) -> 3853229 | Q8: 1.
A9: Interest income and other revenues | C9: 2. | E9: =-(SUMIFS('Accounting Data'!C2:C100000,'Accounting Data'!E2:E100000,"010",'Accounting Data'!J2:J100000,"15??")+SUMIFS('Accounting Data'!C2:C100000,'Accounting Data'!E2:E100000,"010",'Accounting Data'!J2:J100000,"198?")+(SUMIFS('Accounting Data'!C2:C100000,'Accounting Data'!E2:E100000,"010",'Accounting Data'!J2:J100000,"199?"))) -> 125428 | Q9: 2.
A10: Total revenues (lines 1 and 2) | C10: 3. | E10: =SUM(E8:E9) -> 3978657 | Q10: 3.
A11: Expenditures
A12: 1000 Instruction | C12: 4. | F12: =SUMIFS('Accounting Data'!C2:C100000,'Accounting Data'!E2:E100000,"010",'Accounting Data'!I2:I100000,"1???",'Accounting Data'!J2:J100000,"61??") -> 2301984 | G12: =SUMIFS('Accounting Data'!C2:C100000,'Accounting Data'!E2:E100000,"010",'Accounting Data'!I2:I100000,"1???",'Accounting Data'!J2:J100000,"62??") -> 463044 | H12: =SUM(SUMIFS('Accounting Data'!C2:C100000,'Accounting Data'!E2:E100000,"010",'Accounting Data'!I2:I100000,"1???",'Accounting Data'!J2:J100000,{"63??","64??","65??"})) -> 0 | I12: =SUMIFS('Accounting Data'!C2:C100000,'Accounting Data'!E2:E100000,"010",'Accounting Data'!I2:I100000,"1???",'Accounting Data'!J2:J100000,"66??") -> 0 | J12: =SUMIFS('Accounting Data'!C2:C100000,'Accounting Data'!E2:E100000,"010",'Accounting Data'!I2:I100000,"1???",'Accounting Data'!J2:J100000,"67??") -> 0 | K12: =SUMIFS('Accounting Data'!C2:C100000,'Accounting Data'!E2:E100000,"010",'Accounting Data'!I2:I100000,"1???",'Accounting Data'!J2:J100000,"68??") -> 0 | L12: =[1]!F010F1000 -> 5900000 | M12: =SUM(F12:K12) -> 2765028 | N12: =[2]!F010F1000 -> 3032805 | O12: =IF(M12=N12,0,IF(N12>0,(M12-N12)/N12,"--")) -> -0.088 | Q12: 4.
A13: 2100 Support services - students | C13: 5. | F13: =SUMIFS('Accounting Data'!C2:C100000,'Accounting Data'!E2:E100000,"010",'Accounting Data'!I2:I100000,"21??",'Accounting Data'!J2:J100000,"61??") -> 21575 | G13: =SUMIFS('Accounting Data'!C2:C100000,'Accounting Data'!E2:E100000,"010",'Accounting Data'!I2:I100000,"21??",'Accounting Data'!J2:J100000,"62??") -> 7680 | H13: =SUM(SUMIFS('Accounting Data'!C2:C100000,'Accounting Data'!E2:E100000,"010",'Accounting Data'!I2:I100000,"21??",'Accounting Data'!J2:J100000,{"63??","64??","65??"})) -> 0 | I13: =SUMIFS('Accounting Data'!C2:C100000,'Accounting Data'!E2:E100000,"010",'Accounting Data'!I2:I100000,"21??",'Accounting Data'!J2:J100000,"66??") -> 0 | J13: =SUMIFS('Accounting Data'!C2:C100000,'Accounting Data'!E2:E100000,"010",'Accounting Data'!I2:I100000,"21??",'Accounting Data'!J2:J100000,"67??") -> 0 | K13: =SUMIFS('Accounting Data'!C2:C100000,'Accounting Data'!E2:E100000,"010",'Accounting Data'!I2:I100000,"21??",'Accounting Data'!J2:J100000,"68??") -> 0 | L13: =[1]!F010F2100 -> 119290 | M13: =SUM(F13:K13) -> 29255 | N13: =[2]!F010F2100 -> 59979 | O13: =IF(M13=N13,0,IF(N13>0,(M13-N13)/N13,"--")) -> -0.512 | Q13: 5.
A14: 2200 Support services - instructional staff | C14: 6. | F14: =SUMIFS('Accounting Data'!C2:C100000,'Accounting Data'!E2:E100000,"010",'Accounting Data'!I2:I100000,"22??",'Accounting Data'!J2:J100000,"61??") -> 36868 | G14: =SUMIFS('Accounting Data'!C2:C100000,'Accounting Data'!E2:E100000,"010",'Accounting Data'!I2:I100000,"22??",'Accounting Data'!J2:J100000,"62??") -> 13075 | H14: =SUM(SUMIFS('Accounting Data'!C2:C100000,'Accounting Data'!E2:E100000,"010",'Accounting Data'!I2:I100000,"22??",'Accounting Data'!J2:J100000,{"63??","64??","65??"})) -> 0 | I14: =SUMIFS('Accounting Data'!C2:C100000,'Accounting Data'!E2:E100000,"010",'Accounting Data'!I2:I100000,"22??",'Accounting Data'!J2:J100000,"66??") -> 0 | K14: =SUMIFS('Accounting Data'!C2:C100000,'Accounting Data'!E2:E100000,"010",'Accounting Data'!I2:I100000,"22??",'Accounting Data'!J2:J100000,"68??") -> 0 | L14: =[1]!F010F2200 -> 119290 | M14: 49943 | N14: =[2]!F010F2200 -> 54321 | O14: -0.081 | Q14: 6.
A15: 2300 Support services - general administration | C15: 7. | H15: =SUMIFS('Accounting Data'!C2:C100000,'Accounting Data'!E2:E100000,"010",'Accounting Data'!I2:I100000,"23??",'Accounting Data'!J2:J100000,"652?") -> 0 | L15: =[1]!F010F2310 -> 0 | M15: 0 | N15: =[2]!F010F2300 -> 0 | O15: 0 | Q15: 7.
A16: 2500 Central services | C16: 8. | K16: =SUMIFS('Accounting Data'!C2:C100000,'Accounting Data'!E2:E100000,"010",'Accounting Data'!I2:I100000,"25??",'Accounting Data'!J2:J100000,"68??") -> 0 | L16: =[1]!F010F2510 -> 0 | M16: 0 | N16: =[2]!F010F2500 -> 0 | O16: 0 | Q16: 8.
A17: 3300 Community services operations | C17: 9. | F17: =SUMIFS('Accounting Data'!C2:C100000,'Accounting Data'!E2:E100000,"010",'Accounting Data'!I2:I100000,"33??",'Accounting Data'!J2:J100000,"61??") -> 0 | G17: =SUMIFS('Accounting Data'!C2:C100000,'Accounting Data'!E2:E100000,"010",'Accounting Data'!I2:I100000,"33??",'Accounting Data'!J2:J100000,"62??") -> 0 | H17: =SUM(SUMIFS('Accounting Data'!C2:C100000,'Accounting Data'!E2:E100000,"010",'Accounting Data'!I2:I100000,"33??",'Accounting Data'!J2:J100000,{"63??","64??","65??"})) -> 0 | L17: =[1]!F010F3300 -> 0 | M17: 0 | N17: =[2]!F010F3300 -> 0 | O17: 0 | Q17: 9.
A18: 4000 Facilities acquisition and construction | C18: 10. | J18: =SUMIFS('Accounting Data'!C2:C100000,'Accounting Data'!E2:E100000,"010",'Accounting Data'!I2:I100000,"4???",'Accounting Data'!J2:J100000,"67??") -> 0 | L18: =[1]!F010F4000 -> 0 | M18: 0 | N18: =[2]!F010F4000 -> 0 | O18: 0 | Q18: 10.
A19: 5000 Debt service | C19: 11. | K19: =SUMIFS('Accounting Data'!C2:C100000,'Accounting Data'!E2:E100000,"010",'Accounting Data'!I2:I100000,"5???",'Accounting Data'!J2:J100000,"68??") -> 0 | L19: =[1]!F010F5000 -> 0 | M19: 0 | N19: =[2]!F010F5000 -> 0 | O19: 0 | Q19: 11.
A20: Total expenditures (lines 4-11) | C20: 12. | F20: =SUM(F12:F19) -> 2360427 | G20: 483799 | H20: 0 | I20: 0 | J20: 0 | K20: 0 | L20: =[1]!F010TotalExp -> 6138580 | M20: 2844226 | N20: =[2]!F010TotActExp -> 3147105 | O20: -0.096 | Q20: 12.
A21: Total Classroom Site Fund | C21: 13. | D21: ='Accounting Data'!R3 -> 2365880 | E21: =E10 -> 3978657 | F21: =F20 -> 2360427 | G21: =G20 -> 483799 | H21: 0 | I21: 0 | J21: 0 | K21: 0 | L21: 6138580 | M21: =SUM(F21:K21) -> 2844226 | N21: =N20 -> 3147105 | O21: =IF(M21=N21,0,IF(N21>0,(M21-N21)/N21,"--")) -> -0.096 | P21: =D21+E21-M21 -> 3500311 | Q21: 13.
L23: Total actual Fund 010 expenditures from accounting records (should agree to cell M21) | M23: =SUMIFS('Accounting Data'!C2:C100000,'Accounting Data'!E2:E100000,"010",'Accounting Data'!J2:J100000,"61??")+SUMIFS('Accounting Data'!C2:C100000,'Accounting Data'!E2:E100000,"010",'Accounting Data'!J2:J100000,"62??")+SUMIFS('Accounting Data'!C2:C100000,'Accounting Data'!E2:E100000,"010",'Accounting Data'!J2:J100000,"63??")+SUMIFS('Accounting Data'!C2:C100000,'Accounting Data'!E2:E100000,"010",'Accounting Data'!J2:J100000,"64??")+SUMIFS('Accounting Data'!C2:C100000,'Accounting Data'!E2:E100000,"010",'Accounting Data'!J2:J100000,"65??")+SUMIFS('Accounting Data'!C2:C100000,'Accounting Data'!E2:E100000,"010",'Accounting Data'!J2:J100000,"66??")+SUMIFS('Accounting Data'!C2:C100000,'Accounting Data'!E2:E100000,"010",'Accounting Data'!J2:J100000,"67??")+SUMIFS('Accounting Data'!C2:C100000,'Accounting Data'!E2:E100000,"010",'Accounting Data'!J2:J100000,"68??") -> 2844226
M24: =IF(ABS(M23-F010TotActExp)<5,"","Total CSF expenditures do not agree with accounting records. See Coding Errors tab.") -> 

Sheet Page 4
A1: District name | B1: =CoverDistrictName -> Liberty Elementary School District No. 25 | F1: County | G1: =County -> Maricopa | K1: CTDS number | L1: =Cover!Q1 -> 070425000
A2: Unrestricted Capital Outlay (610) Fund—Expenditures
A4: Instructions | E4: Library books, | F4: Short-term noninstructional software subscription | K4: Totals | N4: %
E5: textbooks, & | H5: Redemption of | I5: Interest | J5: All other | N5: Increase/
A6: Expenditures | D6: Rentals | E6: instructional aids | G6: Property | H6: principal | I6: 6841, 6842, 6843, 6850 | J6: object codes | K6: Budget | L6: Actual | M6: Prior year actual | N6: decrease
D7: 6440 | E7: 6641-6643 | F7: 6655 | G7: 6700 | H7: 6831, 6832, 6833 | J7: (excluding 6900) | N7: in actual | AB7: =IF(OR(AB8="yes",AA43="yes",AA51="yes"),"yes","") -> 
A8: Unrestricted Capital Outlay Override (1) | C8: 1. | D8: 0 | E8: 0 | F8: 0 | G8: 0 | H8: 0 | I8: 0 | J8: 0 | K8: =[1]!F610Override -> 0 | L8: =SUM(D8:J8) -> 0 | M8: =[2]!F610override -> 0 | N8: =IF(L8=M8,0,IF(M8>0,(L8-M8)/M8,"--")) -> 0 | O8: 1. | AB8: =IF(OR(D8="",E8="",F8="",G8="",H8="",I8="",J8="",K23=""),"yes","") -> 
A9: Unrestricted Capital Outlay Fund 610 (2)
A10: 1000 Instruction | C10: 2. | E10: =SUMIFS('Accounting Data'!C2:C100000,'Accounting Data'!E2:E100000,"610",'Accounting Data'!I2:I100000,"1???",'Accounting Data'!J2:J100000,"6641")+SUMIFS('Accounting Data'!C2:C100000,'Accounting Data'!E2:E100000,"610",'Accounting Data'!I2:I100000,"1???",'Accounting Data'!J2:J100000,"6642")+SUMIFS('Accounting Data'!C2:C100000,'Accounting Data'!E2:E100000,"610",'Accounting Data'!I2:I100000,"1???",'Accounting Data'!J2:J100000,"6643") -> 284409 | G10: =SUMIFS('Accounting Data'!C2:C100000,'Accounting Data'!E2:E100000,"610",'Accounting Data'!I2:I100000,"1???",'Accounting Data'!J2:J100000,"67??") -> 131107 | J10: =SUMIFS('Accounting Data'!C2:C100000,'Accounting Data'!E2:E100000,"610",'Accounting Data'!I2:I100000,"1???",'Accounting Data'!J2:J100000,"6???")-SUMIFS('Accounting Data'!C2:C100000,'Accounting Data'!E2:E100000,"610",'Accounting Data'!I2:I100000,"1???",'Accounting Data'!J2:J100000,"69??")-D10-E10-G10 -> 0 | K10: =[1]!F610F1000 -> 462552 | L10: =SUM(D10:G10)+J10 -> 415516 | M10: =[2]!F610F1000 -> 1542201 | N10: =IF(L10=M10,0,IF(M10>0,(L10-M10)/M10,"--")) -> -0.731 | O10: 2.
A11: 2000 Support services
A12: 2100, 2200 Students and instructional staff | C12: 3. | D12: =SUMIFS('Accounting Data'!C2:C100000,'Accounting Data'!E2:E100000,"610",'Accounting Data'!I2:I100000,"21??",'Accounting Data'!J2:J100000,"644?")+SUMIFS('Accounting Data'!C2:C100000,'Accounting Data'!E2:E100000,"610",'Accounting Data'!I2:I100000,"22??",'Accounting Data'!J2:J100000,"644?") -> 0 | E12: =SUMIFS('Accounting Data'!C2:C100000,'Accounting Data'!E2:E100000,"610",'Accounting Data'!I2:I100000,"21??",'Accounting Data'!J2:J100000,"6641")+SUMIFS('Accounting Data'!C2:C100000,'Accounting Data'!E2:E100000,"610",'Accounting Data'!I2:I100000,"21??",'Accounting Data'!J2:J100000,"6642")+SUMIFS('Accounting Data'!C2:C100000,'Accounting Data'!E2:E100000,"610",'Accounting Data'!I2:I100000,"21??",'Accounting Data'!J2:J100000,"6643")+SUMIFS('Accounting Data'!C2:C100000,'Accounting Data'!E2:E100000,"610",'Accounting Data'!I2:I100000,"22??",'Accounting Data'!J2:J100000,"6641")+SUMIFS('Accounting Data'!C2:C100000,'Accounting Data'!E2:E100000,"610",'Accounting Data'!I2:I100000,"22??",'Accounting Data'!J2:J100000,"6642")+SUMIFS('Accounting Data'!C2:C100000,'Accounting Data'!E2:E100000,"610",'Accounting Data'!I2:I100000,"22??",'Accounting Data'!J2:J100000,"6643") -> 4066 | F12: =SUM(SUMIFS('Accounting Data'!C2:C100000,'Accounting Data'!E2:E100000,"610",'Accounting Data'!I2:I100000,{"21??","22??"},'Accounting Data'!J2:J100000,"6655")) -> 8394 | G12: =SUMIFS('Accounting Data'!C2:C100000,'Accounting Data'!E2:E100000,"610",'Accounting Data'!I2:I100000,"21??",'Accounting Data'!J2:J100000,"67??")+SUMIFS('Accounting Data'!C2:C100000,'Accounting Data'!E2:E100000,"610",'Accounting Data'!I2:I100000,"22??",'Accounting Data'!J2:J100000,"67??") -> 0 | J12: =(SUMIFS('Accounting Data'!C2:C100000,'Accounting Data'!E2:E100000,"610",'Accounting Data'!I2:I100000,"21??",'Accounting Data'!J2:J100000,"6???")+SUMIFS('Accounting Data'!C2:C100000,'Accounting Data'!E2:E100000,"610",'Accounting Data'!I2:I100000,"22??",'Accounting Data'!J2:J100000,"6???"))-(SUMIFS('Accounting Data'!C2:C100000,'Accounting Data'!E2:E100000,"610",'Accounting Data'!I2:I100000,"21??",'Accounting Data'!J2:J100000,"69??")+SUMIFS('Accounting Data'!C2:C100000,'Accounting Data'!E2:E100000,"610",'Accounting Data'!I2:I100000,"22??",'Accounting Data'!J2:J100000,"69??"))-D12-E12-G12-F12 -> 0 | K12: =[1]!F610F21002200 -> 7920 | L12: =SUM(D12:G12)+J12 -> 12460 | M12: =[2]!F610F21002200 -> 34586 | N12: =IF(L12=M12,0,IF(M12>0,(L12-M12)/M12,"--")) -> -0.64 | O12: 3.
A13: 2300, 2400, 2500, 2900 Administration | C13: 4. | D13: =SUMIFS('Accounting Data'!C2:C100000,'Accounting Data'!E2:E100000,"610",'Accounting Data'!I2:I100000,"23??",'Accounting Data'!J2:J100000,"644?")+SUMIFS('Accounting Data'!C2:C100000,'Accounting Data'!E2:E100000,"610",'Accounting Data'!I2:I100000,"24??",'Accounting Data'!J2:J100000,"644?")+SUMIFS('Accounting Data'!C2:C100000,'Accounting Data'!E2:E100000,"610",'Accounting Data'!I2:I100000,"25??",'Accounting Data'!J2:J100000,"644?")+SUMIFS('Accounting Data'!C2:C100000,'Accounting Data'!E2:E100000,"610",'Accounting Data'!I2:I100000,"29??",'Accounting Data'!J2:J100000,"644?") -> 0 | F13: =SUM(SUMIFS('Accounting Data'!C2:C100000,'Accounting Data'!E2:E100000,"610",'Accounting Data'!I2:I100000,{"23??","24??","25??","29??"},'Accounting Data'!J2:J100000,"6655")) -> 402798 | G13: =SUMIFS('Accounting Data'!C2:C100000,'Accounting Data'!E2:E100000,"610",'Accounting Data'!I2:I100000,"23??",'Accounting Data'!J2:J100000,"67??")+SUMIFS('Accounting Data'!C2:C100000,'Accounting Data'!E2:E100000,"610",'Accounting Data'!I2:I100000,"24??",'Accounting Data'!J2:J100000,"67??")+SUMIFS('Accounting Data'!C2:C100000,'Accounting Data'!E2:E100000,"610",'Accounting Data'!I2:I100000,"25??",'Accounting Data'!J2:J100000,"67??")+SUMIFS('Accounting Data'!C2:C100000,'Accounting Data'!E2:E100000,"610",'Accounting Data'!I2:I100000,"29??",'Accounting Data'!J2:J100000,"67??") -> 165785 | I13: =SUMIFS('Accounting Data'!C2:C100000,'Accounting Data'!E2:E100000,"610",'Accounting Data'!I2:I100000,"25??",'Accounting Data'!J2:J100000,"6850") -> 0 | J13: =(SUMIFS('Accounting Data'!C2:C100000,'Accounting Data'!E2:E100000,"610",'Accounting Data'!I2:I100000,"23??",'Accounting Data'!J2:J100000,"6???")+SUMIFS('Accounting Data'!C2:C100000,'Accounting Data'!E2:E100000,"610",'Accounting Data'!I2:I100000,"24??",'Accounting Data'!J2:J100000,"6???")+SUMIFS('Accounting Data'!C2:C100000,'Accounting Data'!E2:E100000,"610",'Accounting Data'!I2:I100000,"25??",'Accounting Data'!J2:J100000,"6???")+SUMIFS('Accounting Data'!C2:C100000,'Accounting Data'!E2:E100000,"610",'Accounting Data'!I2:I100000,"29??",'Accounting Data'!J2:J100000,"6???"))-(SUMIFS('Accounting Data'!C2:C100000,'Accounting Data'!E2:E100000,"610",'Accounting Data'!I2:I100000,"23??",'Accounting Data'!J2:J100000,"69??")+SUMIFS('Accounting Data'!C2:C100000,'Accounting Data'!E2:E100000,"610",'Accounting Data'!I2:I100000,"24??",'Accounting Data'!J2:J100000,"69??")+SUMIFS('Accounting Data'!C2:C100000,'Accounting Data'!E2:E100000,"610",'Accounting Data'!I2:I100000,"25??",'Accounting Data'!J2:J100000,"69??")+SUMIFS('Accounting Data'!C2:C100000,'Accounting Data'!E2:E100000,"610",'Accounting Data'!I2:I100000,"29??",'Accounting Data'!J2:J100000,"69??"))-D13-G13-I13-F13 -> 0 | K13: =[1]!F610F2300240025002900 -> 620528 | L13: =D13+F13+G13+SUM(I13:J13) -> 568583 | M13: =[2]!F610F2300240025002900 -> 542651 | N13: =IF(L13=M13,0,IF(M13>0,(L13-M13)/M13,"--")) -> 0.048 | O13: 4.
A14: 2600 Operation & maintenance of plant | C14: 5. | D14: =SUMIFS('Accounting Data'!C2:C100000,'Accounting Data'!E2:E100000,"610",'Accounting Data'!I2:I100000,"26??",'Accounting Data'!J2:J100000,"644?") -> 0 | F14: =SUM(SUMIFS('Accounting Data'!C2:C100000,'Accounting Data'!E2:E100000,"610",'Accounting Data'!I2:I100000,"26??",'Accounting Data'!J2:J100000,"6655")) -> 12237 | G14: =SUMIFS('Accounting Data'!C2:C100000,'Accounting Data'!E2:E100000,"610",'Accounting Data'!I2:I100000,"26??",'Accounting Data'!J2:J100000,"67??") -> 224972 | J14: =SUMIFS('Accounting Data'!C2:C100000,'Accounting Data'!E2:E100000,"610",'Accounting Data'!I2:I100000,"26??",'Accounting Data'!J2:J100000,"6???")-SUMIFS('Accounting Data'!C2:C100000,'Accounting Data'!E2:E100000,"610",'Accounting Data'!I2:I100000,"26??",'Accounting Data'!J2:J100000,"69??")-D14-G14-F14 -> 0 | K14: =[1]!F610F2600 -> 264570 | L14: =D14+G14+J14+F14 -> 237209 | M14: =[2]!F610F2600 -> 235029 | N14: =IF(L14=M14,0,IF(M14>0,(L14-M14)/M14,"--")) -> 0.009 | O14: 5.
A15: 2700 Student transportation | C15: 6. | D15: =SUMIFS('Accounting Data'!C2:C100000,'Accounting Data'!E2:E100000,"610",'Accounting Data'!I2:I100000,"27??",'Accounting Data'!J2:J100000,"644?") -> 0 | F15: =SUM(SUMIFS('Accounting Data'!C2:C100000,'Accounting Data'!E2:E100000,"610",'Accounting Data'!I2:I100000,"27??",'Accounting Data'!J2:J100000,"6655")) -> 24934 | G15: =SUMIFS('Accounting Data'!C2:C100000,'Accounting Data'!E2:E100000,"610",'Accounting Data'!I2:I100000,"27??",'Accounting Data'!J2:J100000,"67??") -> 15341 | J15: =SUMIFS('Accounting Data'!C2:C100000,'Accounting Data'!E2:E100000,"610",'Accounting Data'!I2:I100000,"27??",'Accounting Data'!J2:J100000,"6???")-SUMIFS('Accounting Data'!C2:C100000,'Accounting Data'!E2:E100000,"610",'Accounting Data'!I2:I100000,"27??",'Accounting Data'!J2:J100000,"69??")-D15-G15-F15 -> 0 | K15: =[1]!F610F2700 -> 55239 | L15: =D15+G15+J15+F15 -> 40275 | M15: =[2]!F610F2700 -> 144702 | N15: -0.722 | O15: 6.
A16: 3000 Operation of noninstructional services | C16: 7. | D16: =SUMIFS('Accounting Data'!C2:C100000,'Accounting Data'!E2:E100000,"610",'Accounting Data'!I2:I100000,"3???",'Accounting Data'!J2:J100000,"644?") -> 0 | F16: =SUM(SUMIFS('Accounting Data'!C2:C100000,'Accounting Data'!E2:E100000,"610",'Accounting Data'!I2:I100000,"3???",'Accounting Data'!J2:J100000,"6655")) -> 0 | G16: =SUMIFS('Accounting Data'!C2:C100000,'Accounting Data'!E2:E100000,"610",'Accounting Data'!I2:I100000,"3???",'Accounting Data'!J2:J100000,"67??") -> 1980 | J16: =SUMIFS('Accounting Data'!C2:C100000,'Accounting Data'!E2:E100000,"610",'Accounting Data'!I2:I100000,"3???",'Accounting Data'!J2:J100000,"6???")-SUMIFS('Accounting Data'!C2:C100000,'Accounting Data'!E2:E100000,"610",'Accounting Data'!I2:I100000,"3???",'Accounting Data'!J2:J100000,"69??")-D16-G16-F16 -> 0 | K16: =[1]!F610F3000 -> 1980 | L16: =D16+G16+J16+F16 -> 1980 | M16: =[2]!F610F3000 -> 0 | N16: -- | O16: 7.
A17: 4000 Facilities acquisition and construction | C17: 8. | D17: =SUMIFS('Accounting Data'!C2:C100000,'Accounting Data'!E2:E100000,"610",'Accounting Data'!I2:I100000,"4???",'Accounting Data'!J2:J100000,"644?") -> 0 | F17: =SUM(SUMIFS('Accounting Data'!C2:C100000,'Accounting Data'!E2:E100000,"610",'Accounting Data'!I2:I100000,"4???",'Accounting Data'!J2:J100000,"6655")) -> 0 | G17: =SUMIFS('Accounting Data'!C2:C100000,'Accounting Data'!E2:E100000,"610",'Accounting Data'!I2:I100000,"4???",'Accounting Data'!J2:J100000,"67??") -> 25000 | J17: =SUMIFS('Accounting Data'!C2:C100000,'Accounting Data'!E2:E100000,"610",'Accounting Data'!I2:I100000,"4???",'Accounting Data'!J2:J100000,"6???")-SUMIFS('Accounting Data'!C2:C100000,'Accounting Data'!E2:E100000,"610",'Accounting Data'!I2:I100000,"4???",'Accounting Data'!J2:J100000,"69??")-D17-G17-F17 -> 77447 | K17: =[1]!F610F4000 -> 1102446 | L17: =D17+G17+J17+F17 -> 102447 | M17: =[2]!F610F4000 -> 598612 | N17: -0.829 | O17: 8.
A18: 5000 Debt service | C18: 9. | H18: =SUMIFS('Accounting Data'!C2:C100000,'Accounting Data'!E2:E100000,"610",'Accounting Data'!I2:I100000,"5???",'Accounting Data'!J2:J100000,"6831")+SUMIFS('Accounting Data'!C2:C100000,'Accounting Data'!E2:E100000,"610",'Accounting Data'!I2:I100000,"5???",'Accounting Data'!J2:J100000,"6832")+SUMIFS('Accounting Data'!C2:C100000,'Accounting Data'!E2:E100000,"610",'Accounting Data'!I2:I100000,"5???",'Accounting Data'!J2:J100000,"6833") -> 0 | I18: =SUMIFS('Accounting Data'!C2:C100000,'Accounting Data'!E2:E100000,"610",'Accounting Data'!I2:I100000,"5???",'Accounting Data'!J2:J100000,"6841")+SUMIFS('Accounting Data'!C2:C100000,'Accounting Data'!E2:E100000,"610",'Accounting Data'!I2:I100000,"5???",'Accounting Data'!J2:J100000,"6842")+SUMIFS('Accounting Data'!C2:C100000,'Accounting Data'!E2:E100000,"610",'Accounting Data'!I2:I100000,"5???",'Accounting Data'!J2:J100000,"6843") -> 0 | K18: =[1]!F610F5000 -> 0 | L18: =SUM(H18:I18) -> 0 | M18: =[2]!F610F5000 -> 4651 | N18: -1 | O18: 9.
A19: Total Unrestricted Capital Outlay Fund (lines 2-9) | C19: 10. | D19: =D10+D12+SUM(D13:D17) -> 0 | E19: =E10+E12 -> 288475 | F19: =SUM(F12:F17) -> 448363 | G19: =G10+G12+SUM(G13:G17) -> 564185 | H19: =H18 -> 0 | I19: =I13+I18 -> 0 | J19: =J10+J12+SUM(J13:J17) -> 77447 | K19: =K10+K12+SUM(K13:K18) -> 2515235 | L19: =L10+L12+SUM(L13:L18) -> 1378470 | M19: =M10+M12+SUM(M13:M18) -> 3102432 | N19: -0.556 | O19: 10.
K21: Total actual Fund 610 expenditures from accounting records (should agree to cell L19) | L21: =SUMIFS('Accounting Data'!C2:C100000,'Accounting Data'!E2:E100000,"610",'Accounting Data'!J2:J100000,"61??")+SUMIFS('Accounting Data'!C2:C100000,'Accounting Data'!E2:E100000,"610",'Accounting Data'!J2:J100000,"62??")+SUMIFS('Accounting Data'!C2:C100000,'Accounting Data'!E2:E100000,"610",'Accounting Data'!J2:J100000,"63??")+SUMIFS('Accounting Data'!C2:C100000,'Accounting Data'!E2:E100000,"610",'Accounting Data'!J2:J100000,"64??")+SUMIFS('Accounting Data'!C2:C100000,'Accounting Data'!E2:E100000,"610",'Accounting Data'!J2:J100000,"65??")+SUMIFS('Accounting Data'!C2:C100000,'Accounting Data'!E2:E100000,"610",'Accounting Data'!J2:J100000,"66??")+SUMIFS('Accounting Data'!C2:C100000,'Accounting Data'!E2:E100000,"610",'Accounting Data'!J2:J100000,"67??")+SUMIFS('Accounting Data'!C2:C100000,'Accounting Data'!E2:E100000,"610",'Accounting Data'!J2:J100000,"68??") -> 1378469
A22: (1) Amounts in the Unrestricted Capital Outlay Override, line 1 above, must also be included in the Unrestricted Capital Outlay Fund (610) individual line items. | L22: =IF(ABS(L21-F610TotActExp)<5,"","Total UCO expenditures do not agree with accounting records.) See Coding Errors tab.") -> 
A23: (2) Expenditures, if any, in the Unrestricted Capital Outlay Fund on lines 2-9 for the K-3 reading program as described in A.R.S. §15-211: | H23: Budget | I23: =[1]!UCOFundK3ReadExp -> 0 | J23: Actual | K23: 0
A24: Other funds—Required capital expenditure detail [A.R.S. §15-904(B)]
D26: Unrestricted Capital Outlay | F26: Bond Building | H26: New School Facilities | J26: Adjacent Ways
A27: Selected expenditures by object code | D27: Fund 610 | F27: Fund 630 | H27: Fund 695 | J27: Fund 620
D28: Budget | E28: Actual | F28: Budget | G28: Actual | H28: Budget | I28: Actual | J28: Budget | K28: Actual
A29: Total fund expenditures | C29: 1. | D29: =[1]!F610TotalBudgFY -> 2515235 | E29: =SUMIFS('Accounting Data'!C2:C100000,'Accounting Data'!E2:E100000,"610",'Accounting Data'!J2:J100000,"6???")-SUMIFS('Accounting Data'!C2:C100000,'Accounting Data'!E2:E100000,"610",'Accounting Data'!J2:J100000,"69??") -> 1378469 | F29: =[1]!F630TotalBudgFY -> 17724921 | G29: =SUMIFS('Accounting Data'!C2:C100000,'Accounting Data'!E2:E100000,"630",'Accounting Data'!J2:J100000,"6???")-SUMIFS('Accounting Data'!C2:C100000,'Accounting Data'!E2:E100000,"630",'Accounting Data'!J2:J100000,"69??") -> 13592323 | H29: =[1]!F695TotalBudgFY -> 21923031 | I29: =SUMIFS('Accounting Data'!C2:C100000,'Accounting Data'!E2:E100000,"695",'Accounting Data'!J2:J100000,"6???")-SUMIFS('Accounting Data'!C2:C100000,'Accounting Data'!E2:E100000,"695",'Accounting Data'!J2:J100000,"69??") -> 21551278 | J29: =[1]!F620TotalBudgFY -> 4710019 | K29: =SUMIFS('Accounting Data'!C2:C100000,'Accounting Data'!E2:E100000,"620",'Accounting Data'!J2:J100000,"6???")-SUMIFS('Accounting Data'!C2:C100000,'Accounting Data'!E2:E100000,"620",'Accounting Data'!J2:J100000,"69??") -> 3209060 | L29: 1.
A30: 6150 Classified salaries | C30: 2. | D30: =[1]!F610BudgFYO6150 -> 0 | E30: =SUMIFS('Accounting Data'!C$2:C$100000,'Accounting Data'!E$2:E$100000,"610",'Accounting Data'!J$2:J$100000,"615?")+SUMIFS('Accounting Data'!C$2:C$100000,'Accounting Data'!E$2:E$100000,"610",'Accounting Data'!J$2:J$100000,"616?")+SUMIFS('Accounting Data'!C$2:C$100000,'Accounting Data'!E$2:E$100000,"610",'Accounting Data'!J$2:J$100000,"617?")+SUMIFS('Accounting Data'!C$2:C$100000,'Accounting Data'!E$2:E$100000,"610",'Accounting Data'!J$2:J$100000,"618?")+SUMIFS('Accounting Data'!C$2:C$100000,'Accounting Data'!E$2:E$100000,"610",'Accounting Data'!J$2:J$100000,"619?") -> 0 | F30: =[1]!F630BudgFYO6150 -> 0 | G30: =SUMIFS('Accounting Data'!C$2:C$100000,'Accounting Data'!E$2:E$100000,"630",'Accounting Data'!J$2:J$100000,"615?")+SUMIFS('Accounting Data'!C$2:C$100000,'Accounting Data'!E$2:E$100000,"630",'Accounting Data'!J$2:J$100000,"616?")+SUMIFS('Accounting Data'!C$2:C$100000,'Accounting Data'!E$2:E$100000,"630",'Accounting Data'!J$2:J$100000,"617?")+SUMIFS('Accounting Data'!C$2:C$100000,'Accounting Data'!E$2:E$100000,"630",'Accounting Data'!J$2:J$100000,"618?")+SUMIFS('Accounting Data'!C$2:C$100000,'Accounting Data'!E$2:E$100000,"630",'Accounting Data'!J$2:J$100000,"619?") -> 0 | H30: =[1]!F695BudgFYO6150 -> 0 | I30: =SUMIFS('Accounting Data'!C$2:C$100000,'Accounting Data'!E$2:E$100000,"695",'Accounting Data'!J$2:J$100000,"615?")+SUMIFS('Accounting Data'!C$2:C$100000,'Accounting Data'!E$2:E$100000,"695",'Accounting Data'!J$2:J$100000,"616?")+SUMIFS('Accounting Data'!C$2:C$100000,'Accounting Data'!E$2:E$100000,"695",'Accounting Data'!J$2:J$100000,"617?")+SUMIFS('Accounting Data'!C$2:C$100000,'Accounting Data'!E$2:E$100000,"695",'Accounting Data'!J$2:J$100000,"618?")+SUMIFS('Accounting Data'!C$2:C$100000,'Accounting Data'!E$2:E$100000,"695",'Accounting Data'!J$2:J$100000,"619?") -> 0 | J30: =[1]!F620BudgFYO6150 -> 0 | K30: =SUMIFS('Accounting Data'!C$2:C$100000,'Accounting Data'!E$2:E$100000,"620",'Accounting Data'!J$2:J$100000,"615?")+SUMIFS('Accounting Data'!C$2:C$100000,'Accounting Data'!E$2:E$100000,"620",'Accounting Data'!J$2:J$100000,"616?")+SUMIFS('Accounting Data'!C$2:C$100000,'Accounting Data'!E$2:E$100000,"620",'Accounting Data'!J$2:J$100000,"617?")+SUMIFS('Accounting Data'!C$2:C$100000,'Accounting Data'!E$2:E$100000,"620",'Accounting Data'!J$2:J$100000,"618?")+SUMIFS('Accounting Data'!C$2:C$100000,'Accounting Data'!E$2:E$100000,"620",'Accounting Data'!J$2:J$100000,"619?") -> 0 | L30: 2.
A31: 6200 Employee benefits | C31: 3. | D31: =[1]!F610BudgFYO6200 -> 0 | E31: =SUMIFS('Accounting Data'!C$2:C$100000,'Accounting Data'!E$2:E$100000,"610",'Accounting Data'!J$2:J$100000,"62??") -> 0 | F31: =[1]!F630BudgFYO6200 -> 0 | G31: =SUMIFS('Accounting Data'!C$2:C$100000,'Accounting Data'!E$2:E$100000,"630",'Accounting Data'!J$2:J$100000,"62??") -> 0 | H31: =[1]!F695BudgFYO6200 -> 0 | I31: =SUMIFS('Accounting Data'!C$2:C$100000,'Accounting Data'!E$2:E$100000,"695",'Accounting Data'!J$2:J$100000,"62??") -> 0 | J31: =[1]!F620BudgFYO6200 -> 0 | K31: =SUMIFS('Accounting Data'!C$2:C$100000,'Accounting Data'!E$2:E$100000,"620",'Accounting Data'!J$2:J$100000,"62??") -> 0 | L31: 3.
A32: 6450 Construction services | C32: 4. | D32: =[1]!F610BudgFYO6450 -> 1077447 | E32: =SUMIFS('Accounting Data'!C$2:C$100000,'Accounting Data'!E$2:E$100000,"610",'Accounting Data'!J$2:J$100000,"645?") -> 77447 | F32: =[1]!F630BudgFYO6450 -> 17382786 | G32: =SUMIFS('Accounting Data'!C$2:C$100000,'Accounting Data'!E$2:E$100000,"630",'Accounting Data'!J$2:J$100000,"645?") -> 12886760 | H32: =[1]!F695BudgFYO6450 -> 21923031 | I32: =SUMIFS('Accounting Data'!C$2:C$100000,'Accounting Data'!E$2:E$100000,"695",'Accounting Data'!J$2:J$100000,"645?") -> 17827977 | J32: =[1]!F620BudgFYO6450 -> 4710019 | K32: =SUMIFS('Accounting Data'!C$2:C$100000,'Accounting Data'!E$2:E$100000,"620",'Accounting Data'!J$2:J$100000,"645?") -> 3209060 | L32: 4.
A33: 6655 Short-term noninstructional software subscription | C33: 5. | E33: =SUMIFS('Accounting Data'!C$2:C$100000,'Accounting Data'!E$2:E$100000,"610",'Accounting Data'!J$2:J$100000,"6655") -> 448363 | G33: =SUMIFS('Accounting Data'!C$2:C$100000,'Accounting Data'!E$2:E$100000,"630",'Accounting Data'!J$2:J$100000,"6655") -> 0 | I33: =SUMIFS('Accounting Data'!C$2:C$100000,'Accounting Data'!E$2:E$100000,"695",'Accounting Data'!J$2:J$100000,"6655") -> 0 | K33: =SUMIFS('Accounting Data'!C$2:C$100000,'Accounting Data'!E$2:E$100000,"620",'Accounting Data'!J$2:J$100000,"6655") -> 0 | L33: 5.
A34: 6710 Land and improvements | C34: 6. | D34: =[1]!F610BudgFYO6710 -> 25000 | E34: =SUMIFS('Accounting Data'!C$2:C$100000,'Accounting Data'!E$2:E$100000,"610",'Accounting Data'!J$2:J$100000,"671?") -> 25000 | F34: =[1]!F630BudgFYO6710 -> 0 | G34: =SUMIFS('Accounting Data'!C$2:C$100000,'Accounting Data'!E$2:E$100000,"630",'Accounting Data'!J$2:J$100000,"671?") -> 0 | H34: =[1]!F695BudgFYO6710 -> 0 | I34: =SUMIFS('Accounting Data'!C$2:C$100000,'Accounting Data'!E$2:E$100000,"695",'Accounting Data'!J$2:J$100000,"671?") -> 3114740 | J34: =[1]!F620BudgFYO6710 -> 0 | K34: =SUMIFS('Accounting Data'!C$2:C$100000,'Accounting Data'!E$2:E$100000,"620",'Accounting Data'!J$2:J$100000,"671?") -> 0 | L34: 6.
A35: 6720 Buildings and improvements | C35: 7. | D35: =[1]!F610BudgFYO6720 -> 0 | E35: =SUMIFS('Accounting Data'!C$2:C$100000,'Accounting Data'!E$2:E$100000,"610",'Accounting Data'!J$2:J$100000,"672?") -> 0 | F35: =[1]!F630BudgFYO6720 -> 0 | G35: =SUMIFS('Accounting Data'!C$2:C$100000,'Accounting Data'!E$2:E$100000,"630",'Accounting Data'!J$2:J$100000,"672?") -> 0 | H35: =[1]!F695BudgFYO6720 -> 0 | I35: =SUMIFS('Accounting Data'!C$2:C$100000,'Accounting Data'!E$2:E$100000,"695",'Accounting Data'!J$2:J$100000,"672?") -> 0 | J35: =[1]!F620BudgFYO6720 -> 0 | K35: =SUMIFS('Accounting Data'!C$2:C$100000,'Accounting Data'!E$2:E$100000,"620",'Accounting Data'!J$2:J$100000,"672?") -> 0 | L35: 7.
A36: 673X Furniture and equipment | C36: 8. | D36: =[1]!F610BudgFYO6731 -> 208527 | E36: =SUMIFS('Accounting Data'!C2:C100000,'Accounting Data'!E2:E100000,"610",'Accounting Data'!J2:J100000,"6731")+SUMIFS('Accounting Data'!C2:C100000,'Accounting Data'!E2:E100000,"610",'Accounting Data'!J2:J100000,"6732")+SUMIFS('Accounting Data'!C2:C100000,'Accounting Data'!E2:E100000,"610",'Accounting Data'!J2:J100000,"6733") -> 227200 | F36: =[1]!F630BudgFYO6731 -> 150000 | G36: =SUMIFS('Accounting Data'!C2:C100000,'Accounting Data'!E2:E100000,"630",'Accounting Data'!J2:J100000,"6731")+SUMIFS('Accounting Data'!C2:C100000,'Accounting Data'!E2:E100000,"630",'Accounting Data'!J2:J100000,"6732")+SUMIFS('Accounting Data'!C2:C100000,'Accounting Data'!E2:E100000,"630",'Accounting Data'!J2:J100000,"6733") -> 96861 | H36: =[1]!F695BudgFYO6731 -> 0 | I36: =SUMIFS('Accounting Data'!C2:C100000,'Accounting Data'!E2:E100000,"695",'Accounting Data'!J2:J100000,"6731")+SUMIFS('Accounting Data'!C2:C100000,'Accounting Data'!E2:E100000,"695",'Accounting Data'!J2:J100000,"6732")+SUMIFS('Accounting Data'!C2:C100000,'Accounting Data'!E2:E100000,"695",'Accounting Data'!J2:J100000,"6733") -> 0 | J36: =[1]!F620BudgFYO6731 -> 0 | K36: =SUMIFS('Accounting Data'!C2:C100000,'Accounting Data'!E2:E100000,"620",'Accounting Data'!J2:J100000,"6731")+SUMIFS('Accounting Data'!C2:C100000,'Accounting Data'!E2:E100000,"620",'Accounting Data'!J2:J100000,"6732")+SUMIFS('Accounting Data'!C2:C100000,'Accounting Data'!E2:E100000,"620",'Accounting Data'!J2:J100000,"6733") -> 0 | L36: 8.
A37: 673X Vehicles | C37: 9. | D37: =[1]!F610BudgFYO6734 -> 62073 | E37: =SUMIFS('Accounting Data'!C2:C100000,'Accounting Data'!E2:E100000,"610",'Accounting Data'!J2:J100000,"6734")+SUMIFS('Accounting Data'!C2:C100000,'Accounting Data'!E2:E100000,"610",'Accounting Data'!J2:J100000,"6735")+SUMIFS('Accounting Data'!C2:C100000,'Accounting Data'!E2:E100000,"610",'Accounting Data'!J2:J100000,"6736") -> 62073 | F37: =[1]!F630BudgFYO6734 -> 100000 | G37: =SUMIFS('Accounting Data'!C2:C100000,'Accounting Data'!E2:E100000,"630",'Accounting Data'!J2:J100000,"6734")+SUMIFS('Accounting Data'!C2:C100000,'Accounting Data'!E2:E100000,"630",'Accounting Data'!J2:J100000,"6735")+SUMIFS('Accounting Data'!C2:C100000,'Accounting Data'!E2:E100000,"630",'Accounting Data'!J2:J100000,"6736") -> 0 | H37: =[1]!F695BudgFYO6734 -> 0 | I37: =SUMIFS('Accounting Data'!C2:C100000,'Accounting Data'!E2:E100000,"695",'Accounting Data'!J2:J100000,"6734")+SUMIFS('Accounting Data'!C2:C100000,'Accounting Data'!E2:E100000,"695",'Accounting Data'!J2:J100000,"6735")+SUMIFS('Accounting Data'!C2:C100000,'Accounting Data'!E2:E100000,"695",'Accounting Data'!J2:J100000,"6736") -> 0 | J37: =[1]!F620BudgFYO6734 -> 0 | K37: =SUMIFS('Accounting Data'!C2:C100000,'Accounting Data'!E2:E100000,"620",'Accounting Data'!J2:J100000,"6734")+SUMIFS('Accounting Data'!C2:C100000,'Accounting Data'!E2:E100000,"620",'Accounting Data'!J2:J100000,"6735")+SUMIFS('Accounting Data'!C2:C100000,'Accounting Data'!E2:E100000,"620",'Accounting Data'!J2:J100000,"6736") -> 0 | L37: 9.
A38: 673X Technology-related hardware and software | C38: 10. | D38: =[1]!F610BudgFYO6737 -> 254430 | E38: =SUMIFS('Accounting Data'!C2:C100000,'Accounting Data'!E2:E100000,"610",'Accounting Data'!J2:J100000,"6737")+SUMIFS('Accounting Data'!C2:C100000,'Accounting Data'!E2:E100000,"610",'Accounting Data'!J2:J100000,"6738")+SUMIFS('Accounting Data'!C2:C100000,'Accounting Data'!E2:E100000,"610",'Accounting Data'!J2:J100000,"6739") -> 249912 | F38: =[1]!F630BudgFYO6737 -> 75000 | G38: =SUMIFS('Accounting Data'!C2:C100000,'Accounting Data'!E2:E100000,"630",'Accounting Data'!J2:J100000,"6737")+SUMIFS('Accounting Data'!C2:C100000,'Accounting Data'!E2:E100000,"630",'Accounting Data'!J2:J100000,"6738")+SUMIFS('Accounting Data'!C2:C100000,'Accounting Data'!E2:E100000,"630",'Accounting Data'!J2:J100000,"6739") -> 139056 | H38: =[1]!F695BudgFYO6737 -> 0 | I38: =SUMIFS('Accounting Data'!C2:C100000,'Accounting Data'!E2:E100000,"695",'Accounting Data'!J2:J100000,"6737")+SUMIFS('Accounting Data'!C2:C100000,'Accounting Data'!E2:E100000,"695",'Accounting Data'!J2:J100000,"6738")+SUMIFS('Accounting Data'!C2:C100000,'Accounting Data'!E2:E100000,"695",'Accounting Data'!J2:J100000,"6739") -> 0 | J38: =[1]!F620BudgFYO6737 -> 0 | K38: =SUMIFS('Accounting Data'!C2:C100000,'Accounting Data'!E2:E100000,"620",'Accounting Data'!J2:J100000,"6737")+SUMIFS('Accounting Data'!C2:C100000,'Accounting Data'!E2:E100000,"620",'Accounting Data'!J2:J100000,"6738")+SUMIFS('Accounting Data'!C2:C100000,'Accounting Data'!E2:E100000,"620",'Accounting Data'!J2:J100000,"6739") -> 0 | L38: 10.
A39: 6831, 6832, 6833 Redemption of principal | C39: 11. | D39: =[1]!F610BudgFYO6831 -> 0 | E39: =SUMIFS('Accounting Data'!C2:C100000,'Accounting Data'!E2:E100000,"610",'Accounting Data'!J2:J100000,"6831")+SUMIFS('Accounting Data'!C2:C100000,'Accounting Data'!E2:E100000,"610",'Accounting Data'!J2:J100000,"6832")+SUMIFS('Accounting Data'!C2:C100000,'Accounting Data'!E2:E100000,"610",'Accounting Data'!J2:J100000,"6833") -> 0 | F39: =[1]!F630BudgFYO6831 -> 17135 | G39: =SUMIFS('Accounting Data'!C2:C100000,'Accounting Data'!E2:E100000,"630",'Accounting Data'!J2:J100000,"6831")+SUMIFS('Accounting Data'!C2:C100000,'Accounting Data'!E2:E100000,"630",'Accounting Data'!J2:J100000,"6832")+SUMIFS('Accounting Data'!C2:C100000,'Accounting Data'!E2:E100000,"630",'Accounting Data'!J2:J100000,"6833") -> 277838 | H39: =[1]!F695BudgFYO6831 -> 0 | I39: =SUMIFS('Accounting Data'!C2:C100000,'Accounting Data'!E2:E100000,"695",'Accounting Data'!J2:J100000,"6831")+SUMIFS('Accounting Data'!C2:C100000,'Accounting Data'!E2:E100000,"695",'Accounting Data'!J2:J100000,"6832")+SUMIFS('Accounting Data'!C2:C100000,'Accounting Data'!E2:E100000,"695",'Accounting Data'!J2:J100000,"6833") -> 0 | J39: =[1]!F620BudgFYO6831 -> 0 | K39: =SUMIFS('Accounting Data'!C2:C100000,'Accounting Data'!E2:E100000,"620",'Accounting Data'!J2:J100000,"6831")+SUMIFS('Accounting Data'!C2:C100000,'Accounting Data'!E2:E100000,"620",'Accounting Data'!J2:J100000,"6832")+SUMIFS('Accounting Data'!C2:C100000,'Accounting Data'!E2:E100000,"620",'Accounting Data'!J2:J100000,"6833") -> 0 | L39: 11.
A40: 6841, 6842, 6843, 6850, 6860 Interest | C40: 12. | D40: =[1]!F610BudgFYO6841 -> 0 | E40: =SUMIFS('Accounting Data'!C2:C100000,'Accounting Data'!E2:E100000,"610",'Accounting Data'!J2:J100000,"6841")+SUMIFS('Accounting Data'!C2:C100000,'Accounting Data'!E2:E100000,"610",'Accounting Data'!J2:J100000,"6842")+SUMIFS('Accounting Data'!C2:C100000,'Accounting Data'!E2:E100000,"610",'Accounting Data'!J2:J100000,"6850")+SUMIFS('Accounting Data'!C2:C100000,'Accounting Data'!E2:E100000,"610",'Accounting Data'!J2:J100000,"6843") -> 0 | F40: =[1]!F630BudgFYO6841 -> 0 | G40: =SUMIFS('Accounting Data'!C2:C100000,'Accounting Data'!E2:E100000,"630",'Accounting Data'!J2:J100000,"6841")+SUMIFS('Accounting Data'!C2:C100000,'Accounting Data'!E2:E100000,"630",'Accounting Data'!J2:J100000,"6842")+SUMIFS('Accounting Data'!C2:C100000,'Accounting Data'!E2:E100000,"630",'Accounting Data'!J2:J100000,"6850")+SUMIFS('Accounting Data'!C2:C100000,'Accounting Data'!E2:E100000,"630",'Accounting Data'!J2:J100000,"6860")+SUMIFS('Accounting Data'!C2:C100000,'Accounting Data'!E2:E100000,"630",'Accounting Data'!J2:J100000,"6843") -> 0 | H40: =[1]!F695BudgFYO6841 -> 0 | I40: =SUMIFS('Accounting Data'!C2:C100000,'Accounting Data'!E2:E100000,"695",'Accounting Data'!J2:J100000,"6841")+SUMIFS('Accounting Data'!C2:C100000,'Accounting Data'!E2:E100000,"695",'Accounting Data'!J2:J100000,"6842")+SUMIFS('Accounting Data'!C2:C100000,'Accounting Data'!E2:E100000,"695",'Accounting Data'!J2:J100000,"6850")+SUMIFS('Accounting Data'!C2:C100000,'Accounting Data'!E2:E100000,"695",'Accounting Data'!J2:J100000,"6843") -> 0 | J40: =[1]!F620BudgFYO6841 -> 0 | K40: =SUMIFS('Accounting Data'!C2:C100000,'Accounting Data'!E2:E100000,"620",'Accounting Data'!J2:J100000,"6841")+SUMIFS('Accounting Data'!C2:C100000,'Accounting Data'!E2:E100000,"620",'Accounting Data'!J2:J100000,"6842")+SUMIFS('Accounting Data'!C2:C100000,'Accounting Data'!E2:E100000,"620",'Accounting Data'!J2:J100000,"6850")+SUMIFS('Accounting Data'!C2:C100000,'Accounting Data'!E2:E100000,"620",'Accounting Data'!J2:J100000,"6843") -> 0 | L40: 12.
A41: Total (lines 2-12) | C41: 13. | D41: =SUM(D30:D40) -> 1627477 | E41: 1089995 | F41: 17724921 | G41: 13400515 | H41: 21923031 | I41: 20942717 | J41: 4710019 | K41: 3209060 | L41: 13.
A42: Total amounts reported on lines 2 through 12 above for:
A43: Renovation | C43: 14. | D43: =[1]!F610BudgFYRenovation -> 1077447 | E43: 77447 | F43: =[1]!F630BudgFYRenovation -> 5243271 | G43: 1103993 | J43: =[1]!F620BudgFYRenovation -> 0 | K43: 0 | L43: 14. | AA43: =IF(OR(E43="",E44="",E45="",G43="",G44="",G45="",I44="",I45="",K43="",K44="",K45=""),"yes","") -> 
A44: New construction | C44: 15. | D44: =[1]!F610BudgFYNewConstruction -> 0 | E44: 0 | F44: =[1]!F630BudgFYNewConstruction -> 12139515 | G44: 11782768 | H44: =[1]!F695BudgFYNewConstruction -> 21923031 | I44: 17827977 | J44: =[1]!F620BudgFYNewConstruction -> 4210019 | K44: 3209060 | L44: 15.
A45: Other | C45: 16. | D45: =[1]!F610BudgFYOther -> 550030 | E45: 1012548 | F45: =[1]!F630BudgFYOther -> 342135 | G45: 513754 | H45: =[1]!F695BudgFYOther -> 0 | I45: 3114740 | J45: =[1]!F620BudgFYOther -> 500000 | K45: 0 | L45: 16.
A46: Total (lines 14-16) | C46: 17. | D46: =IF(ROUND(SUM(D43:D45),0)=ROUND(SUM(D30:D40),0),SUM(D43:D45),"Must equal line 13") -> 1627477 | E46: =IF(ROUND(SUM(E43:E45),0)=ROUND(SUM(E30:E40),0),SUM(E43:E45),"Must equal line 13") -> 1089995 | F46: =IF(ROUND(SUM(F43:F45),0)=ROUND(SUM(F30:F40),0),SUM(F43:F45),"Must equal line 13") -> 17724921 | G46: =IF(ROUND(SUM(G43:G45),0)=ROUND(SUM(G30:G40),0),SUM(G43:G45),"Must equal line 13") -> 13400515 | H46: =IF(ROUND(SUM(H43:H45),0)=ROUND(SUM(H30:H40),0),SUM(H43:H45),"Must equal line 13") -> 21923031 | I46: =IF(ROUND(SUM(I43:I45),2)=ROUND(SUM(I30:I40),0),SUM(I44:I45),"Must equal line 13") -> 20942717 | J46: =IF(ROUND(SUM(J43:J45),0)=ROUND(SUM(J30:J40),0),SUM(J43:J45),"Must equal line 13") -> 4710019 | K46: =IF(ROUND(SUM(K43:K45),0)=ROUND(SUM(K30:K40),0),SUM(K43:K45),"Must equal line 13") -> 3209060 | L46: 17.
A48: Funds 610, 630, 695, and 620 | F48: Capital assets as of
A49: 1. New construction cost per square foot | C49: $ | D49: 387 | F49: June 30, 2025
A50: 2. Land acquisition costs | C50: $ | D50: 199703
F51: Land and improvements | H51: 16339228 | I51: 1. | AA51: =IF(OR(H51="",H52="",H53="",H55="",D49="",D50=""),"yes","") -> 
F52: Buildings and improvements | H52: 106322546 | I52: 2.
F53: Furniture, equipment, vehicles, | H53: 12150424
F54: and technology | I54: 3.
F55: Construction in progress | H55: 31981272 | I55: 4.
F57: Total | H57: =IF(H53="$","$",SUM(H51:H55)) -> 166793470 | I57: 5.

Sheet Page 5
A1: District name | B1: =CoverDistrictName -> Liberty Elementary School District No. 25 | F1: County | G1: =County -> Maricopa | I1: CTDS number | J1: =Cover!Q1 -> 070425000 | L1: General
A2: Federal and State Projects | L2: Capital projects
L3: Special revenue
A4: Instructions | L4: Debt service
G5: Net other financing sources and uses | K5: Fund types | O5: Other financing | P5: Other financing
E6: Beginning | J6: Ending | O6: sources including | P6: uses including | AA6: =IF(OR(K22="",K23="",K24="",K25="",K26="",K27="",K28=""),"yes","") -> 
E7: fund balance | F7: Revenues | G7: including transfers (1) | H7: Expenditures | J7: fund balance | O7: transfers-in | P7: transfers-out
A8: Federal projects | E8: Actual | F8: Actual | G8: Actual | H8: Budget | I8: Actual | J8: Actual | O8: 5000 (1) | P8: 6900 (1)
A9: 100-130 ESEA Title I - Helping Disadvantaged Children | D9: 1. | E9: ='Accounting Data'!R8 -> -56933 | F9: =-(SUMIFS('Accounting Data'!C2:C100000,'Accounting Data'!E2:E100000,"10?",'Accounting Data'!J2:J100000,"1???")+SUMIFS('Accounting Data'!C2:C100000,'Accounting Data'!E2:E100000,"11?",'Accounting Data'!J2:J100000,"1???")+SUMIFS('Accounting Data'!C2:C100000,'Accounting Data'!E2:E100000,"12?",'Accounting Data'!J2:J100000,"1???")+SUMIFS('Accounting Data'!C2:C100000,'Accounting Data'!E2:E100000,"13?",'Accounting Data'!J2:J100000,"1???")+SUMIFS('Accounting Data'!C2:C100000,'Accounting Data'!E2:E100000,"10?",'Accounting Data'!J2:J100000,"2???")+SUMIFS('Accounting Data'!C2:C100000,'Accounting Data'!E2:E100000,"11?",'Accounting Data'!J2:J100000,"2???")+SUMIFS('Accounting Data'!C2:C100000,'Accounting Data'!E2:E100000,"12?",'Accounting Data'!J2:J100000,"2???")+SUMIFS('Accounting Data'!C2:C100000,'Accounting Data'!E2:E100000,"13?",'Accounting Data'!J2:J100000,"2???")+SUMIFS('Accounting Data'!C2:C100000,'Accounting Data'!E2:E100000,"10?",'Accounting Data'!J2:J100000,"3???")+SUMIFS('Accounting Data'!C2:C100000,'Accounting Data'!E2:E100000,"11?",'Accounting Data'!J2:J100000,"3???")+SUMIFS('Accounting Data'!C2:C100000,'Accounting Data'!E2:E100000,"12?",'Accounting Data'!J2:J100000,"3???")+SUMIFS('Accounting Data'!C2:C100000,'Accounting Data'!E2:E100000,"13?",'Accounting Data'!J2:J100000,"3???")+SUMIFS('Accounting Data'!C2:C100000,'Accounting Data'!E2:E100000,"10?",'Accounting Data'!J2:J100000,"4???")+SUMIFS('Accounting Data'!C2:C100000,'Accounting Data'!E2:E100000,"11?",'Accounting Data'!J2:J100000,"4???")+SUMIFS('Accounting Data'!C2:C100000,'Accounting Data'!E2:E100000,"12?",'Accounting Data'!J2:J100000,"4???")+SUMIFS('Accounting Data'!C2:C100000,'Accounting Data'!E2:E100000,"13?",'Accounting Data'!J2:J100000,"4???")) -> 929360 | G9: =O9-P9 -> -64775 | H9: =[1]!F100130BudgFY -> 1585922 | I9: =(SUMIFS('Accounting Data'!C2:C100000,'Accounting Data'!E2:E100000,"10?",'Accounting Data'!J2:J100000,"6???")+SUMIFS('Accounting Data'!C2:C100000,'Accounting Data'!E2:E100000,"11?",'Accounting Data'!J2:J100000,"6???")+SUMIFS('Accounting Data'!C2:C100000,'Accounting Data'!E2:E100000,"12?",'Accounting Data'!J2:J100000,"6???")+SUMIFS('Accounting Data'!C2:C100000,'Accounting Data'!E2:E100000,"13?",'Accounting Data'!J2:J100000,"6???"))-P9 -> 1202530 | J9: =E9+F9+G9-I9 -> -394878 | K9: Special revenue | L9: 1. | N9: 1. | O9: =-(SUMIFS('Accounting Data'!C2:C100000,'Accounting Data'!E2:E100000,"10?",'Accounting Data'!J2:J100000,"5???")+SUMIFS('Accounting Data'!C2:C100000,'Accounting Data'!E2:E100000,"11?",'Accounting Data'!J2:J100000,"5???")+SUMIFS('Accounting Data'!C2:C100000,'Accounting Data'!E2:E100000,"12?",'Accounting Data'!J2:J100000,"5???")+SUMIFS('Accounting Data'!C2:C100000,'Accounting Data'!E2:E100000,"13?",'Accounting Data'!J2:J100000,"5???")) -> 0 | P9: =SUMIFS('Accounting Data'!C2:C100000,'Accounting Data'!E2:E100000,"10?",'Accounting Data'!J2:J100000,"69??")+SUMIFS('Accounting Data'!C2:C100000,'Accounting Data'!E2:E100000,"11?",'Accounting Data'!J2:J100000,"69??")+SUMIFS('Accounting Data'!C2:C100000,'Accounting Data'!E2:E100000,"12?",'Accounting Data'!J2:J100000,"69??")+SUMIFS('Accounting Data'!C2:C100000,'Accounting Data'!E2:E100000,"13?",'Accounting Data'!J2:J100000,"69??") -> 64775 | Q9: 1.
A10: 140-150 ESEA Title II - Prof. Development and Technology | D10: 2. | E10: ='Accounting Data'!R48 -> -54044 | F10: =-(SUMIFS('Accounting Data'!C2:C100000,'Accounting Data'!E2:E100000,"14?",'Accounting Data'!J2:J100000,"1???")+SUMIFS('Accounting Data'!C2:C100000,'Accounting Data'!E2:E100000,"15?",'Accounting Data'!J2:J100000,"1???")+SUMIFS('Accounting Data'!C2:C100000,'Accounting Data'!E2:E100000,"14?",'Accounting Data'!J2:J100000,"2???")+SUMIFS('Accounting Data'!C2:C100000,'Accounting Data'!E2:E100000,"15?",'Accounting Data'!J2:J100000,"2???")+SUMIFS('Accounting Data'!C2:C100000,'Accounting Data'!E2:E100000,"14?",'Accounting Data'!J2:J100000,"3???")+SUMIFS('Accounting Data'!C2:C100000,'Accounting Data'!E2:E100000,"15?",'Accounting Data'!J2:J100000,"3???")+SUMIFS('Accounting Data'!C2:C100000,'Accounting Data'!E2:E100000,"14?",'Accounting Data'!J2:J100000,"4???")+SUMIFS('Accounting Data'!C2:C100000,'Accounting Data'!E2:E100000,"15?",'Accounting Data'!J2:J100000,"4???")) -> 85715 | G10: =O10-P10 -> -5386 | H10: =[1]!F140150BudgFY -> 209561 | I10: =(SUMIFS('Accounting Data'!C2:C100000,'Accounting Data'!E2:E100000,"14?",'Accounting Data'!J2:J100000,"6???")+SUMIFS('Accounting Data'!C2:C100000,'Accounting Data'!E2:E100000,"15?",'Accounting Data'!J2:J100000,"6???"))-P10 -> 109688 | J10: =E10+F10+G10-I10 -> -83403 | K10: Special revenue | L10: 2. | N10: 2. | O10: =-(SUMIFS('Accounting Data'!C2:C100000,'Accounting Data'!E2:E100000,"14?",'Accounting Data'!J2:J100000,"5???")+SUMIFS('Accounting Data'!C2:C100000,'Accounting Data'!E2:E100000,"15?",'Accounting Data'!J2:J100000,"5???")) -> 0 | P10: =SUMIFS('Accounting Data'!C2:C100000,'Accounting Data'!E2:E100000,"14?",'Accounting Data'!J2:J100000,"69??")+SUMIFS('Accounting Data'!C2:C100000,'Accounting Data'!E2:E100000,"15?",'Accounting Data'!J2:J100000,"69??") -> 5386 | Q10: 2.
A11: 160 ESEA Title IV - 21st Century Schools | D11: 3. | E11: ='Accounting Data'!R68 -> -365 | F11: =-(SUMIFS('Accounting Data'!C2:C100000,'Accounting Data'!E2:E100000,"16?",'Accounting Data'!J2:J100000,"1???")+SUMIFS('Accounting Data'!C2:C100000,'Accounting Data'!E2:E100000,"16?",'Accounting Data'!J2:J100000,"2???")+SUMIFS('Accounting Data'!C2:C100000,'Accounting Data'!E2:E100000,"16?",'Accounting Data'!J2:J100000,"3???")+SUMIFS('Accounting Data'!C2:C100000,'Accounting Data'!E2:E100000,"16?",'Accounting Data'!J2:J100000,"4???")) -> 7039 | G11: -1380 | H11: =[1]!F160BudgFY -> 29762 | I11: =SUMIFS('Accounting Data'!C2:C100000,'Accounting Data'!E2:E100000,"16?",'Accounting Data'!J2:J100000,"6???")-P11 -> 28096 | J11: -22802 | K11: Special revenue | L11: 3. | N11: 3. | O11: =-(SUMIFS('Accounting Data'!C2:C100000,'Accounting Data'!E2:E100000,"16?",'Accounting Data'!J2:J100000,"5???")) -> 0 | P11: =SUMIFS('Accounting Data'!C2:C100000,'Accounting Data'!E2:E100000,"16?",'Accounting Data'!J2:J100000,"69??") -> 1380 | Q11: 3.
A12: 170-180 ESEA Title V - Promote Informed Parent Choice | D12: 4. | E12: ='Accounting Data'!R78 -> 0 | F12: =-(SUMIFS('Accounting Data'!C2:C100000,'Accounting Data'!E2:E100000,"17?",'Accounting Data'!J2:J100000,"1???")+SUMIFS('Accounting Data'!C2:C100000,'Accounting Data'!E2:E100000,"18?",'Accounting Data'!J2:J100000,"1???")+SUMIFS('Accounting Data'!C2:C100000,'Accounting Data'!E2:E100000,"17?",'Accounting Data'!J2:J100000,"2???")+SUMIFS('Accounting Data'!C2:C100000,'Accounting Data'!E2:E100000,"18?",'Accounting Data'!J2:J100000,"2???")+SUMIFS('Accounting Data'!C2:C100000,'Accounting Data'!E2:E100000,"17?",'Accounting Data'!J2:J100000,"3???")+SUMIFS('Accounting Data'!C2:C100000,'Accounting Data'!E2:E100000,"18?",'Accounting Data'!J2:J100000,"3???")+SUMIFS('Accounting Data'!C2:C100000,'Accounting Data'!E2:E100000,"17?",'Accounting Data'!J2:J100000,"4???")+SUMIFS('Accounting Data'!C2:C100000,'Accounting Data'!E2:E100000,"18?",'Accounting Data'!J2:J100000,"4???")) -> 0 | G12: 0 | H12: =[1]!F170180BudgFY -> 0 | I12: =(SUMIFS('Accounting Data'!C2:C100000,'Accounting Data'!E2:E100000,"17?",'Accounting Data'!J2:J100000,"6???")+SUMIFS('Accounting Data'!C2:C100000,'Accounting Data'!E2:E100000,"18?",'Accounting Data'!J2:J100000,"6???"))-P12 -> 0 | J12: 0 | K12: Special revenue | L12: 4. | N12: 4. | O12: =-(SUMIFS('Accounting Data'!C2:C100000,'Accounting Data'!E2:E100000,"17?",'Accounting Data'!J2:J100000,"5???")+SUMIFS('Accounting Data'!C2:C100000,'Accounting Data'!E2:E100000,"18?",'Accounting Data'!J2:J100000,"5???")) -> 0 | P12: =SUMIFS('Accounting Data'!C2:C100000,'Accounting Data'!E2:E100000,"17?",'Accounting Data'!J2:J100000,"69??")+SUMIFS('Accounting Data'!C2:C100000,'Accounting Data'!E2:E100000,"18?",'Accounting Data'!J2:J100000,"69??") -> 0 | Q12: 4.
A13: 190 ESEA Title III - Limited English & Immigrant Students | D13: 5. | E13: ='Accounting Data'!R98 -> -3394 | F13: =-(SUMIFS('Accounting Data'!C2:C100000,'Accounting Data'!E2:E100000,"19?",'Accounting Data'!J2:J100000,"1???")+SUMIFS('Accounting Data'!C2:C100000,'Accounting Data'!E2:E100000,"19?",'Accounting Data'!J2:J100000,"2???")+SUMIFS('Accounting Data'!C2:C100000,'Accounting Data'!E2:E100000,"19?",'Accounting Data'!J2:J100000,"3???")+SUMIFS('Accounting Data'!C2:C100000,'Accounting Data'!E2:E100000,"19?",'Accounting Data'!J2:J100000,"4???")) -> 16051 | G13: -2629 | H13: =[1]!F190BudgFY -> 86550 | I13: =SUMIFS('Accounting Data'!C2:C100000,'Accounting Data'!E2:E100000,"19?",'Accounting Data'!J2:J100000,"6???")-P13 -> 53538 | J13: -43510 | K13: Special revenue | L13: 5. | N13: 5. | O13: =-(SUMIFS('Accounting Data'!C2:C100000,'Accounting Data'!E2:E100000,"19?",'Accounting Data'!J2:J100000,"5???")) -> 0 | P13: =SUMIFS('Accounting Data'!C2:C100000,'Accounting Data'!E2:E100000,"19?",'Accounting Data'!J2:J100000,"69??") -> 2629 | Q13: 5.
A14: 200 ESEA Title VII - Indian Education | D14: 6. | E14: ='Accounting Data'!R108 -> 0 | F14: =-(SUMIFS('Accounting Data'!C2:C100000,'Accounting Data'!E2:E100000,"20?",'Accounting Data'!J2:J100000,"1???")+SUMIFS('Accounting Data'!C2:C100000,'Accounting Data'!E2:E100000,"20?",'Accounting Data'!J2:J100000,"2???")+SUMIFS('Accounting Data'!C2:C100000,'Accounting Data'!E2:E100000,"20?",'Accounting Data'!J2:J100000,"3???")+SUMIFS('Accounting Data'!C2:C100000,'Accounting Data'!E2:E100000,"20?",'Accounting Data'!J2:J100000,"4???")) -> 0 | G14: 0 | H14: =[1]!F200BudgFY -> 0 | I14: =SUMIFS('Accounting Data'!C2:C100000,'Accounting Data'!E2:E100000,"20?",'Accounting Data'!J2:J100000,"6???")-P14 -> 0 | J14: 0 | K14: Special revenue | L14: 6. | N14: 6. | O14: =-(SUMIFS('Accounting Data'!C2:C100000,'Accounting Data'!E2:E100000,"20?",'Accounting Data'!J2:J100000,"5???")) -> 0 | P14: =SUMIFS('Accounting Data'!C2:C100000,'Accounting Data'!E2:E100000,"20?",'Accounting Data'!J2:J100000,"69??") -> 0 | Q14: 6.
A15: 210 ESEA Title VI - Flexibility and Accountability | D15: 7. | E15: ='Accounting Data'!R118 -> 0 | F15: =-(SUMIFS('Accounting Data'!C2:C100000,'Accounting Data'!E2:E100000,"21?",'Accounting Data'!J2:J100000,"1???")+SUMIFS('Accounting Data'!C2:C100000,'Accounting Data'!E2:E100000,"21?",'Accounting Data'!J2:J100000,"2???")+SUMIFS('Accounting Data'!C2:C100000,'Accounting Data'!E2:E100000,"21?",'Accounting Data'!J2:J100000,"3???")+SUMIFS('Accounting Data'!C2:C100000,'Accounting Data'!E2:E100000,"21?",'Accounting Data'!J2:J100000,"4???")) -> 0 | G15: 0 | H15: =[1]!F210BudgFY -> 0 | I15: =SUMIFS('Accounting Data'!C2:C100000,'Accounting Data'!E2:E100000,"21?",'Accounting Data'!J2:J100000,"6???")-P15 -> 0 | J15: 0 | K15: Special revenue | L15: 7. | N15: 7. | O15: =-(SUMIFS('Accounting Data'!C2:C100000,'Accounting Data'!E2:E100000,"21?",'Accounting Data'!J2:J100000,"5???")) -> 0 | P15: =SUMIFS('Accounting Data'!C2:C100000,'Accounting Data'!E2:E100000,"21?",'Accounting Data'!J2:J100000,"69??") -> 0 | Q15: 7.
A16: 220 IDEA Part B | D16: 8. | E16: ='Accounting Data'!R128 -> -264398 | F16: =-(SUMIFS('Accounting Data'!C2:C100000,'Accounting Data'!E2:E100000,"22?",'Accounting Data'!J2:J100000,"1???")+SUMIFS('Accounting Data'!C2:C100000,'Accounting Data'!E2:E100000,"22?",'Accounting Data'!J2:J100000,"2???")+SUMIFS('Accounting Data'!C2:C100000,'Accounting Data'!E2:E100000,"22?",'Accounting Data'!J2:J100000,"3???")+SUMIFS('Accounting Data'!C2:C100000,'Accounting Data'!E2:E100000,"22?",'Accounting Data'!J2:J100000,"4???")) -> 822278 | G16: -34522 | H16: =[1]!F220BudgFY -> 1134872 | I16: =SUMIFS('Accounting Data'!C2:C100000,'Accounting Data'!E2:E100000,"22?",'Accounting Data'!J2:J100000,"6???")-P16 -> 703092 | J16: -179734 | K16: Special revenue | L16: 8. | N16: 8. | O16: =-(SUMIFS('Accounting Data'!C2:C100000,'Accounting Data'!E2:E100000,"22?",'Accounting Data'!J2:J100000,"5???")) -> 0 | P16: =SUMIFS('Accounting Data'!C2:C100000,'Accounting Data'!E2:E100000,"22?",'Accounting Data'!J2:J100000,"69??") -> 34522 | Q16: 8.
A17: 230 Johnson-O'Malley | D17: 9. | E17: ='Accounting Data'!R138 -> 0 | F17: =-(SUMIFS('Accounting Data'!C2:C100000,'Accounting Data'!E2:E100000,"23?",'Accounting Data'!J2:J100000,"1???")+SUMIFS('Accounting Data'!C2:C100000,'Accounting Data'!E2:E100000,"23?",'Accounting Data'!J2:J100000,"2???")+SUMIFS('Accounting Data'!C2:C100000,'Accounting Data'!E2:E100000,"23?",'Accounting Data'!J2:J100000,"3???")+SUMIFS('Accounting Data'!C2:C100000,'Accounting Data'!E2:E100000,"23?",'Accounting Data'!J2:J100000,"4???")) -> 0 | G17: 0 | H17: =[1]!F230BudgFY -> 0 | I17: =SUMIFS('Accounting Data'!C2:C100000,'Accounting Data'!E2:E100000,"23?",'Accounting Data'!J2:J100000,"6???")-P17 -> 0 | J17: 0 | K17: Special revenue | L17: 9. | N17: 9. | O17: =-(SUMIFS('Accounting Data'!C2:C100000,'Accounting Data'!E2:E100000,"23?",'Accounting Data'!J2:J100000,"5???")) -> 0 | P17: =SUMIFS('Accounting Data'!C2:C100000,'Accounting Data'!E2:E100000,"23?",'Accounting Data'!J2:J100000,"69??") -> 0 | Q17: 9.
A18: 240 Workforce Investment Act | D18: 10. | E18: ='Accounting Data'!R148 -> 0 | F18: =-(SUMIFS('Accounting Data'!C2:C100000,'Accounting Data'!E2:E100000,"24?",'Accounting Data'!J2:J100000,"1???")+SUMIFS('Accounting Data'!C2:C100000,'Accounting Data'!E2:E100000,"24?",'Accounting Data'!J2:J100000,"2???")+SUMIFS('Accounting Data'!C2:C100000,'Accounting Data'!E2:E100000,"24?",'Accounting Data'!J2:J100000,"3???")+SUMIFS('Accounting Data'!C2:C100000,'Accounting Data'!E2:E100000,"24?",'Accounting Data'!J2:J100000,"4???")) -> 0 | G18: 0 | H18: =[1]!F240BudgFY -> 0 | I18: =SUMIFS('Accounting Data'!C2:C100000,'Accounting Data'!E2:E100000,"24?",'Accounting Data'!J2:J100000,"6???")-P18 -> 0 | J18: 0 | K18: Special revenue | L18: 10. | N18: 10. | O18: =-(SUMIFS('Accounting Data'!C2:C100000,'Accounting Data'!E2:E100000,"24?",'Accounting Data'!J2:J100000,"5???")) -> 0 | P18: =SUMIFS('Accounting Data'!C2:C100000,'Accounting Data'!E2:E100000,"24?",'Accounting Data'!J2:J100000,"69??") -> 0 | Q18: 10.
A19: 250 AEA - Adult Education | D19: 11. | E19: ='Accounting Data'!R158 -> 0 | F19: =-(SUMIFS('Accounting Data'!C2:C100000,'Accounting Data'!E2:E100000,"25?",'Accounting Data'!J2:J100000,"1???")+SUMIFS('Accounting Data'!C2:C100000,'Accounting Data'!E2:E100000,"25?",'Accounting Data'!J2:J100000,"2???")+SUMIFS('Accounting Data'!C2:C100000,'Accounting Data'!E2:E100000,"25?",'Accounting Data'!J2:J100000,"3???")+SUMIFS('Accounting Data'!C2:C100000,'Accounting Data'!E2:E100000,"25?",'Accounting Data'!J2:J100000,"4???")) -> 0 | G19: 0 | H19: =[1]!F250BudgFY -> 0 | I19: =SUMIFS('Accounting Data'!C2:C100000,'Accounting Data'!E2:E100000,"25?",'Accounting Data'!J2:J100000,"6???")-P19 -> 0 | J19: 0 | K19: Special revenue | L19: 11. | N19: 11. | O19: =-(SUMIFS('Accounting Data'!C2:C100000,'Accounting Data'!E2:E100000,"25?",'Accounting Data'!J2:J100000,"5???")) -> 0 | P19: =SUMIFS('Accounting Data'!C2:C100000,'Accounting Data'!E2:E100000,"25?",'Accounting Data'!J2:J100000,"69??") -> 0 | Q19: 11.
A20: 260-270 Vocational Education - Basic Grants | D20: 12. | E20: ='Accounting Data'!R168 -> 0 | F20: =-(SUMIFS('Accounting Data'!C2:C100000,'Accounting Data'!E2:E100000,"26?",'Accounting Data'!J2:J100000,"1???")+SUMIFS('Accounting Data'!C2:C100000,'Accounting Data'!E2:E100000,"27?",'Accounting Data'!J2:J100000,"1???")+SUMIFS('Accounting Data'!C2:C100000,'Accounting Data'!E2:E100000,"26?",'Accounting Data'!J2:J100000,"2???")+SUMIFS('Accounting Data'!C2:C100000,'Accounting Data'!E2:E100000,"27?",'Accounting Data'!J2:J100000,"2???")+SUMIFS('Accounting Data'!C2:C100000,'Accounting Data'!E2:E100000,"26?",'Accounting Data'!J2:J100000,"3???")+SUMIFS('Accounting Data'!C2:C100000,'Accounting Data'!E2:E100000,"27?",'Accounting Data'!J2:J100000,"3???")+SUMIFS('Accounting Data'!C2:C100000,'Accounting Data'!E2:E100000,"26?",'Accounting Data'!J2:J100000,"4???")+SUMIFS('Accounting Data'!C2:C100000,'Accounting Data'!E2:E100000,"27?",'Accounting Data'!J2:J100000,"4???")) -> 0 | G20: 0 | H20: =[1]!F260270BudgFY -> 0 | I20: =(SUMIFS('Accounting Data'!C2:C65355,'Accounting Data'!E2:E65355,"26?",'Accounting Data'!J2:J65355,"6???")+SUMIFS('Accounting Data'!C2:C65355,'Accounting Data'!E2:E65355,"27?",'Accounting Data'!J2:J65355,"6???"))-P20 -> 0 | J20: =E20+F20+G20-I20 -> 0 | K20: Special revenue | L20: 12. | N20: 12. | O20: =-(SUMIFS('Accounting Data'!C2:C100000,'Accounting Data'!E2:E100000,"26?",'Accounting Data'!J2:J100000,"5???")+SUMIFS('Accounting Data'!C2:C100000,'Accounting Data'!E2:E100000,"27?",'Accounting Data'!J2:J100000,"5???")) -> 0 | P20: =SUMIFS('Accounting Data'!C2:C100000,'Accounting Data'!E2:E100000,"26?",'Accounting Data'!J2:J100000,"69??")+SUMIFS('Accounting Data'!C2:C100000,'Accounting Data'!E2:E100000,"27?",'Accounting Data'!J2:J100000,"69??") -> 0 | Q20: 12.
A21: 280 ESEA Title X - Homeless Education | D21: 13. | E21: ='Accounting Data'!R188 -> 0 | F21: =-(SUMIFS('Accounting Data'!C2:C100000,'Accounting Data'!E2:E100000,"28?",'Accounting Data'!J2:J100000,"1???")+SUMIFS('Accounting Data'!C2:C100000,'Accounting Data'!E2:E100000,"28?",'Accounting Data'!J2:J100000,"2???")+SUMIFS('Accounting Data'!C2:C100000,'Accounting Data'!E2:E100000,"28?",'Accounting Data'!J2:J100000,"3???")+SUMIFS('Accounting Data'!C2:C100000,'Accounting Data'!E2:E100000,"28?",'Accounting Data'!J2:J100000,"4???")) -> 0 | G21: 0 | H21: =[1]!F280BudgFY -> 0 | I21: =SUMIFS('Accounting Data'!C2:C100000,'Accounting Data'!E2:E100000,"28?",'Accounting Data'!J2:J100000,"6???")-P21 -> 0 | J21: 0 | K21: Special revenue | L21: 13. | N21: 13. | O21: =-(SUMIFS('Accounting Data'!C2:C100000,'Accounting Data'!E2:E100000,"28?",'Accounting Data'!J2:J100000,"5???")) -> 0 | P21: =SUMIFS('Accounting Data'!C2:C100000,'Accounting Data'!E2:E100000,"28?",'Accounting Data'!J2:J100000,"69??") -> 0 | Q21: 13.
A22: 290 Medicaid Reimbursement | D22: 14. | E22: ='Accounting Data'!R198 -> 1216064 | F22: =-(SUMIFS('Accounting Data'!C2:C100000,'Accounting Data'!E2:E100000,"29?",'Accounting Data'!J2:J100000,"1???")+SUMIFS('Accounting Data'!C2:C100000,'Accounting Data'!E2:E100000,"29?",'Accounting Data'!J2:J100000,"2???")+SUMIFS('Accounting Data'!C2:C100000,'Accounting Data'!E2:E100000,"29?",'Accounting Data'!J2:J100000,"3???")+SUMIFS('Accounting Data'!C2:C100000,'Accounting Data'!E2:E100000,"29?",'Accounting Data'!J2:J100000,"4???")) -> 215146 | G22: 0 | H22: =[1]!F290BudgFY -> 750000 | I22: =SUMIFS('Accounting Data'!C2:C100000,'Accounting Data'!E2:E100000,"29?",'Accounting Data'!J2:J100000,"6???")-P22 -> 786677 | J22: 644533 | K22: General | L22: 14. | N22: 14. | O22: =-(SUMIFS('Accounting Data'!C2:C100000,'Accounting Data'!E2:E100000,"29?",'Accounting Data'!J2:J100000,"5???")) -> 0 | P22: =SUMIFS('Accounting Data'!C2:C100000,'Accounting Data'!E2:E100000,"29?",'Accounting Data'!J2:J100000,"69??") -> 0 | Q22: 14.
A23: 349 National Forest Fees | D23: 15. | E23: ='Accounting Data'!R257 -> 0 | F23: =-SUM((SUMIFS('Accounting Data'!C2:C100000,'Accounting Data'!E2:E100000,"349",'Accounting Data'!J2:J100000,{"1???","2???","3???","4???"}))) -> 0 | G23: =O23-P23 -> 0 | H23: =[1]!F349BudFY -> 0 | I23: =SUMIFS('Accounting Data'!C2:C100000,'Accounting Data'!E2:E100000,"349",'Accounting Data'!J2:J100000,"6???")-P23 -> 0 | J23: 0 | K23: Special revenue | L23: 15. | N23: 15. | O23: =-(SUMIFS('Accounting Data'!C2:C100000,'Accounting Data'!E2:E100000,"349",'Accounting Data'!J2:J100000,"5???")) -> 0 | P23: =SUMIFS('Accounting Data'!C2:C100000,'Accounting Data'!E2:E100000,"349",'Accounting Data'!J2:J100000,"69??") -> 0 | Q23: 15.
A24: 353 Taylor Grazing Fees | D24: 16. | E24: ='Accounting Data'!R261 -> 0 | F24: =-SUM((SUMIFS('Accounting Data'!C2:C100000,'Accounting Data'!E2:E100000,"353",'Accounting Data'!J2:J100000,{"1???","2???","3???","4???"}))) -> 0 | G24: 0 | H24: =[1]!F353BudgFY -> 0 | I24: =SUMIFS('Accounting Data'!C2:C100000,'Accounting Data'!E2:E100000,"353",'Accounting Data'!J2:J100000,"6???")-P24 -> 0 | J24: 0 | K24: Special revenue | L24: 16. | N24: 16. | O24: =-(SUMIFS('Accounting Data'!C2:C100000,'Accounting Data'!E2:E100000,"353",'Accounting Data'!J2:J100000,"5???")) -> 0 | P24: =SUMIFS('Accounting Data'!C2:C100000,'Accounting Data'!E2:E100000,"353",'Accounting Data'!J2:J100000,"69??") -> 0 | Q24: 16.
A25: 374 E-Rate | D25: 17. | E25: ='Accounting Data'!R282 -> 619001 | F25: =-(SUMIFS('Accounting Data'!C2:C100000,'Accounting Data'!E2:E100000,"374",'Accounting Data'!J2:J100000,"1???")+SUMIFS('Accounting Data'!C2:C100000,'Accounting Data'!E2:E100000,"374",'Accounting Data'!J2:J100000,"2???")+SUMIFS('Accounting Data'!C2:C100000,'Accounting Data'!E2:E100000,"374",'Accounting Data'!J2:J100000,"3???")+SUMIFS('Accounting Data'!C2:C100000,'Accounting Data'!E2:E100000,"374",'Accounting Data'!J2:J100000,"4???")) -> 41782 | G25: 0 | H25: =[1]!F374BudgFY -> 600000 | I25: =SUMIFS('Accounting Data'!C2:C100000,'Accounting Data'!E2:E100000,"374",'Accounting Data'!J2:J100000,"6???")-P25 -> 306161 | J25: 354622 | K25: General | L25: 17. | N25: 17. | O25: =-(SUMIFS('Accounting Data'!C2:C100000,'Accounting Data'!E2:E100000,"374",'Accounting Data'!J2:J100000,"5???")) -> 0 | P25: =SUMIFS('Accounting Data'!C2:C100000,'Accounting Data'!E2:E100000,"374",'Accounting Data'!J2:J100000,"69??") -> 0 | Q25: 17.
A26: 378 Impact Aid | D26: 18. | E26: ='Accounting Data'!R286 -> 0 | F26: =-(SUMIFS('Accounting Data'!C2:C100000,'Accounting Data'!E2:E100000,"378",'Accounting Data'!J2:J100000,"1???")+SUMIFS('Accounting Data'!C2:C100000,'Accounting Data'!E2:E100000,"378",'Accounting Data'!J2:J100000,"2???")+SUMIFS('Accounting Data'!C2:C100000,'Accounting Data'!E2:E100000,"378",'Accounting Data'!J2:J100000,"3???")+SUMIFS('Accounting Data'!C2:C100000,'Accounting Data'!E2:E100000,"378",'Accounting Data'!J2:J100000,"4???")) -> 0 | G26: 0 | H26: =[1]!F378BudgFY -> 0 | I26: =(SUMIFS('Accounting Data'!C2:C100000,'Accounting Data'!E2:E100000,"378",'Accounting Data'!J2:J100000,"6???"))-P26 -> 0 | J26: 0 | K26: Special revenue | L26: 18. | N26: 18. | O26: =-(SUMIFS('Accounting Data'!C2:C100000,'Accounting Data'!E2:E100000,"378",'Accounting Data'!J2:J100000,"5???")) -> 0 | P26: =SUMIFS('Accounting Data'!C2:C100000,'Accounting Data'!E2:E100000,"378",'Accounting Data'!J2:J100000,"69??") -> 0 | Q26: 18.
A27: 300-399 Other Federal Projects | D27: 19. | E27: ='Accounting Data'!R208 -> -734196 | F27: =-(SUMIFS('Accounting Data'!C2:C100000,'Accounting Data'!E2:E100000,"3??",'Accounting Data'!J2:J100000,"1???")+SUMIFS('Accounting Data'!C2:C100000,'Accounting Data'!E2:E100000,"3??",'Accounting Data'!J2:J100000,"2???")+SUMIFS('Accounting Data'!C2:C100000,'Accounting Data'!E2:E100000,"3??",'Accounting Data'!J2:J100000,"3???")+SUMIFS('Accounting Data'!C2:C100000,'Accounting Data'!E2:E100000,"3??",'Accounting Data'!J2:J100000,"4???")+SUM(SUMIFS('Accounting Data'!C2:C100000,'Accounting Data'!E2:E100000,"COVID",'Accounting Data'!J2:J100000,{"1???","2???","3???","4???"})))-SUM(F23:F26) -> 1519045 | G27: 0 | H27: =[1]!F300399OtherBudgFY -> 168700 | I27: =(SUMIFS('Accounting Data'!C2:C100000,'Accounting Data'!E2:E100000,"3??",'Accounting Data'!J2:J100000,"6???")+SUMIFS('Accounting Data'!C2:C100000,'Accounting Data'!E2:E100000,"COVID",'Accounting Data'!J2:J100000,"6???"))-SUM(I23:I26,P23:P27) -> 749442 | J27: =E27+F27+G27-I27 -> 35407 | K27: Special revenue | L27: 19. | N27: 19. | O27: =-(SUMIFS('Accounting Data'!C2:C100000,'Accounting Data'!E2:E100000,"3??",'Accounting Data'!J2:J100000,"5???"))-(SUMIFS('Accounting Data'!C2:C100000,'Accounting Data'!E2:E100000,"COVID",'Accounting Data'!J2:J100000,"5???"))-SUM(O23:O26) -> 0 | P27: =SUMIFS('Accounting Data'!C2:C100000,'Accounting Data'!E2:E100000,"3??",'Accounting Data'!J2:J100000,"69??")+SUMIFS('Accounting Data'!C2:C100000,'Accounting Data'!E2:E100000,"COVID",'Accounting Data'!J2:J100000,"69??")-SUM(P23:P26) -> 0 | Q27: 19.
A28: 699 Federal Impact Aid (Construction) | D28: 20. | E28: ='Accounting Data'!R383 -> 0 | F28: =-(SUMIFS('Accounting Data'!C2:C100000,'Accounting Data'!E2:E100000,"699",'Accounting Data'!J2:J100000,"1???")+SUMIFS('Accounting Data'!C2:C100000,'Accounting Data'!E2:E100000,"699",'Accounting Data'!J2:J100000,"2???")+SUMIFS('Accounting Data'!C2:C100000,'Accounting Data'!E2:E100000,"699",'Accounting Data'!J2:J100000,"3???")+SUMIFS('Accounting Data'!C2:C100000,'Accounting Data'!E2:E100000,"699",'Accounting Data'!J2:J100000,"4???")) -> 0 | G28: 0 | H28: =[1]!F699BudgFY -> 0 | I28: =SUMIFS('Accounting Data'!C2:C100000,'Accounting Data'!E2:E100000,"699",'Accounting Data'!J2:J100000,"6???")-P28 -> 0 | J28: =E28+F28+G28-I28 -> 0 | K28: Special revenue | L28: 20. | N28: 20. | O28: =-(SUMIFS('Accounting Data'!C2:C100000,'Accounting Data'!E2:E100000,"699",'Accounting Data'!J2:J100000,"5???")) -> 0 | P28: =SUMIFS('Accounting Data'!C2:C100000,'Accounting Data'!E2:E100000,"699",'Accounting Data'!J2:J100000,"69??") -> 0 | Q28: 20.
A29: Total federal project funds (lines 1-20) | D29: 21. | E29: =SUM(E9:E28) -> 721735 | F29: 3636416 | G29: -108692 | H29: =SUM(H9:H28) -> 4565367 | I29: 3939224 | J29: 310235 | L29: 21.
A31: Total COVID-19 federal relief funds included in lines above | D31: 22. | E31: ='Accounting Data'!R541 -> -675489 | F31: =-((SUM(SUMIFS('Accounting Data'!C2:C100000,'Accounting Data'!E2:E100000,"COVID",'Accounting Data'!J2:J100000,{"1???","2???","3???","4???"})))+SUM(SUMIFS('Accounting Data'!C2:C100000,'Accounting Data'!E2:E100000,"227",'Accounting Data'!J2:J100000,{"1???","2???","3???","4???"}))+SUM(SUMIFS('Accounting Data'!C2:C100000,'Accounting Data'!E2:E100000,"228",'Accounting Data'!J2:J100000,{"1???","2???","3???","4???"}))) -> 1342116 | G31: =O31-P31 -> 0 | I31: =SUMIFS('Accounting Data'!C2:C100000,'Accounting Data'!E2:E100000,"COVID",'Accounting Data'!J2:J100000,"6???")+SUMIFS('Accounting Data'!C2:C100000,'Accounting Data'!E2:E100000,"227",'Accounting Data'!J2:J100000,"6???")+SUMIFS('Accounting Data'!C2:C100000,'Accounting Data'!E2:E100000,"228",'Accounting Data'!J2:J100000,"6???")-P31 -> 556195 | J31: =E31+F31+G31-I31 -> 110432 | L31: 22. | N31: 22. | O31: =-(SUM(SUMIFS('Accounting Data'!C2:C100000,'Accounting Data'!E2:E100000,{"COVID","227","228"},'Accounting Data'!J2:J100000,"5???"))) -> 0 | P31: =(SUM(SUMIFS('Accounting Data'!C2:C100000,'Accounting Data'!E2:E100000,{"COVID","227","228"},'Accounting Data'!J2:J100000,"69??"))) -> 0 | Q31: 22.
A35: State projects | O35: Other financing sources (2) | P35: Other financing uses (2)
A36: 400 Vocational Education | D36: 23. | E36: ='Accounting Data'!R308 -> 0 | F36: =-(SUMIFS('Accounting Data'!C2:C100000,'Accounting Data'!E2:E100000,"400",'Accounting Data'!J2:J100000,"1???")+SUMIFS('Accounting Data'!C2:C100000,'Accounting Data'!E2:E100000,"400",'Accounting Data'!J2:J100000,"2???")+SUMIFS('Accounting Data'!C2:C100000,'Accounting Data'!E2:E100000,"400",'Accounting Data'!J2:J100000,"3???")+SUMIFS('Accounting Data'!C2:C100000,'Accounting Data'!E2:E100000,"400",'Accounting Data'!J2:J100000,"4???")) -> 0 | G36: =O36-P36 -> 0 | H36: =[1]!F400BudgFY -> 0 | I36: =SUMIFS('Accounting Data'!C2:C100000,'Accounting Data'!E2:E100000,"400",'Accounting Data'!J2:J100000,"6???")-P36 -> 0 | J36: =E36+F36+G36-I36 -> 0 | K36: Special revenue | L36: 23. | N36: 23. | O36: =-(SUMIFS('Accounting Data'!C2:C100000,'Accounting Data'!E2:E100000,"400",'Accounting Data'!J2:J100000,"5???")) -> 0 | P36: =SUMIFS('Accounting Data'!C$2:C$100000,'Accounting Data'!E$2:E$100000,"400",'Accounting Data'!J$2:J$100000,"69??") -> 0 | Q36: 23.
A37: 410 Early Childhood Block Grant | D37: 24. | E37: ='Accounting Data'!R309 -> 0 | F37: =-(SUMIFS('Accounting Data'!C2:C100000,'Accounting Data'!E2:E100000,"410",'Accounting Data'!J2:J100000,"1???")+SUMIFS('Accounting Data'!C2:C100000,'Accounting Data'!E2:E100000,"410",'Accounting Data'!J2:J100000,"2???")+SUMIFS('Accounting Data'!C2:C100000,'Accounting Data'!E2:E100000,"410",'Accounting Data'!J2:J100000,"3???")+SUMIFS('Accounting Data'!C2:C100000,'Accounting Data'!E2:E100000,"410",'Accounting Data'!J2:J100000,"4???")) -> 0 | G37: 0 | H37: =[1]!F410BudgFY -> 0 | I37: =SUMIFS('Accounting Data'!C2:C100000,'Accounting Data'!E2:E100000,"410",'Accounting Data'!J2:J100000,"6???")-P37 -> 0 | J37: =E37+F37+G37-I37 -> 0 | K37: Special revenue | L37: 24 | N37: 24 | O37: =-(SUMIFS('Accounting Data'!C2:C100000,'Accounting Data'!E2:E100000,"410",'Accounting Data'!J2:J100000,"5???")) -> 0 | P37: =SUMIFS('Accounting Data'!C$2:C$100000,'Accounting Data'!E$2:E$100000,"410",'Accounting Data'!J$2:J$100000,"69??") -> 0 | Q37: 24
A38: 420 Ext. School Yr. - Pupils with Disabilities | D38: 25. | E38: ='Accounting Data'!R310 -> 0 | F38: =-(SUMIFS('Accounting Data'!C2:C100000,'Accounting Data'!E2:E100000,"420",'Accounting Data'!J2:J100000,"1???")+SUMIFS('Accounting Data'!C2:C100000,'Accounting Data'!E2:E100000,"420",'Accounting Data'!J2:J100000,"2???")+SUMIFS('Accounting Data'!C2:C100000,'Accounting Data'!E2:E100000,"420",'Accounting Data'!J2:J100000,"3???")+SUMIFS('Accounting Data'!C2:C100000,'Accounting Data'!E2:E100000,"420",'Accounting Data'!J2:J100000,"4???")) -> 0 | G38: 0 | H38: =[1]!F420BudgFY -> 0 | I38: =SUMIFS('Accounting Data'!C2:C100000,'Accounting Data'!E2:E100000,"420",'Accounting Data'!J2:J100000,"6???")-P38 -> 0 | J38: 0 | K38: Special revenue | L38: 25. | N38: 25. | O38: =-(SUMIFS('Accounting Data'!C2:C100000,'Accounting Data'!E2:E100000,"420",'Accounting Data'!J2:J100000,"5???")) -> 0 | P38: =SUMIFS('Accounting Data'!C$2:C$100000,'Accounting Data'!E$2:E$100000,"420",'Accounting Data'!J$2:J$100000,"69??") -> 0 | Q38: 25.
A39: 425 Adult Basic Education | D39: 26. | E39: ='Accounting Data'!R311 -> 0 | F39: =-(SUMIFS('Accounting Data'!C2:C100000,'Accounting Data'!E2:E100000,"425",'Accounting Data'!J2:J100000,"1???")+SUMIFS('Accounting Data'!C2:C100000,'Accounting Data'!E2:E100000,"425",'Accounting Data'!J2:J100000,"2???")+SUMIFS('Accounting Data'!C2:C100000,'Accounting Data'!E2:E100000,"425",'Accounting Data'!J2:J100000,"3???")+SUMIFS('Accounting Data'!C2:C100000,'Accounting Data'!E2:E100000,"425",'Accounting Data'!J2:J100000,"4???")) -> 0 | G39: 0 | H39: =[1]!F425BudgFY -> 0 | I39: =SUMIFS('Accounting Data'!C2:C100000,'Accounting Data'!E2:E100000,"425",'Accounting Data'!J2:J100000,"6???")-P39 -> 0 | J39: 0 | K39: Special revenue | L39: 26. | N39: 26. | O39: =-(SUMIFS('Accounting Data'!C2:C100000,'Accounting Data'!E2:E100000,"425",'Accounting Data'!J2:J100000,"5???")) -> 0 | P39: =SUMIFS('Accounting Data'!C$2:C$100000,'Accounting Data'!E$2:E$100000,"425",'Accounting Data'!J$2:J$100000,"69??") -> 0 | Q39: 26.
A40: 430 Chemical Abuse Prevention Programs | D40: 27. | E40: ='Accounting Data'!R312 -> 0 | F40: =-(SUMIFS('Accounting Data'!C2:C100000,'Accounting Data'!E2:E100000,"430",'Accounting Data'!J2:J100000,"1???")+SUMIFS('Accounting Data'!C2:C100000,'Accounting Data'!E2:E100000,"430",'Accounting Data'!J2:J100000,"2???")+SUMIFS('Accounting Data'!C2:C100000,'Accounting Data'!E2:E100000,"430",'Accounting Data'!J2:J100000,"3???")+SUMIFS('Accounting Data'!C2:C100000,'Accounting Data'!E2:E100000,"430",'Accounting Data'!J2:J100000,"4???")) -> 0 | G40: 0 | H40: =[1]!F430BudgFY -> 0 | I40: =SUMIFS('Accounting Data'!C2:C100000,'Accounting Data'!E2:E100000,"430",'Accounting Data'!J2:J100000,"6???")-P40 -> 0 | J40: =E40+F40+G40-I40 -> 0 | K40: Special revenue | L40: 27. | N40: 27. | O40: =-(SUMIFS('Accounting Data'!C2:C100000,'Accounting Data'!E2:E100000,"430",'Accounting Data'!J2:J100000,"5???")) -> 0 | P40: =SUMIFS('Accounting Data'!C$2:C$100000,'Accounting Data'!E$2:E$100000,"430",'Accounting Data'!J$2:J$100000,"69??") -> 0 | Q40: 27.
A41: 435 Academic Contests | D41: 28. | E41: ='Accounting Data'!R313 -> 0 | F41: =-(SUMIFS('Accounting Data'!C2:C100000,'Accounting Data'!E2:E100000,"435",'Accounting Data'!J2:J100000,"1???")+SUMIFS('Accounting Data'!C2:C100000,'Accounting Data'!E2:E100000,"435",'Accounting Data'!J2:J100000,"2???")+SUMIFS('Accounting Data'!C2:C100000,'Accounting Data'!E2:E100000,"435",'Accounting Data'!J2:J100000,"3???")+SUMIFS('Accounting Data'!C2:C100000,'Accounting Data'!E2:E100000,"435",'Accounting Data'!J2:J100000,"4???")) -> 0 | G41: 0 | H41: =[1]!F435BudgFY -> 0 | I41: =SUMIFS('Accounting Data'!C2:C100000,'Accounting Data'!E2:E100000,"435",'Accounting Data'!J2:J100000,"6???")-P41 -> 0 | J41: 0 | K41: Special revenue | L41: 28. | N41: 28. | O41: =-(SUMIFS('Accounting Data'!C2:C100000,'Accounting Data'!E2:E100000,"435",'Accounting Data'!J2:J100000,"5???")) -> 0 | P41: =SUMIFS('Accounting Data'!C$2:C$100000,'Accounting Data'!E$2:E$100000,"435",'Accounting Data'!J$2:J$100000,"69??") -> 0 | Q41: 28.
A42: 450 Gifted Education | D42: 29. | E42: ='Accounting Data'!R314 -> 0 | F42: =-(SUMIFS('Accounting Data'!C2:C100000,'Accounting Data'!E2:E100000,"450",'Accounting Data'!J2:J100000,"1???")+SUMIFS('Accounting Data'!C2:C100000,'Accounting Data'!E2:E100000,"450",'Accounting Data'!J2:J100000,"2???")+SUMIFS('Accounting Data'!C2:C100000,'Accounting Data'!E2:E100000,"450",'Accounting Data'!J2:J100000,"3???")+SUMIFS('Accounting Data'!C2:C100000,'Accounting Data'!E2:E100000,"450",'Accounting Data'!J2:J100000,"4???")) -> 0 | G42: 0 | H42: =[1]!F450BudgFY -> 0 | I42: =SUMIFS('Accounting Data'!C2:C100000,'Accounting Data'!E2:E100000,"450",'Accounting Data'!J2:J100000,"6???")-P42 -> 0 | J42: 0 | K42: Special revenue | L42: 29. | N42: 29. | O42: =-(SUMIFS('Accounting Data'!C2:C100000,'Accounting Data'!E2:E100000,"450",'Accounting Data'!J2:J100000,"5???")) -> 0 | P42: =SUMIFS('Accounting Data'!C$2:C$100000,'Accounting Data'!E$2:E$100000,"450",'Accounting Data'!J$2:J$100000,"69??") -> 0 | Q42: 29.
A43: 456 College Credit Exam Incentives | D43: 30. | E43: ='Accounting Data'!R315 -> 0 | F43: =-(SUMIFS('Accounting Data'!C2:C100000,'Accounting Data'!E2:E100000,"456",'Accounting Data'!J2:J100000,"1???")+SUMIFS('Accounting Data'!C2:C100000,'Accounting Data'!E2:E100000,"456",'Accounting Data'!J2:J100000,"2???")+SUMIFS('Accounting Data'!C2:C100000,'Accounting Data'!E2:E100000,"456",'Accounting Data'!J2:J100000,"3???")+SUMIFS('Accounting Data'!C2:C100000,'Accounting Data'!E2:E100000,"456",'Accounting Data'!J2:J100000,"4???")) -> 0 | G43: 0 | H43: =[1]!F456BudgFY -> 0 | I43: =SUMIFS('Accounting Data'!C2:C100000,'Accounting Data'!E2:E100000,"456",'Accounting Data'!J2:J100000,"6???")-P43 -> 0 | J43: 0 | K43: Special revenue | L43: 30. | N43: 30. | O43: =-(SUMIFS('Accounting Data'!C2:C100000,'Accounting Data'!E2:E100000,"456",'Accounting Data'!J2:J100000,"5???")) -> 0 | P43: =SUMIFS('Accounting Data'!C$2:C$100000,'Accounting Data'!E$2:E$100000,"456",'Accounting Data'!J$2:J$100000,"69??") -> 0 | Q43: 30.
A44: 460 Environmental Special Plate | D44: 31. | E44: ='Accounting Data'!R316 -> 0 | F44: =-(SUMIFS('Accounting Data'!C2:C100000,'Accounting Data'!E2:E100000,"460",'Accounting Data'!J2:J100000,"1???")+SUMIFS('Accounting Data'!C2:C100000,'Accounting Data'!E2:E100000,"460",'Accounting Data'!J2:J100000,"2???")+SUMIFS('Accounting Data'!C2:C100000,'Accounting Data'!E2:E100000,"460",'Accounting Data'!J2:J100000,"3???")+SUMIFS('Accounting Data'!C2:C100000,'Accounting Data'!E2:E100000,"460",'Accounting Data'!J2:J100000,"4???")) -> 0 | G44: 0 | H44: =[1]!F460BudgFY -> 0 | I44: =SUMIFS('Accounting Data'!C2:C100000,'Accounting Data'!E2:E100000,"460",'Accounting Data'!J2:J100000,"6???")-P44 -> 0 | J44: =E44+F44+G44-I44 -> 0 | K44: Special revenue | L44: 31. | N44: 31. | O44: =-(SUMIFS('Accounting Data'!C2:C100000,'Accounting Data'!E2:E100000,"460",'Accounting Data'!J2:J100000,"5???")) -> 0 | P44: =SUMIFS('Accounting Data'!C$2:C$100000,'Accounting Data'!E$2:E$100000,"460",'Accounting Data'!J$2:J$100000,"69??") -> 0 | Q44: 31.
A45: 465-499 Other State Projects | D45: 32. | E45: ='Accounting Data'!R317 -> -17963 | F45: =-(SUMIFS('Accounting Data'!C2:C100000,'Accounting Data'!E2:E100000,"4??",'Accounting Data'!J2:J100000,"1???")+SUMIFS('Accounting Data'!C2:C100000,'Accounting Data'!E2:E100000,"4??",'Accounting Data'!J2:J100000,"2???")+SUMIFS('Accounting Data'!C2:C100000,'Accounting Data'!E2:E100000,"4??",'Accounting Data'!J2:J100000,"3???")+SUMIFS('Accounting Data'!C2:C100000,'Accounting Data'!E2:E100000,"4??",'Accounting Data'!J2:J100000,"4???"))-SUM(F36:F44) -> 18929 | G45: 0 | H45: =[1]!F465499BudgFY -> 63751 | I45: =SUMIFS('Accounting Data'!C2:C100000,'Accounting Data'!E2:E100000,"4??",'Accounting Data'!J2:J100000,"6???")-SUM(I36:I44)-SUM(P36:P44)-P45 -> 79194 | J45: =E45+F45+G45-I45 -> -78228 | K45: Special revenue | L45: 32. | N45: 32. | O45: =-(SUMIFS('Accounting Data'!C2:C100000,'Accounting Data'!E2:E100000,"4??",'Accounting Data'!J2:J100000,"5???"))-SUM(O36:O44) -> 0 | P45: =SUMIFS('Accounting Data'!C$2:C$100000,'Accounting Data'!E$2:E$100000,"4??",'Accounting Data'!J$2:J$100000,"69??")-SUM(P36:P44) -> 0 | Q45: 32.
A46: Total State project funds (lines 23-32) | D46: 33. | E46: =SUM(E36:E45) -> -17963 | F46: 18929 | G46: 0 | H46: 63751 | I46: 79194 | J46: -78228 | L46: 33.
A48: Total federal and State projects (lines 21 and 33) | D48: 34. | E48: =SUM(E29+E46) -> 703772 | F48: 3655345 | G48: -108692 | H48: 4629118 | I48: 4018418 | J48: 232007 | L48: 34.
A50: (1) In accordance with the USFR Chart of Accounts, the Impact Aid Fund may transfer monies (object code 6930) to the M&O and Teacherage Funds; the Impact Aid Fund may also receive transfers-in (object code 5200) from the Impact Aid Revenue Bond Building and Impact Aid Revenue Bond Debt Service Funds; all other Federal Projects Funds may not receive any transfers-in and may only make transfers-out to the Indirect Costs Fund based on an approved indirect cost rate (object code 6910) and for any interest on federal program monies the district is not required to revert and chooses to transfer to the Indirect Cost Fund (object code 6930).
A54: (2) In accordance with the USFR Chart of Accounts, transfers of monies between funds should be made only when specifically authorized by statute or allowed by a federal grant. Generally, there are no allowable transfers to or from any state projects. However, the Arizona Ninth Grade Success Grant allows indirect costs transfers from the grant.

Sheet Page 6
A1: District name | B1: =CoverDistrictName -> Liberty Elementary School District No. 25 | F1: County | G1: =County -> Maricopa | K1: CTDS number | L1: =Cover!Q1 -> 070425000
B3: Instructions | F3: Net other financing sources and uses | R3: Other financing | S3: Other financing
D4: Beginning | I4: Ending | K4: =IF(N13<>N14,"Total detailed Instructional Improvement Fund expenditures reported on line 5 do not agree with your accounting records. Please verify entered amounts.","") ->  | R4: sources including | S4: uses including
D5: fund balance | E5: Revenues | F5: including transfers | G5: Expenditures | I5: fund balance | R5: transfers-in | S5: transfers-out
A6: Other funds | D6: Actual | E6: Actual | F6: Actual | G6: Budget | H6: Actual | I6: Actual | R6: 5000 | S6: 6900
A7: 020 Instructional Improvement | C7: 1. | D7: ='Accounting Data'!R4 -> 630548 | E7: =-(SUMIFS('Accounting Data'!C$2:C$100000,'Accounting Data'!E$2:E$100000,"020",'Accounting Data'!J$2:J$100000,"1???")+SUMIFS('Accounting Data'!C$2:C$100000,'Accounting Data'!E$2:E$100000,"020",'Accounting Data'!J$2:J$100000,"2???")+SUMIFS('Accounting Data'!C$2:C$100000,'Accounting Data'!E$2:E$100000,"020",'Accounting Data'!J$2:J$100000,"3???")+SUMIFS('Accounting Data'!C$2:C$100000,'Accounting Data'!E$2:E$100000,"020",'Accounting Data'!J$2:J$100000,"4???")) -> 342416 | G7: =M13 -> 400000 | H7: =ROUND(SUMIFS('Accounting Data'!C2:C100000,'Accounting Data'!E2:E100000,"020",'Accounting Data'!J2:J100000,"6???")-SUMIFS('Accounting Data'!C2:C100000,'Accounting Data'!E2:E100000,"020",'Accounting Data'!J2:J100000,"69??"),0) -> 191377 | I7: =D7+E7+F7-H7 -> 781587 | J7: 1. | K7: Instructional Improvement Fund 020 | M7: Budget | N7: Actual | Q7: 1. | T7: 1. | Y7: =IF(OR(Y9="yes",Y36="yes",Y37="yes",Y40="yes",Y41="yes"),"yes","") -> 
A8: 050 County, City, and Town Grants | C8: 2. | D8: ='Accounting Data'!R5 -> 0 | E8: =-(SUMIFS('Accounting Data'!C$2:C$100000,'Accounting Data'!E$2:E$100000,"050",'Accounting Data'!J$2:J$100000,"1???")+SUMIFS('Accounting Data'!C$2:C$100000,'Accounting Data'!E$2:E$100000,"050",'Accounting Data'!J$2:J$100000,"2???")+SUMIFS('Accounting Data'!C$2:C$100000,'Accounting Data'!E$2:E$100000,"050",'Accounting Data'!J$2:J$100000,"3???")+SUMIFS('Accounting Data'!C$2:C$100000,'Accounting Data'!E$2:E$100000,"050",'Accounting Data'!J$2:J$100000,"4???")) -> 0 | F8: =R8-S8 -> 0 | G8: =[1]!F050BudgFY -> 0 | H8: =(SUMIFS('Accounting Data'!C$2:C$100000,'Accounting Data'!E$2:E$100000,"050",'Accounting Data'!J$2:J$100000,"6???"))-(SUMIFS('Accounting Data'!C$2:C$100000,'Accounting Data'!E$2:E$100000,"050",'Accounting Data'!J$2:J$100000,"69??")) -> 0 | I8: =D8+E8+F8-H8 -> 0 | J8: 2. | K8: Expenditures | Q8: 2. | R8: =-(SUMIFS('Accounting Data'!C$2:C$100000,'Accounting Data'!E$2:E$100000,"050",'Accounting Data'!J$2:J$100000,"5???")) -> 0 | S8: =(SUMIFS('Accounting Data'!C$2:C$100000,'Accounting Data'!E$2:E$100000,"050",'Accounting Data'!J$2:J$100000,"69??")) -> 0 | T8: 2.
A9: 071 English Language Learner (1) | C9: 3. | D9: ='Accounting Data'!R6 -> 0 | E9: =-(SUMIFS('Accounting Data'!C$2:C$100000,'Accounting Data'!E$2:E$100000,"071",'Accounting Data'!J$2:J$100000,"1???")+SUMIFS('Accounting Data'!C$2:C$100000,'Accounting Data'!E$2:E$100000,"071",'Accounting Data'!J$2:J$100000,"2???")+SUMIFS('Accounting Data'!C$2:C$100000,'Accounting Data'!E$2:E$100000,"071",'Accounting Data'!J$2:J$100000,"3???")+SUMIFS('Accounting Data'!C$2:C$100000,'Accounting Data'!E$2:E$100000,"071",'Accounting Data'!J$2:J$100000,"4???")) -> 0 | F9: =R9-S9 -> 0 | G9: =[1]!F071BudgFY -> 0 | H9: =F071TOTALEXP -> 0 | I9: =D9+E9+F9-H9 -> 0 | J9: 3. | K9: Teacher compensation increases | M9: ='[1]Page 6'!$J$43 -> 150000 | N9: 89564 | O9: 1. | Q9: 3. | R9: =-(SUMIFS('Accounting Data'!C$2:C$100000,'Accounting Data'!E$2:E$100000,"071",'Accounting Data'!J$2:J$100000,"5???")) -> 0 | S9: =(SUMIFS('Accounting Data'!C$2:C$100000,'Accounting Data'!E$2:E$100000,"071",'Accounting Data'!J$2:J$100000,"69??")) -> 0 | T9: 3. | Y9: =IF(OR(N9="",N10="",N11="",N12=""),"yes","") -> 
A10: 072 Compensatory Instruction (1) | C10: 4. | D10: ='Accounting Data'!R7 -> 0 | E10: =-(SUMIFS('Accounting Data'!C$2:C$100000,'Accounting Data'!E$2:E$100000,"072",'Accounting Data'!J$2:J$100000,"1???")+SUMIFS('Accounting Data'!C$2:C$100000,'Accounting Data'!E$2:E$100000,"072",'Accounting Data'!J$2:J$100000,"2???")+SUMIFS('Accounting Data'!C$2:C$100000,'Accounting Data'!E$2:E$100000,"072",'Accounting Data'!J$2:J$100000,"3???")+SUMIFS('Accounting Data'!C$2:C$100000,'Accounting Data'!E$2:E$100000,"072",'Accounting Data'!J$2:J$100000,"4???")) -> 0 | F10: =R10-S10 -> 0 | G10: =[1]!F072BudgFY -> 0 | H10: =F072TOTALEXP -> 0 | I10: =D10+E10+F10-H10 -> 0 | J10: 4. | K10: Class size reduction | M10: ='[1]Page 6'!$J$44 -> 0 | N10: 0 | O10: 2. | Q10: 4. | R10: =-(SUMIFS('Accounting Data'!C$2:C$100000,'Accounting Data'!E$2:E$100000,"072",'Accounting Data'!J$2:J$100000,"5???")) -> 0 | S10: =(SUMIFS('Accounting Data'!C$2:C$100000,'Accounting Data'!E$2:E$100000,"072",'Accounting Data'!J$2:J$100000,"69??")) -> 0 | T10: 4.
A11: 500 School Plant | C11: 5. | D11: ='Accounting Data'!R352 -> 89794 | E11: =-(SUMIFS('Accounting Data'!C$2:C$100000,'Accounting Data'!E$2:E$100000,"500",'Accounting Data'!J$2:J$100000,"1???")+SUMIFS('Accounting Data'!C$2:C$100000,'Accounting Data'!E$2:E$100000,"500",'Accounting Data'!J$2:J$100000,"2???")+SUMIFS('Accounting Data'!C$2:C$100000,'Accounting Data'!E$2:E$100000,"500",'Accounting Data'!J$2:J$100000,"3???")+SUMIFS('Accounting Data'!C$2:C$100000,'Accounting Data'!E$2:E$100000,"500",'Accounting Data'!J$2:J$100000,"4???")) -> 3703 | F11: =R11-S11 -> 7170 | G11: =[1]!F500BudgFY -> 90000 | H11: =(SUMIFS('Accounting Data'!C$2:C$100000,'Accounting Data'!E$2:E$100000,"500",'Accounting Data'!J$2:J$100000,"6???"))-(SUMIFS('Accounting Data'!C$2:C$100000,'Accounting Data'!E$2:E$100000,"500",'Accounting Data'!J$2:J$100000,"69??")) -> 10087 | I11: =D11+E11+F11-H11 -> 90580 | J11: 5. | K11: Dropout prevention programs | M11: ='[1]Page 6'!$J$45 -> 0 | N11: 0 | O11: 3. | Q11: 5. | R11: =-(SUMIFS('Accounting Data'!C$2:C$100000,'Accounting Data'!E$2:E$100000,"500",'Accounting Data'!J$2:J$100000,"5???")) -> 7170 | S11: =(SUMIFS('Accounting Data'!C$2:C$100000,'Accounting Data'!E$2:E$100000,"500",'Accounting Data'!J$2:J$100000,"69??")) -> 0 | T11: 5.
A12: 515 Civic Center | C12: 6. | D12: ='Accounting Data'!R354 -> 543606 | E12: =-(SUMIFS('Accounting Data'!C$2:C$100000,'Accounting Data'!E$2:E$100000,"515",'Accounting Data'!J$2:J$100000,"1???")+SUMIFS('Accounting Data'!C$2:C$100000,'Accounting Data'!E$2:E$100000,"515",'Accounting Data'!J$2:J$100000,"2???")+SUMIFS('Accounting Data'!C$2:C$100000,'Accounting Data'!E$2:E$100000,"515",'Accounting Data'!J$2:J$100000,"3???")+SUMIFS('Accounting Data'!C$2:C$100000,'Accounting Data'!E$2:E$100000,"515",'Accounting Data'!J$2:J$100000,"4???")) -> 103267 | F12: =R12-S12 -> 0 | G12: =[1]!F515BudgFY -> 250000 | H12: =(SUMIFS('Accounting Data'!C$2:C$100000,'Accounting Data'!E$2:E$100000,"515",'Accounting Data'!J$2:J$100000,"6???"))-(SUMIFS('Accounting Data'!C$2:C$100000,'Accounting Data'!E$2:E$100000,"515",'Accounting Data'!J$2:J$100000,"69??")) -> 162347 | I12: 484526 | J12: 6. | K12: Instructional improvement programs | M12: ='[1]Page 6'!$J$46 -> 250000 | N12: 101813 | O12: 4. | Q12: 6. | R12: =-(SUMIFS('Accounting Data'!C$2:C$100000,'Accounting Data'!E$2:E$100000,"515",'Accounting Data'!J$2:J$100000,"5???")) -> 0 | S12: =(SUMIFS('Accounting Data'!C$2:C$100000,'Accounting Data'!E$2:E$100000,"515",'Accounting Data'!J$2:J$100000,"69??")) -> 0 | T12: 6.
A13: 520 Community School | C13: 7. | D13: ='Accounting Data'!R355 -> 445064 | E13: =-(SUMIFS('Accounting Data'!C$2:C$100000,'Accounting Data'!E$2:E$100000,"520",'Accounting Data'!J$2:J$100000,"1???")+SUMIFS('Accounting Data'!C$2:C$100000,'Accounting Data'!E$2:E$100000,"520",'Accounting Data'!J$2:J$100000,"2???")+SUMIFS('Accounting Data'!C$2:C$100000,'Accounting Data'!E$2:E$100000,"520",'Accounting Data'!J$2:J$100000,"3???")+SUMIFS('Accounting Data'!C$2:C$100000,'Accounting Data'!E$2:E$100000,"520",'Accounting Data'!J$2:J$100000,"4???")) -> 394919 | F13: 0 | G13: =[1]!F520BudgFY -> 650000 | H13: =(SUMIFS('Accounting Data'!C$2:C$100000,'Accounting Data'!E$2:E$100000,"520",'Accounting Data'!J$2:J$100000,"6???"))-(SUMIFS('Accounting Data'!C$2:C$100000,'Accounting Data'!E$2:E$100000,"520",'Accounting Data'!J$2:J$100000,"69??")) -> 487081 | I13: 352902 | J13: 7. | K13: Total expenditures (lines 1-4) | M13: =SUM(M9:M12) -> 400000 | N13: =SUM(N9:N12) -> 191377 | O13: 5. | Q13: 7. | R13: =-(SUMIFS('Accounting Data'!C$2:C$100000,'Accounting Data'!E$2:E$100000,"520",'Accounting Data'!J$2:J$100000,"5???")) -> 0 | S13: =(SUMIFS('Accounting Data'!C$2:C$100000,'Accounting Data'!E$2:E$100000,"520",'Accounting Data'!J$2:J$100000,"69??")) -> 0 | T13: 7.
A14: 525 Auxiliary Operations | C14: 8. | D14: ='Accounting Data'!R356 -> 243040 | E14: =-(SUMIFS('Accounting Data'!C$2:C$100000,'Accounting Data'!E$2:E$100000,"525",'Accounting Data'!J$2:J$100000,"1???")+SUMIFS('Accounting Data'!C$2:C$100000,'Accounting Data'!E$2:E$100000,"525",'Accounting Data'!J$2:J$100000,"2???")+SUMIFS('Accounting Data'!C$2:C$100000,'Accounting Data'!E$2:E$100000,"525",'Accounting Data'!J$2:J$100000,"3???")+SUMIFS('Accounting Data'!C$2:C$100000,'Accounting Data'!E$2:E$100000,"525",'Accounting Data'!J$2:J$100000,"4???")) -> 398334 | F14: 0 | G14: =[1]!F525BudgFY -> 525000 | H14: =(SUMIFS('Accounting Data'!C$2:C$100000,'Accounting Data'!E$2:E$100000,"525",'Accounting Data'!J$2:J$100000,"6???"))-(SUMIFS('Accounting Data'!C$2:C$100000,'Accounting Data'!E$2:E$100000,"525",'Accounting Data'!J$2:J$100000,"69??")) -> 407278 | I14: 234096 | J14: 8. | K14: Total expenditures from accounting data | N14: =F020ActExp -> 191377 | O14: 6. | Q14: 8. | R14: =-(SUMIFS('Accounting Data'!C$2:C$100000,'Accounting Data'!E$2:E$100000,"525",'Accounting Data'!J$2:J$100000,"5???")) -> 0 | S14: =(SUMIFS('Accounting Data'!C$2:C$100000,'Accounting Data'!E$2:E$100000,"525",'Accounting Data'!J$2:J$100000,"69??")) -> 0 | T14: 8.
A15: 526 Extracurricular Activities Fees Tax Credit | C15: 9. | D15: ='Accounting Data'!R357 -> 214100 | E15: =-(SUMIFS('Accounting Data'!C$2:C$100000,'Accounting Data'!E$2:E$100000,"526",'Accounting Data'!J$2:J$100000,"1???")+SUMIFS('Accounting Data'!C$2:C$100000,'Accounting Data'!E$2:E$100000,"526",'Accounting Data'!J$2:J$100000,"2???")+SUMIFS('Accounting Data'!C$2:C$100000,'Accounting Data'!E$2:E$100000,"526",'Accounting Data'!J$2:J$100000,"3???")+SUMIFS('Accounting Data'!C$2:C$100000,'Accounting Data'!E$2:E$100000,"526",'Accounting Data'!J$2:J$100000,"4???")) -> 83792 | F15: 0 | G15: =[1]!F526BudgFY -> 292000 | H15: =(SUMIFS('Accounting Data'!C$2:C$100000,'Accounting Data'!E$2:E$100000,"526",'Accounting Data'!J$2:J$100000,"6???"))-(SUMIFS('Accounting Data'!C$2:C$100000,'Accounting Data'!E$2:E$100000,"526",'Accounting Data'!J$2:J$100000,"69??")) -> 129380 | I15: 168512 | J15: 9. | Q15: 9. | R15: =-(SUMIFS('Accounting Data'!C$2:C$100000,'Accounting Data'!E$2:E$100000,"526",'Accounting Data'!J$2:J$100000,"5???")) -> 0 | S15: =(SUMIFS('Accounting Data'!C$2:C$100000,'Accounting Data'!E$2:E$100000,"526",'Accounting Data'!J$2:J$100000,"69??")) -> 0 | T15: 9.
A16: 530 Gifts and Donations | C16: 10. | D16: ='Accounting Data'!R358 -> 688651 | E16: =-(SUMIFS('Accounting Data'!C$2:C$100000,'Accounting Data'!E$2:E$100000,"530",'Accounting Data'!J$2:J$100000,"1???")+SUMIFS('Accounting Data'!C$2:C$100000,'Accounting Data'!E$2:E$100000,"530",'Accounting Data'!J$2:J$100000,"2???")+SUMIFS('Accounting Data'!C$2:C$100000,'Accounting Data'!E$2:E$100000,"530",'Accounting Data'!J$2:J$100000,"3???")+SUMIFS('Accounting Data'!C$2:C$100000,'Accounting Data'!E$2:E$100000,"530",'Accounting Data'!J$2:J$100000,"4???")) -> 257693 | F16: 0 | G16: =[1]!F530BudgFY -> 300000 | H16: =(SUMIFS('Accounting Data'!C$2:C$100000,'Accounting Data'!E$2:E$100000,"530",'Accounting Data'!J$2:J$100000,"6???"))-(SUMIFS('Accounting Data'!C$2:C$100000,'Accounting Data'!E$2:E$100000,"530",'Accounting Data'!J$2:J$100000,"69??")) -> 216784 | I16: 729560 | J16: 10. | K16: Check this box if your district did not have expenditures in the Instructional Improvement Fund | Q16: 10. | R16: =-(SUMIFS('Accounting Data'!C$2:C$100000,'Accounting Data'!E$2:E$100000,"530",'Accounting Data'!J$2:J$100000,"5???")) -> 0 | S16: =(SUMIFS('Accounting Data'!C$2:C$100000,'Accounting Data'!E$2:E$100000,"530",'Accounting Data'!J$2:J$100000,"69??")) -> 0 | T16: 10.
A17: 535 Career & Technical Education Projects | C17: 11. | D17: ='Accounting Data'!R359 -> 0 | E17: =-(SUMIFS('Accounting Data'!C$2:C$100000,'Accounting Data'!E$2:E$100000,"535",'Accounting Data'!J$2:J$100000,"1???")+SUMIFS('Accounting Data'!C$2:C$100000,'Accounting Data'!E$2:E$100000,"535",'Accounting Data'!J$2:J$100000,"2???")+SUMIFS('Accounting Data'!C$2:C$100000,'Accounting Data'!E$2:E$100000,"535",'Accounting Data'!J$2:J$100000,"3???")+SUMIFS('Accounting Data'!C$2:C$100000,'Accounting Data'!E$2:E$100000,"535",'Accounting Data'!J$2:J$100000,"4???")) -> 0 | F17: 0 | G17: =[1]!F535BudgFY -> 0 | H17: =(SUMIFS('Accounting Data'!C$2:C$100000,'Accounting Data'!E$2:E$100000,"535",'Accounting Data'!J$2:J$100000,"6???"))-(SUMIFS('Accounting Data'!C$2:C$100000,'Accounting Data'!E$2:E$100000,"535",'Accounting Data'!J$2:J$100000,"69??")) -> 0 | I17: 0 | J17: 11. | Q17: 11. | R17: =-(SUMIFS('Accounting Data'!C$2:C$100000,'Accounting Data'!E$2:E$100000,"535",'Accounting Data'!J$2:J$100000,"5???")) -> 0 | S17: =(SUMIFS('Accounting Data'!C$2:C$100000,'Accounting Data'!E$2:E$100000,"535",'Accounting Data'!J$2:J$100000,"69??")) -> 0 | T17: 11.
A18: 540 Fingerprint | C18: 12. | D18: ='Accounting Data'!R360 -> -940 | E18: =-(SUMIFS('Accounting Data'!C$2:C$100000,'Accounting Data'!E$2:E$100000,"540",'Accounting Data'!J$2:J$100000,"1???")+SUMIFS('Accounting Data'!C$2:C$100000,'Accounting Data'!E$2:E$100000,"540",'Accounting Data'!J$2:J$100000,"2???")+SUMIFS('Accounting Data'!C$2:C$100000,'Accounting Data'!E$2:E$100000,"540",'Accounting Data'!J$2:J$100000,"3???")+SUMIFS('Accounting Data'!C$2:C$100000,'Accounting Data'!E$2:E$100000,"540",'Accounting Data'!J$2:J$100000,"4???")) -> 0 | F18: 0 | G18: =[1]!F540BudgFY -> 0 | H18: =(SUMIFS('Accounting Data'!C$2:C$100000,'Accounting Data'!E$2:E$100000,"540",'Accounting Data'!J$2:J$100000,"6???"))-(SUMIFS('Accounting Data'!C$2:C$100000,'Accounting Data'!E$2:E$100000,"540",'Accounting Data'!J$2:J$100000,"69??")) -> 0 | I18: -940 | J18: 12. | Q18: 12. | R18: =-(SUMIFS('Accounting Data'!C$2:C$100000,'Accounting Data'!E$2:E$100000,"540",'Accounting Data'!J$2:J$100000,"5???")) -> 0 | S18: =(SUMIFS('Accounting Data'!C$2:C$100000,'Accounting Data'!E$2:E$100000,"540",'Accounting Data'!J$2:J$100000,"69??")) -> 0 | T18: 12.
A19: 545 School Opening | C19: 13. | D19: ='Accounting Data'!R361 -> 0 | E19: =-(SUMIFS('Accounting Data'!C$2:C$100000,'Accounting Data'!E$2:E$100000,"545",'Accounting Data'!J$2:J$100000,"1???")+SUMIFS('Accounting Data'!C$2:C$100000,'Accounting Data'!E$2:E$100000,"545",'Accounting Data'!J$2:J$100000,"2???")+SUMIFS('Accounting Data'!C$2:C$100000,'Accounting Data'!E$2:E$100000,"545",'Accounting Data'!J$2:J$100000,"3???")+SUMIFS('Accounting Data'!C$2:C$100000,'Accounting Data'!E$2:E$100000,"545",'Accounting Data'!J$2:J$100000,"4???")) -> 0 | F19: 0 | G19: =[1]!F545BudgFY -> 0 | H19: =(SUMIFS('Accounting Data'!C$2:C$100000,'Accounting Data'!E$2:E$100000,"545",'Accounting Data'!J$2:J$100000,"6???"))-(SUMIFS('Accounting Data'!C$2:C$100000,'Accounting Data'!E$2:E$100000,"545",'Accounting Data'!J$2:J$100000,"69??")) -> 0 | I19: 0 | J19: 13. | Q19: 13. | R19: =-(SUMIFS('Accounting Data'!C$2:C$100000,'Accounting Data'!E$2:E$100000,"545",'Accounting Data'!J$2:J$100000,"5???")) -> 0 | S19: =(SUMIFS('Accounting Data'!C$2:C$100000,'Accounting Data'!E$2:E$100000,"545",'Accounting Data'!J$2:J$100000,"69??")) -> 0 | T19: 13.
A20: 550 Insurance Proceeds | C20: 14. | D20: ='Accounting Data'!R362 -> 161303 | E20: =-(SUMIFS('Accounting Data'!C$2:C$100000,'Accounting Data'!E$2:E$100000,"550",'Accounting Data'!J$2:J$100000,"1???")+SUMIFS('Accounting Data'!C$2:C$100000,'Accounting Data'!E$2:E$100000,"550",'Accounting Data'!J$2:J$100000,"2???")+SUMIFS('Accounting Data'!C$2:C$100000,'Accounting Data'!E$2:E$100000,"550",'Accounting Data'!J$2:J$100000,"3???")+SUMIFS('Accounting Data'!C$2:C$100000,'Accounting Data'!E$2:E$100000,"550",'Accounting Data'!J$2:J$100000,"4???")) -> 6020 | F20: 0 | G20: =[1]!F550BudgFY -> 160000 | H20: =(SUMIFS('Accounting Data'!C$2:C$100000,'Accounting Data'!E$2:E$100000,"550",'Accounting Data'!J$2:J$100000,"6???"))-(SUMIFS('Accounting Data'!C$2:C$100000,'Accounting Data'!E$2:E$100000,"550",'Accounting Data'!J$2:J$100000,"69??")) -> 26925 | I20: 140398 | J20: 14. | Q20: 14. | R20: =-(SUMIFS('Accounting Data'!C$2:C$100000,'Accounting Data'!E$2:E$100000,"550",'Accounting Data'!J$2:J$100000,"5???")) -> 0 | S20: =(SUMIFS('Accounting Data'!C$2:C$100000,'Accounting Data'!E$2:E$100000,"550",'Accounting Data'!J$2:J$100000,"69??")) -> 0 | T20: 14.
A21: 555 Textbooks | C21: 15. | D21: ='Accounting Data'!R363 -> 1778 | E21: =-(SUMIFS('Accounting Data'!C$2:C$100000,'Accounting Data'!E$2:E$100000,"555",'Accounting Data'!J$2:J$100000,"1???")+SUMIFS('Accounting Data'!C$2:C$100000,'Accounting Data'!E$2:E$100000,"555",'Accounting Data'!J$2:J$100000,"2???")+SUMIFS('Accounting Data'!C$2:C$100000,'Accounting Data'!E$2:E$100000,"555",'Accounting Data'!J$2:J$100000,"3???")+SUMIFS('Accounting Data'!C$2:C$100000,'Accounting Data'!E$2:E$100000,"555",'Accounting Data'!J$2:J$100000,"4???")) -> 167 | F21: 0 | G21: =[1]!F555BudgFY -> 1500 | H21: =(SUMIFS('Accounting Data'!C$2:C$100000,'Accounting Data'!E$2:E$100000,"555",'Accounting Data'!J$2:J$100000,"6???"))-(SUMIFS('Accounting Data'!C$2:C$100000,'Accounting Data'!E$2:E$100000,"555",'Accounting Data'!J$2:J$100000,"69??")) -> 0 | I21: 1945 | J21: 15. | Q21: 15. | R21: =-(SUMIFS('Accounting Data'!C$2:C$100000,'Accounting Data'!E$2:E$100000,"555",'Accounting Data'!J$2:J$100000,"5???")) -> 0 | S21: =(SUMIFS('Accounting Data'!C$2:C$100000,'Accounting Data'!E$2:E$100000,"555",'Accounting Data'!J$2:J$100000,"69??")) -> 0 | T21: 15.
A22: 565 Litigation Recovery | C22: 16. | D22: ='Accounting Data'!R364 -> 829 | E22: =-(SUMIFS('Accounting Data'!C$2:C$100000,'Accounting Data'!E$2:E$100000,"565",'Accounting Data'!J$2:J$100000,"1???")+SUMIFS('Accounting Data'!C$2:C$100000,'Accounting Data'!E$2:E$100000,"565",'Accounting Data'!J$2:J$100000,"2???")+SUMIFS('Accounting Data'!C$2:C$100000,'Accounting Data'!E$2:E$100000,"565",'Accounting Data'!J$2:J$100000,"3???")+SUMIFS('Accounting Data'!C$2:C$100000,'Accounting Data'!E$2:E$100000,"565",'Accounting Data'!J$2:J$100000,"4???")) -> 32 | F22: 0 | G22: =[1]!F565BudgFY -> 0 | H22: =(SUMIFS('Accounting Data'!C$2:C$100000,'Accounting Data'!E$2:E$100000,"565",'Accounting Data'!J$2:J$100000,"6???"))-(SUMIFS('Accounting Data'!C$2:C$100000,'Accounting Data'!E$2:E$100000,"565",'Accounting Data'!J$2:J$100000,"69??")) -> 800 | I22: 61 | J22: 16. | Q22: 16. | R22: =-(SUMIFS('Accounting Data'!C$2:C$100000,'Accounting Data'!E$2:E$100000,"565",'Accounting Data'!J$2:J$100000,"5???")) -> 0 | S22: =(SUMIFS('Accounting Data'!C$2:C$100000,'Accounting Data'!E$2:E$100000,"565",'Accounting Data'!J$2:J$100000,"69??")) -> 0 | T22: 16.
A23: 570 Indirect Costs | C23: 17. | D23: ='Accounting Data'!R365 -> 773454 | E23: =-(SUMIFS('Accounting Data'!C$2:C$100000,'Accounting Data'!E$2:E$100000,"570",'Accounting Data'!J$2:J$100000,"1???")+SUMIFS('Accounting Data'!C$2:C$100000,'Accounting Data'!E$2:E$100000,"570",'Accounting Data'!J$2:J$100000,"2???")+SUMIFS('Accounting Data'!C$2:C$100000,'Accounting Data'!E$2:E$100000,"570",'Accounting Data'!J$2:J$100000,"3???")+SUMIFS('Accounting Data'!C$2:C$100000,'Accounting Data'!E$2:E$100000,"570",'Accounting Data'!J$2:J$100000,"4???")) -> 26903 | F23: 250295 | G23: =[1]!F570BudgFY -> 600000 | H23: =(SUMIFS('Accounting Data'!C$2:C$100000,'Accounting Data'!E$2:E$100000,"570",'Accounting Data'!J$2:J$100000,"6???"))-(SUMIFS('Accounting Data'!C$2:C$100000,'Accounting Data'!E$2:E$100000,"570",'Accounting Data'!J$2:J$100000,"69??")) -> 460851 | I23: 589801 | J23: 17. | Q23: 17. | R23: =-(SUMIFS('Accounting Data'!C$2:C$100000,'Accounting Data'!E$2:E$100000,"570",'Accounting Data'!J$2:J$100000,"5???")) -> 250295 | S23: =(SUMIFS('Accounting Data'!C$2:C$100000,'Accounting Data'!E$2:E$100000,"570",'Accounting Data'!J$2:J$100000,"69??")) -> 0 | T23: 17.
A24: 575 Unemployment Insurance | C24: 18. | D24: ='Accounting Data'!R366 -> 230810 | E24: =-(SUMIFS('Accounting Data'!C$2:C$100000,'Accounting Data'!E$2:E$100000,"575",'Accounting Data'!J$2:J$100000,"1???")+SUMIFS('Accounting Data'!C$2:C$100000,'Accounting Data'!E$2:E$100000,"575",'Accounting Data'!J$2:J$100000,"2???")+SUMIFS('Accounting Data'!C$2:C$100000,'Accounting Data'!E$2:E$100000,"575",'Accounting Data'!J$2:J$100000,"3???")+SUMIFS('Accounting Data'!C$2:C$100000,'Accounting Data'!E$2:E$100000,"575",'Accounting Data'!J$2:J$100000,"4???")) -> 8816 | F24: 0 | G24: =[1]!F575BudgFY -> 230000 | H24: =(SUMIFS('Accounting Data'!C$2:C$100000,'Accounting Data'!E$2:E$100000,"575",'Accounting Data'!J$2:J$100000,"6???"))-(SUMIFS('Accounting Data'!C$2:C$100000,'Accounting Data'!E$2:E$100000,"575",'Accounting Data'!J$2:J$100000,"69??")) -> 13393 | I24: 226233 | J24: 18. | Q24: 18. | R24: =-(SUMIFS('Accounting Data'!C$2:C$100000,'Accounting Data'!E$2:E$100000,"575",'Accounting Data'!J$2:J$100000,"5???")) -> 0 | S24: =(SUMIFS('Accounting Data'!C$2:C$100000,'Accounting Data'!E$2:E$100000,"575",'Accounting Data'!J$2:J$100000,"69??")) -> 0 | T24: 18.
A25: 580 Teacherage | C25: 19. | D25: ='Accounting Data'!R367 -> 0 | E25: =-(SUMIFS('Accounting Data'!C$2:C$100000,'Accounting Data'!E$2:E$100000,"580",'Accounting Data'!J$2:J$100000,"1???")+SUMIFS('Accounting Data'!C$2:C$100000,'Accounting Data'!E$2:E$100000,"580",'Accounting Data'!J$2:J$100000,"2???")+SUMIFS('Accounting Data'!C$2:C$100000,'Accounting Data'!E$2:E$100000,"580",'Accounting Data'!J$2:J$100000,"3???")+SUMIFS('Accounting Data'!C$2:C$100000,'Accounting Data'!E$2:E$100000,"580",'Accounting Data'!J$2:J$100000,"4???")) -> 0 | F25: 0 | G25: =[1]!F580BudgFY -> 0 | H25: =(SUMIFS('Accounting Data'!C$2:C$100000,'Accounting Data'!E$2:E$100000,"580",'Accounting Data'!J$2:J$100000,"6???"))-(SUMIFS('Accounting Data'!C$2:C$100000,'Accounting Data'!E$2:E$100000,"580",'Accounting Data'!J$2:J$100000,"69??")) -> 0 | I25: 0 | J25: 19. | Q25: 19. | R25: =-(SUMIFS('Accounting Data'!C$2:C$100000,'Accounting Data'!E$2:E$100000,"580",'Accounting Data'!J$2:J$100000,"5???")) -> 0 | S25: =(SUMIFS('Accounting Data'!C$2:C$100000,'Accounting Data'!E$2:E$100000,"580",'Accounting Data'!J$2:J$100000,"69??")) -> 0 | T25: 19.
A26: 585 Insurance Refund | C26: 20. | D26: ='Accounting Data'!R368 -> 0 | E26: =-(SUMIFS('Accounting Data'!C$2:C$100000,'Accounting Data'!E$2:E$100000,"585",'Accounting Data'!J$2:J$100000,"1???")+SUMIFS('Accounting Data'!C$2:C$100000,'Accounting Data'!E$2:E$100000,"585",'Accounting Data'!J$2:J$100000,"2???")+SUMIFS('Accounting Data'!C$2:C$100000,'Accounting Data'!E$2:E$100000,"585",'Accounting Data'!J$2:J$100000,"3???")+SUMIFS('Accounting Data'!C$2:C$100000,'Accounting Data'!E$2:E$100000,"585",'Accounting Data'!J$2:J$100000,"4???")) -> 0 | F26: 0 | G26: =[1]!F585BudgFY -> 0 | H26: =(SUMIFS('Accounting Data'!C$2:C$100000,'Accounting Data'!E$2:E$100000,"585",'Accounting Data'!J$2:J$100000,"6???"))-(SUMIFS('Accounting Data'!C$2:C$100000,'Accounting Data'!E$2:E$100000,"585",'Accounting Data'!J$2:J$100000,"69??")) -> 0 | I26: 0 | J26: 20. | K26: =IF(N39<>N40,"Total detailed Arizona Industry Credentials Incentive Fund expenditures reported on line 6 do not agree with your accounting records. Please verify entered amounts.","") ->  | Q26: 20. | R26: =-(SUMIFS('Accounting Data'!C$2:C$100000,'Accounting Data'!E$2:E$100000,"585",'Accounting Data'!J$2:J$100000,"5???")) -> 0 | S26: =(SUMIFS('Accounting Data'!C$2:C$100000,'Accounting Data'!E$2:E$100000,"585",'Accounting Data'!J$2:J$100000,"69??")) -> 0 | T26: 20.
A27: 590 Grants and Gifts to Teachers | C27: 21. | D27: ='Accounting Data'!R369 -> 0 | E27: =-(SUMIFS('Accounting Data'!C$2:C$100000,'Accounting Data'!E$2:E$100000,"590",'Accounting Data'!J$2:J$100000,"1???")+SUMIFS('Accounting Data'!C$2:C$100000,'Accounting Data'!E$2:E$100000,"590",'Accounting Data'!J$2:J$100000,"2???")+SUMIFS('Accounting Data'!C$2:C$100000,'Accounting Data'!E$2:E$100000,"590",'Accounting Data'!J$2:J$100000,"3???")+SUMIFS('Accounting Data'!C$2:C$100000,'Accounting Data'!E$2:E$100000,"590",'Accounting Data'!J$2:J$100000,"4???")) -> 0 | F27: 0 | G27: =[1]!F590BudgFY -> 0 | H27: =(SUMIFS('Accounting Data'!C$2:C$100000,'Accounting Data'!E$2:E$100000,"590",'Accounting Data'!J$2:J$100000,"6???"))-(SUMIFS('Accounting Data'!C$2:C$100000,'Accounting Data'!E$2:E$100000,"590",'Accounting Data'!J$2:J$100000,"69??")) -> 0 | I27: 0 | J27: 21. | Q27: 21. | R27: =-(SUMIFS('Accounting Data'!C$2:C$100000,'Accounting Data'!E$2:E$100000,"590",'Accounting Data'!J$2:J$100000,"5???")) -> 0 | S27: =(SUMIFS('Accounting Data'!C$2:C$100000,'Accounting Data'!E$2:E$100000,"590",'Accounting Data'!J$2:J$100000,"69??")) -> 0 | T27: 21.
A28: 595 Advertisement | C28: 22. | D28: ='Accounting Data'!R370 -> 0 | E28: =-(SUMIFS('Accounting Data'!C$2:C$100000,'Accounting Data'!E$2:E$100000,"595",'Accounting Data'!J$2:J$100000,"1???")+SUMIFS('Accounting Data'!C$2:C$100000,'Accounting Data'!E$2:E$100000,"595",'Accounting Data'!J$2:J$100000,"2???")+SUMIFS('Accounting Data'!C$2:C$100000,'Accounting Data'!E$2:E$100000,"595",'Accounting Data'!J$2:J$100000,"3???")+SUMIFS('Accounting Data'!C$2:C$100000,'Accounting Data'!E$2:E$100000,"595",'Accounting Data'!J$2:J$100000,"4???")) -> 0 | F28: 0 | G28: =[1]!F595BudgFY -> 0 | H28: =(SUMIFS('Accounting Data'!C$2:C$100000,'Accounting Data'!E$2:E$100000,"595",'Accounting Data'!J$2:J$100000,"6???"))-(SUMIFS('Accounting Data'!C$2:C$100000,'Accounting Data'!E$2:E$100000,"595",'Accounting Data'!J$2:J$100000,"69??")) -> 0 | I28: 0 | J28: 22. | Q28: 22. | R28: =-(SUMIFS('Accounting Data'!C$2:C$100000,'Accounting Data'!E$2:E$100000,"595",'Accounting Data'!J$2:J$100000,"5???")) -> 0 | S28: =(SUMIFS('Accounting Data'!C$2:C$100000,'Accounting Data'!E$2:E$100000,"595",'Accounting Data'!J$2:J$100000,"69??")) -> 0 | T28: 22.
A29: 596 Career Technical Education | C29: 23. | D29: ='Accounting Data'!R371 -> 0 | E29: =-(SUMIFS('Accounting Data'!C$2:C$100000,'Accounting Data'!E$2:E$100000,"596",'Accounting Data'!J$2:J$100000,"1???")+SUMIFS('Accounting Data'!C$2:C$100000,'Accounting Data'!E$2:E$100000,"596",'Accounting Data'!J$2:J$100000,"2???")+SUMIFS('Accounting Data'!C$2:C$100000,'Accounting Data'!E$2:E$100000,"596",'Accounting Data'!J$2:J$100000,"3???")+SUMIFS('Accounting Data'!C$2:C$100000,'Accounting Data'!E$2:E$100000,"596",'Accounting Data'!J$2:J$100000,"4???")) -> 0 | F29: 0 | G29: =[1]!F596BudgFY -> 0 | H29: =(SUMIFS('Accounting Data'!C$2:C$100000,'Accounting Data'!E$2:E$100000,"596",'Accounting Data'!J$2:J$100000,"6???"))-(SUMIFS('Accounting Data'!C$2:C$100000,'Accounting Data'!E$2:E$100000,"596",'Accounting Data'!J$2:J$100000,"69??")) -> 0 | I29: 0 | J29: 23. | Q29: 23. | R29: =-(SUMIFS('Accounting Data'!C$2:C$100000,'Accounting Data'!E$2:E$100000,"596",'Accounting Data'!J$2:J$100000,"5???")) -> 0 | S29: =(SUMIFS('Accounting Data'!C$2:C$100000,'Accounting Data'!E$2:E$100000,"596",'Accounting Data'!J$2:J$100000,"69??")) -> 0 | T29: 23.
A30: 597 Arizona Industry Credentials Incentive | C30: 24. | D30: ='Accounting Data'!R372 -> 0 | E30: =-(SUMIFS('Accounting Data'!C$2:C$100000,'Accounting Data'!E$2:E$100000,"597",'Accounting Data'!J$2:J$100000,"1???")+SUMIFS('Accounting Data'!C$2:C$100000,'Accounting Data'!E$2:E$100000,"597",'Accounting Data'!J$2:J$100000,"2???")+SUMIFS('Accounting Data'!C$2:C$100000,'Accounting Data'!E$2:E$100000,"597",'Accounting Data'!J$2:J$100000,"3???")+SUMIFS('Accounting Data'!C$2:C$100000,'Accounting Data'!E$2:E$100000,"597",'Accounting Data'!J$2:J$100000,"4???")) -> 0 | F30: 0 | G30: =[1]!F597BudgFY -> 0 | H30: =ROUND((SUMIFS('Accounting Data'!C$2:C$100000,'Accounting Data'!E$2:E$100000,"597",'Accounting Data'!J$2:J$100000,"6???"))-(SUMIFS('Accounting Data'!C$2:C$100000,'Accounting Data'!E$2:E$100000,"597",'Accounting Data'!J$2:J$100000,"69??")),0) -> 0 | I30: =D30+E30+F30-H30 -> 0 | J30: 24. | K30: Arizona Industry Credentials Incentive Fund 597 | M30: Budget | N30: Actual | Q30: 24. | R30: =-(SUMIFS('Accounting Data'!C$2:C$100000,'Accounting Data'!E$2:E$100000,"597",'Accounting Data'!J$2:J$100000,"5???")) -> 0 | S30: =(SUMIFS('Accounting Data'!C$2:C$100000,'Accounting Data'!E$2:E$100000,"597",'Accounting Data'!J$2:J$100000,"69??")) -> 0 | T30: 24.
A31: 639 Impact Aid Revenue Bond Building | C31: 25. | D31: ='Accounting Data'!R376 -> 0 | E31: =-(SUMIFS('Accounting Data'!C$2:C$100000,'Accounting Data'!E$2:E$100000,"639",'Accounting Data'!J$2:J$100000,"1???")+SUMIFS('Accounting Data'!C$2:C$100000,'Accounting Data'!E$2:E$100000,"639",'Accounting Data'!J$2:J$100000,"2???")+SUMIFS('Accounting Data'!C$2:C$100000,'Accounting Data'!E$2:E$100000,"639",'Accounting Data'!J$2:J$100000,"3???")+SUMIFS('Accounting Data'!C$2:C$100000,'Accounting Data'!E$2:E$100000,"639",'Accounting Data'!J$2:J$100000,"4???")) -> 0 | F31: 0 | G31: =[1]!F639BudgFY -> 0 | H31: =(SUMIFS('Accounting Data'!C$2:C$100000,'Accounting Data'!E$2:E$100000,"639",'Accounting Data'!J$2:J$100000,"6???"))-(SUMIFS('Accounting Data'!C$2:C$100000,'Accounting Data'!E$2:E$100000,"639",'Accounting Data'!J$2:J$100000,"69??")) -> 0 | I31: =D31+E31+F31-H31 -> 0 | J31: 25. | K31: Expenditures | Q31: 25. | R31: =-(SUMIFS('Accounting Data'!C$2:C$100000,'Accounting Data'!E$2:E$100000,"639",'Accounting Data'!J$2:J$100000,"5???")) -> 0 | S31: =(SUMIFS('Accounting Data'!C$2:C$100000,'Accounting Data'!E$2:E$100000,"639",'Accounting Data'!J$2:J$100000,"69??")) -> 0 | T31: 25.
A32: 650 Gifts and Donations—Capital | C32: 26. | D32: ='Accounting Data'!R377 -> 0 | E32: =-(SUMIFS('Accounting Data'!C$2:C$100000,'Accounting Data'!E$2:E$100000,"650",'Accounting Data'!J$2:J$100000,"1???")+SUMIFS('Accounting Data'!C$2:C$100000,'Accounting Data'!E$2:E$100000,"650",'Accounting Data'!J$2:J$100000,"2???")+SUMIFS('Accounting Data'!C$2:C$100000,'Accounting Data'!E$2:E$100000,"650",'Accounting Data'!J$2:J$100000,"3???")+SUMIFS('Accounting Data'!C$2:C$100000,'Accounting Data'!E$2:E$100000,"650",'Accounting Data'!J$2:J$100000,"4???")) -> 0 | F32: 0 | G32: =[1]!F650BudgFY -> 0 | H32: =(SUMIFS('Accounting Data'!C$2:C$100000,'Accounting Data'!E$2:E$100000,"650",'Accounting Data'!J$2:J$100000,"6???"))-(SUMIFS('Accounting Data'!C$2:C$100000,'Accounting Data'!E$2:E$100000,"650",'Accounting Data'!J$2:J$100000,"69??")) -> 0 | I32: 0 | J32: 26. | K32: Teacher instructional costs and professional development | N32: 0 | O32: 1. | Q32: 26. | R32: =-(SUMIFS('Accounting Data'!C$2:C$100000,'Accounting Data'!E$2:E$100000,"650",'Accounting Data'!J$2:J$100000,"5???")) -> 0 | S32: =(SUMIFS('Accounting Data'!C$2:C$100000,'Accounting Data'!E$2:E$100000,"650",'Accounting Data'!J$2:J$100000,"69??")) -> 0 | T32: 26.
A33: 660 Condemnation | C33: 27. | D33: ='Accounting Data'!R378 -> 0 | E33: =-(SUMIFS('Accounting Data'!C$2:C$100000,'Accounting Data'!E$2:E$100000,"660",'Accounting Data'!J$2:J$100000,"1???")+SUMIFS('Accounting Data'!C$2:C$100000,'Accounting Data'!E$2:E$100000,"660",'Accounting Data'!J$2:J$100000,"2???")+SUMIFS('Accounting Data'!C$2:C$100000,'Accounting Data'!E$2:E$100000,"660",'Accounting Data'!J$2:J$100000,"3???")+SUMIFS('Accounting Data'!C$2:C$100000,'Accounting Data'!E$2:E$100000,"660",'Accounting Data'!J$2:J$100000,"4???")) -> 0 | F33: 0 | G33: =[1]!F660BudgFY -> 0 | H33: =(SUMIFS('Accounting Data'!C$2:C$100000,'Accounting Data'!E$2:E$100000,"660",'Accounting Data'!J$2:J$100000,"6???"))-(SUMIFS('Accounting Data'!C$2:C$100000,'Accounting Data'!E$2:E$100000,"660",'Accounting Data'!J$2:J$100000,"69??")) -> 0 | I33: 0 | J33: 27. | K33: Student certification, credentialing, or licensure costs | Q33: 27. | R33: =-(SUMIFS('Accounting Data'!C$2:C$100000,'Accounting Data'!E$2:E$100000,"660",'Accounting Data'!J$2:J$100000,"5???")) -> 0 | S33: =(SUMIFS('Accounting Data'!C$2:C$100000,'Accounting Data'!E$2:E$100000,"660",'Accounting Data'!J$2:J$100000,"69??")) -> 0 | T33: 27.
A34: 665 Energy and Water Savings | C34: 28. | D34: ='Accounting Data'!R379 -> 0 | E34: =-(SUMIFS('Accounting Data'!C$2:C$100000,'Accounting Data'!E$2:E$100000,"665",'Accounting Data'!J$2:J$100000,"1???")+SUMIFS('Accounting Data'!C$2:C$100000,'Accounting Data'!E$2:E$100000,"665",'Accounting Data'!J$2:J$100000,"2???")+SUMIFS('Accounting Data'!C$2:C$100000,'Accounting Data'!E$2:E$100000,"665",'Accounting Data'!J$2:J$100000,"3???")+SUMIFS('Accounting Data'!C$2:C$100000,'Accounting Data'!E$2:E$100000,"665",'Accounting Data'!J$2:J$100000,"4???")) -> 0 | F34: 0 | G34: =[1]!F665BudgFY -> 0 | H34: =(SUMIFS('Accounting Data'!C$2:C$100000,'Accounting Data'!E$2:E$100000,"665",'Accounting Data'!J$2:J$100000,"6???"))-(SUMIFS('Accounting Data'!C$2:C$100000,'Accounting Data'!E$2:E$100000,"665",'Accounting Data'!J$2:J$100000,"69??")) -> 0 | I34: 0 | J34: 28. | N34: 0 | O34: 2. | Q34: 28. | R34: =-(SUMIFS('Accounting Data'!C$2:C$100000,'Accounting Data'!E$2:E$100000,"665",'Accounting Data'!J$2:J$100000,"5???")) -> 0 | S34: =(SUMIFS('Accounting Data'!C$2:C$100000,'Accounting Data'!E$2:E$100000,"665",'Accounting Data'!J$2:J$100000,"69??")) -> 0 | T34: 28.
A35: 686 Emergency Deficiencies Correction | C35: 29. | D35: ='Accounting Data'!R380 -> 0 | E35: =-(SUMIFS('Accounting Data'!C$2:C$100000,'Accounting Data'!E$2:E$100000,"686",'Accounting Data'!J$2:J$100000,"1???")+SUMIFS('Accounting Data'!C$2:C$100000,'Accounting Data'!E$2:E$100000,"686",'Accounting Data'!J$2:J$100000,"2???")+SUMIFS('Accounting Data'!C$2:C$100000,'Accounting Data'!E$2:E$100000,"686",'Accounting Data'!J$2:J$100000,"3???")+SUMIFS('Accounting Data'!C$2:C$100000,'Accounting Data'!E$2:E$100000,"686",'Accounting Data'!J$2:J$100000,"4???")) -> 0 | F35: 0 | G35: =[1]!F686BudgFY -> 0 | H35: =(SUMIFS('Accounting Data'!C$2:C$100000,'Accounting Data'!E$2:E$100000,"686",'Accounting Data'!J$2:J$100000,"6???"))-(SUMIFS('Accounting Data'!C$2:C$100000,'Accounting Data'!E$2:E$100000,"686",'Accounting Data'!J$2:J$100000,"69??")) -> 0 | I35: 0 | J35: 29. | K35: Developmental costs | N35: 0 | O35: 3. | Q35: 29. | R35: =-(SUMIFS('Accounting Data'!C$2:C$100000,'Accounting Data'!E$2:E$100000,"686",'Accounting Data'!J$2:J$100000,"5???")) -> 0 | S35: =(SUMIFS('Accounting Data'!C$2:C$100000,'Accounting Data'!E$2:E$100000,"686",'Accounting Data'!J$2:J$100000,"69??")) -> 0 | T35: 29.
A36: 691 Building Renewal Grant | C36: 30. | D36: ='Accounting Data'!R381 -> -392093 | E36: =-(SUMIFS('Accounting Data'!C$2:C$100000,'Accounting Data'!E$2:E$100000,"691",'Accounting Data'!J$2:J$100000,"1???")+SUMIFS('Accounting Data'!C$2:C$100000,'Accounting Data'!E$2:E$100000,"691",'Accounting Data'!J$2:J$100000,"2???")+SUMIFS('Accounting Data'!C$2:C$100000,'Accounting Data'!E$2:E$100000,"691",'Accounting Data'!J$2:J$100000,"3???")+SUMIFS('Accounting Data'!C$2:C$100000,'Accounting Data'!E$2:E$100000,"691",'Accounting Data'!J$2:J$100000,"4???")) -> 1130255 | F36: 0 | G36: =[1]!F691BudgFY -> 1100000 | H36: =(SUMIFS('Accounting Data'!C$2:C$100000,'Accounting Data'!E$2:E$100000,"691",'Accounting Data'!J$2:J$100000,"6???"))-(SUMIFS('Accounting Data'!C$2:C$100000,'Accounting Data'!E$2:E$100000,"691",'Accounting Data'!J$2:J$100000,"69??")) -> 856058 | I36: -117896 | J36: 30. | K36: Instructional hardware, software, or supplies | N36: 0 | O36: 4. | Q36: 30. | R36: =-(SUMIFS('Accounting Data'!C$2:C$100000,'Accounting Data'!E$2:E$100000,"691",'Accounting Data'!J$2:J$100000,"5???")) -> 0 | S36: =(SUMIFS('Accounting Data'!C$2:C$100000,'Accounting Data'!E$2:E$100000,"691",'Accounting Data'!J$2:J$100000,"69??")) -> 0 | T36: 30. | Y36: =IF(OR(G40="",G41="",G43="",G44="",G45="",G46=""),"yes","") -> 
A37: 695 New School Facilities | C37: 31. | D37: ='Accounting Data'!R382 -> -876947 | E37: =-(SUMIFS('Accounting Data'!C$2:C$100000,'Accounting Data'!E$2:E$100000,"695",'Accounting Data'!J$2:J$100000,"1???")+SUMIFS('Accounting Data'!C$2:C$100000,'Accounting Data'!E$2:E$100000,"695",'Accounting Data'!J$2:J$100000,"2???")+SUMIFS('Accounting Data'!C$2:C$100000,'Accounting Data'!E$2:E$100000,"695",'Accounting Data'!J$2:J$100000,"3???")+SUMIFS('Accounting Data'!C$2:C$100000,'Accounting Data'!E$2:E$100000,"695",'Accounting Data'!J$2:J$100000,"4???")) -> 19112452 | G37: =[1]!F695TotalBudgFY -> 21923031 | H37: =(SUMIFS('Accounting Data'!C$2:C$100000,'Accounting Data'!E$2:E$100000,"695",'Accounting Data'!J$2:J$100000,"6???"))-(SUMIFS('Accounting Data'!C$2:C$100000,'Accounting Data'!E$2:E$100000,"695",'Accounting Data'!J$2:J$100000,"69??")) -> 21551278 | I37: -3315773 | J37: 31. | K37: Career exploration | N37: 0 | O37: 5. | Q37: 31. | T37: 31. | Y37: =IF(OR(N32="",N34="",N35="",N36="",N37=""),"yes","") -> 
H38: =(SUMIFS('Accounting Data'!C$2:C$100000,'Accounting Data'!E$2:E$100000,"050",'Accounting Data'!J$2:J$100000,"6???"))-(SUMIFS('Accounting Data'!C$2:C$100000,'Accounting Data'!E$2:E$100000,"050",'Accounting Data'!J$2:J$100000,"69??")) -> 0 | J38: 23. | Q38: 23. | T38: 23.
A39: 720 Impact Aid Revenue Bond Debt service | C39: 32. | D39: ='Accounting Data'!R385 -> 0 | E39: =-(SUMIFS('Accounting Data'!C$2:C$100000,'Accounting Data'!E$2:E$100000,"720",'Accounting Data'!J$2:J$100000,"1???")+SUMIFS('Accounting Data'!C$2:C$100000,'Accounting Data'!E$2:E$100000,"720",'Accounting Data'!J$2:J$100000,"2???")+SUMIFS('Accounting Data'!C$2:C$100000,'Accounting Data'!E$2:E$100000,"720",'Accounting Data'!J$2:J$100000,"3???")+SUMIFS('Accounting Data'!C$2:C$100000,'Accounting Data'!E$2:E$100000,"720",'Accounting Data'!J$2:J$100000,"4???")) -> 0 | F39: =R39-S39 -> 0 | G39: =[1]!F720BudgFY -> 0 | H39: =(SUMIFS('Accounting Data'!C$2:C$100000,'Accounting Data'!E$2:E$100000,"720",'Accounting Data'!J$2:J$100000,"6???"))-(SUMIFS('Accounting Data'!C$2:C$100000,'Accounting Data'!E$2:E$100000,"720",'Accounting Data'!J$2:J$100000,"69??")) -> 0 | I39: 0 | J39: 32. | K39: Total expenditures (lines 1-5) | M39: =[1]!F597BudgFY -> 0 | N39: =SUM(N32:N37) -> 0 | O39: 6. | Q39: 32. | R39: =-(SUMIFS('Accounting Data'!C$2:C$100000,'Accounting Data'!E$2:E$100000,"720",'Accounting Data'!J$2:J$100000,"5???")) -> 0 | S39: =(SUMIFS('Accounting Data'!C$2:C$100000,'Accounting Data'!E$2:E$100000,"720",'Accounting Data'!J$2:J$100000,"69??")) -> 0 | T39: 32.
A40: 750 Permanent Funds | C40: 33. | D40: ='Accounting Data'!R386 -> 0 | E40: =-(SUM(SUMIFS('Accounting Data'!C$2:C$100000,'Accounting Data'!E$2:E$100000,"75?",'Accounting Data'!J$2:J$100000,{"1???","2???","3???","4???"}))) -> 0 | F40: =R40-S40 -> 0 | G40: 0 | H40: =(SUMIFS('Accounting Data'!C$2:C$100000,'Accounting Data'!E$2:E$100000,"75?",'Accounting Data'!J$2:J$100000,"6???"))-(SUMIFS('Accounting Data'!C$2:C$100000,'Accounting Data'!E$2:E$100000,"75?",'Accounting Data'!J$2:J$100000,"69??")) -> 0 | I40: 0 | J40: 33. | K40: Total expenditures from accounting data | N40: =F597ActExp -> 0 | O40: 7. | Q40: 33. | R40: =-(SUMIFS('Accounting Data'!C2:C100000,'Accounting Data'!E2:E100000,"75?",'Accounting Data'!J2:J100000,"5???")) -> 0 | S40: =(SUMIFS('Accounting Data'!C$2:C$100000,'Accounting Data'!E$2:E$100000,"75?",'Accounting Data'!J$2:J$100000,"69??")) -> 0 | T40: 33. | Y40: =IF(OR(SIBegFunBal="",F955BegFunBal="",OPEBBegFunBal="",ISFOthBegFunBal="",SIActRev="",F955ActRev="",OPEBActRev="",ISFOthActRev="",SIActExp="",F955ActExp="",OPEBActExp="",ISFOthActExp="",R48="",R49="",R50="",R51="",S48="",S49="",S50="",S51=""),"yes","") -> 
A41: 800-849 Trust and Custodial Funds | C41: 34. | D41: ='Accounting Data'!R387 -> 0 | E41: =-(SUM(SUMIFS('Accounting Data'!C$2:C$100000,'Accounting Data'!E$2:E$100000,{"80?","81?","82?","83?","84?"},'Accounting Data'!J$2:J$100000,"1???"),SUMIFS('Accounting Data'!C$2:C$100000,'Accounting Data'!E$2:E$100000,{"80?","81?","82?","83?","84?"},'Accounting Data'!J$2:J$100000,"2???"),SUMIFS('Accounting Data'!C$2:C$100000,'Accounting Data'!E$2:E$100000,{"80?","81?","82?","83?","84?"},'Accounting Data'!J$2:J$100000,"3???"),SUMIFS('Accounting Data'!C$2:C$100000,'Accounting Data'!E$2:E$100000,{"80?","81?","82?","83?","84?"},'Accounting Data'!J$2:J$100000,"4???"))) -> 0 | F41: =R41-S41 -> 0 | G41: 0 | H41: =(SUM(SUMIFS('Accounting Data'!C$2:C$100000,'Accounting Data'!E$2:E$100000,{"80?","81?","82?","83?","84?"},'Accounting Data'!J$2:J$100000,"6???")))-(SUM(SUMIFS('Accounting Data'!C$2:C$100000,'Accounting Data'!E$2:E$100000,{"80?","81?","82?","83?","84?"},'Accounting Data'!J$2:J$100000,"69??"))) -> 0 | I41: =D41+E41+F41-H41 -> 0 | J41: 34. | Q41: 34. | R41: =-(SUM(SUMIFS('Accounting Data'!C$2:C$100000,'Accounting Data'!E$2:E$100000,{"80?","81?","82?","83?","84?"},'Accounting Data'!J$2:J$100000,"5???"))) -> 0 | S41: =-(SUM(SUMIFS('Accounting Data'!C$2:C$100000,'Accounting Data'!E$2:E$100000,{"80?","81?","82?","83?","84?"},'Accounting Data'!J$2:J$100000,"69??"))) -> 0 | T41: 34. | Y41: =IF(OR(AND(OthBegFunBal<>0,A46="Other ________________"),AND(OthActRev<>0,A46="Other ________________"),AND(OthTransf<>0,A46="Other ________________"),AND(OthBudgExp<>0,A46="Other ________________"),AND(OthActExp<>0,A46="Other ________________")),"Yes","") -> 
A42: 850 Student Activities | C42: 35. | D42: ='Accounting Data'!R437 -> 38559 | E42: =-(SUMIFS('Accounting Data'!C$2:C$100000,'Accounting Data'!E$2:E$100000,"850",'Accounting Data'!J$2:J$100000,"1???")+SUMIFS('Accounting Data'!C$2:C$100000,'Accounting Data'!E$2:E$100000,"850",'Accounting Data'!J$2:J$100000,"2???")+SUMIFS('Accounting Data'!C$2:C$100000,'Accounting Data'!E$2:E$100000,"850",'Accounting Data'!J$2:J$100000,"3???")+SUMIFS('Accounting Data'!C$2:C$100000,'Accounting Data'!E$2:E$100000,"850",'Accounting Data'!J$2:J$100000,"4???")) -> 22290 | G42: =[1]!F850BudgFY -> 50000 | H42: =(SUMIFS('Accounting Data'!C$2:C$100000,'Accounting Data'!E$2:E$100000,"850",'Accounting Data'!J$2:J$100000,"6???"))-(SUMIFS('Accounting Data'!C$2:C$100000,'Accounting Data'!E$2:E$100000,"850",'Accounting Data'!J$2:J$100000,"69??")) -> 32034 | I42: =D42+E42-H42 -> 28815 | J42: 35. | Q42: 35. | T42: 35.
A43: 855 Employee Insurance Program Withholdings | C43: 36. | D43: ='Accounting Data'!R438 -> 0 | E43: =-(SUMIFS('Accounting Data'!C2:C100000,'Accounting Data'!E2:E100000,"855",'Accounting Data'!J2:J100000,"1???")+SUMIFS('Accounting Data'!C2:C100000,'Accounting Data'!E2:E100000,"855",'Accounting Data'!J2:J100000,"2???")+SUMIFS('Accounting Data'!C2:C100000,'Accounting Data'!E2:E100000,"855",'Accounting Data'!J2:J100000,"3???")+SUMIFS('Accounting Data'!C2:C100000,'Accounting Data'!E2:E100000,"855",'Accounting Data'!J2:J100000,"4???")) -> 0 | F43: =R43-S43 -> 0 | G43: 0 | H43: =(SUMIFS('Accounting Data'!C2:C100000,'Accounting Data'!E2:E100000,"855",'Accounting Data'!J2:J100000,"6???"))-(SUMIFS('Accounting Data'!C2:C100000,'Accounting Data'!E2:E100000,"855",'Accounting Data'!J2:J100000,"69??")) -> 0 | I43: =D43+E43+F43-H43 -> 0 | J43: 36. | Q43: 36. | R43: =-(SUMIFS('Accounting Data'!C$2:C$100000,'Accounting Data'!E$2:E$100000,"855",'Accounting Data'!J$2:J$100000,"5???")) -> 0 | S43: =-(SUMIFS('Accounting Data'!C$2:C$100000,'Accounting Data'!E$2:E$100000,"855",'Accounting Data'!J$2:J$100000,"69??")) -> 0 | T43: 36. | Y43: =O16="X" -> FALSE
A44: 865 State Income Tax Withholdings | C44: 37. | D44: ='Accounting Data'!R439 -> 0 | E44: =-(SUMIFS('Accounting Data'!C2:C100000,'Accounting Data'!E2:E100000,"865",'Accounting Data'!J2:J100000,"1???")+SUMIFS('Accounting Data'!C2:C100000,'Accounting Data'!E2:E100000,"865",'Accounting Data'!J2:J100000,"2???")+SUMIFS('Accounting Data'!C2:C100000,'Accounting Data'!E2:E100000,"865",'Accounting Data'!J2:J100000,"3???")+SUMIFS('Accounting Data'!C2:C100000,'Accounting Data'!E2:E100000,"865",'Accounting Data'!J2:J100000,"4???")) -> 0 | F44: =R44-S44 -> 0 | G44: 0 | H44: =(SUMIFS('Accounting Data'!C2:C100000,'Accounting Data'!E2:E100000,"865",'Accounting Data'!J2:J100000,"6???"))-(SUMIFS('Accounting Data'!C2:C100000,'Accounting Data'!E2:E100000,"865",'Accounting Data'!J2:J100000,"69??")) -> 0 | I44: =D44+E44+F44-H44 -> 0 | J44: 37. | Q44: 37. | R44: =-(SUMIFS('Accounting Data'!C$2:C$100000,'Accounting Data'!E$2:E$100000,"865",'Accounting Data'!J$2:J$100000,"5???")) -> 0 | S44: =-(SUMIFS('Accounting Data'!C$2:C$100000,'Accounting Data'!E$2:E$100000,"865",'Accounting Data'!J$2:J$100000,"69??")) -> 0 | T44: 37.
A45: 900-949 Enterprise Funds | C45: 38. | D45: ='Accounting Data'!R440 -> 0 | E45: =-(SUM(SUMIFS('Accounting Data'!C$2:C$100000,'Accounting Data'!E$2:E$100000,{"90?","91?","92?","93?","94?"},'Accounting Data'!J$2:J$100000,"1???"),SUMIFS('Accounting Data'!C$2:C$100000,'Accounting Data'!E$2:E$100000,{"90?","91?","92?","93?","94?"},'Accounting Data'!J$2:J$100000,"2???"),SUMIFS('Accounting Data'!C$2:C$100000,'Accounting Data'!E$2:E$100000,{"90?","91?","92?","93?","94?"},'Accounting Data'!J$2:J$100000,"3???"),SUMIFS('Accounting Data'!C$2:C$100000,'Accounting Data'!E$2:E$100000,{"90?","91?","92?","93?","94?"},'Accounting Data'!J$2:J$100000,"4???"))) -> 0 | F45: =R45-S45 -> 0 | G45: 0 | H45: =(SUM(SUMIFS('Accounting Data'!C$2:C$100000,'Accounting Data'!E$2:E$100000,{"90?","91?","92?","93?","94?"},'Accounting Data'!J$2:J$100000,"6???")))-(SUM(SUMIFS('Accounting Data'!C$2:C$100000,'Accounting Data'!E$2:E$100000,{"90?","91?","92?","93?","94?"},'Accounting Data'!J$2:J$100000,"69??"))) -> 0 | I45: =D45+E45+F45-H45 -> 0 | J45: 38. | Q45: 38. | R45: =-(SUM(SUMIFS('Accounting Data'!C$2:C$100000,'Accounting Data'!E$2:E$100000,{"90?","91?","92?","93?","94?"},'Accounting Data'!J$2:J$100000,"5???"))) -> 0 | S45: =-(SUM(SUMIFS('Accounting Data'!C$2:C$100000,'Accounting Data'!E$2:E$100000,{"90?","91?","92?","93?","94?"},'Accounting Data'!J$2:J$100000,"69??"))) -> 0 | T45: 38.
A46: Other Fund 457________________ | C46: 39. | D46: ='Accounting Data'!R540 -> 62077 | E46: =-(SUMIFS('Accounting Data'!C$2:C$100000,'Accounting Data'!E$2:E$100000,"Other",'Accounting Data'!J$2:J$100000,"1???")+SUMIFS('Accounting Data'!C$2:C$100000,'Accounting Data'!E$2:E$100000,"Other",'Accounting Data'!J$2:J$100000,"2???")+SUMIFS('Accounting Data'!C$2:C$100000,'Accounting Data'!E$2:E$100000,"Other",'Accounting Data'!J$2:J$100000,"3???")+SUMIFS('Accounting Data'!C$2:C$100000,'Accounting Data'!E$2:E$100000,"Other",'Accounting Data'!J$2:J$100000,"4???")) -> 834 | F46: =R46-S46 -> 0 | G46: 62077 | H46: =(SUMIFS('Accounting Data'!C$2:C$100000,'Accounting Data'!E$2:E$100000,"Other",'Accounting Data'!J$2:J$100000,"6???"))-(SUMIFS('Accounting Data'!C$2:C$100000,'Accounting Data'!E$2:E$100000,"Other",'Accounting Data'!J$2:J$100000,"69??")) -> 809 | I46: =D46+E46+F46-H46 -> 62102 | J46: 39. | Q46: 39. | R46: =-(SUMIFS('Accounting Data'!C$2:C$100000,'Accounting Data'!E$2:E$100000,"Other",'Accounting Data'!J$2:J$100000,"5???")) -> 0 | S46: =(SUMIFS('Accounting Data'!C$2:C$100000,'Accounting Data'!E$2:E$100000,"Other",'Accounting Data'!J$2:J$100000,"69??")) -> 0 | T46: 39.
A47: Internal Service Funds 950-989
A48: 9__ Self Insurance | C48: 1. | D48: 0 | E48: 0 | F48: =R48-S48 -> 0 | G48: =[1]!F9__SelfInsBudgFY -> 0 | H48: 0 | I48: =D48+E48+F48-H48 -> 0 | J48: 1. | Q48: 1. | R48: 0 | S48: 0 | T48: 1.
A49: 955 Intergovernmental Agreements | C49: 2. | D49: 0 | E49: 0 | F49: 0 | G49: 0 | H49: 0 | I49: =D49+E49+F49-H49 -> 0 | J49: 2. | Q49: 2. | R49: 0 | S49: 0 | T49: 2.
A50: 9__ OPEB | C50: 3. | D50: 0 | E50: 0 | F50: =R50-S50 -> 0 | G50: =[1]!F9__OPEBBudgFY -> 0 | H50: 0 | I50: =D50+E50+F50-H50 -> 0 | J50: 3. | Q50: 3. | R50: 0 | S50: 0 | T50: 3.
A51: 9__ _________________ | C51: 4. | D51: 0 | E51: 0 | F51: 0 | G51: =[1]!F9__OtherBudgFY -> 0 | H51: 0 | I51: =D51+E51+F51-H51 -> 0 | J51: 4. | Q51: 4. | R51: 0 | S51: 0 | T51: 4.
A54: (1) Actual revenues and actual expenditures should agree with supplement, fund 071—line 13 and fund 072—line 26.

Sheet Page 7
B1: District name | C1: =CoverDistrictName -> Liberty Elementary School District No. 25 | H1: County | I1: =County -> Maricopa | L1: CTDS number | M1: =Cover!Q1 -> 070425000
B2: Instructions
A5: A. | B5: Bonds and short-term debt | H5: F. | I5: Total salaries and benefits expenditures related to an agreement with Department | AA5: =IF(OR(AA25="yes",AA16="yes",AA9="yes",AA7="yes",AA27="yes"),"yes","") -> 
B6: 1. Bonds outstanding, July 1, 2024 | E6: 48555000 | F6: 1. | I6: of Labor to settle a decision based on the Fair Labor Standards Act | M6: 0
B7: 2. Bonds issued during FY 2025 | E7: 0 | F7: 2. | AA7: =IF(OR(E6="",E7="",E8="",E11="",E12=""),"yes","") -> 
B8: 3. Bonds retired during FY 2025 | E8: -3220000 | F8: 3.
B9: 4. Bonds outstanding, June 30, 2025 | E9: =E6+E7+E8 -> 45335000 | F9: 4. | I9: Rewards, discounts, incentives, and other financial consideration received from credit card companies (A.R.S. §35-391) | AA9: =IF(OR(M6="",M6="$",M10="",M14="",M14="$",M15="",M15="$",M16="",M16="$",CurrentYearSalary="",F41="",F41="$",F42="",F42="$",F43="",F44="",F45=""),"yes","") -> 
H10: G. | M10: 0
B11: 5. Short-term debt outstanding, July 1, 2024 | E11: 0 | F11: 5.
B12: 6. Short-term debt outstanding, June 30, 2025 | E12: =2213133.23+10909918 -> 13123051 | F12: 6.
H13: H. | I13: Cash and investments held at June 30, 2025
A14: B. | B14: District assessed valuation and other district information | I14: 1. Sinking funds | M14: 0
B15: 1. FY 2025 Assessed valuations and tax rates | I15: 2. Bond funds | M15: 0
B16: a. Primary | C16: 475418468 | D16: Tax rate | E16: 1.7327 | I16: 3. Other funds, except for any employee retirement funds | M16: 0 | AA16: =IF(OR(C16="",C16="$",C17="",C17="$",PrimaryTaxRate="",SecondaryTaxRate="",E18="",E19="",E20=""),"yes","") -> 
B17: b. Secondary | C17: 473488466 | D17: Tax rate | E17: 1.6496
B18: 2. Number of schools | E18: 7
B19: 3. Actual days in session | E19: 145
B20: 4. Area of school district (square miles) | E20: 260 | H20: I. | I20: Average teacher salary (A.R.S. §15-903.E)
B21: (Report this WHETHER OR NOT district changed boundaries in FY 2025) | I21: 1. Average salary of all teachers employed in FY 2025 | M21: 60672
I22: 2. Average salary of all teachers employed in FY 2024 | M22: =[2]!CurrentYearSalary -> 62845 | P22: Check this box if your district has no teachers (transporting districts and some CTEDs).
A23: C. | B23: County approved liabilities incurred in excess of | F23: Unrestricted | I23: 3. Increase in average teacher salary from prior year | M23: =M21-M22 -> -2173
B24: district budget (A.R.S. §15-907) | E24: M & O | F24: Capital Outlay | I24: 4. Percentage increase | M24: =IF(PriorYearSalary<>0,M23/M22,0) -> -0.035
B25: 1. Destruction or damage | E25: 0 | F25: 0 | G25: 1. | I25: Comments on average salary calculation (optional): | AA25: =IF(OR(E25="",E26="",E27="",F25="",F26="",F27="",F30="",F31="",F32="",F33="",F35="",F37=""),"yes","") -> 
B26: 2. Excessive/unexpected legal expenses | E26: 0 | F26: 0 | G26: 2.
B27: 3. Mitigation or removal of health or safety hazard | E27: 0 | F27: 0 | G27: 3. | AA27: =IF(OR(L36="",M35="",M36="",M45="",M46=""),"yes","") -> 
A29: D. | B29: Current expenditures by category
B30: 1. Classroom instruction excl. supplies (function 1000, except line 2 amount) | F30: 24972916
B31: 2. Classroom supplies (function 1000, object code 6600) | F31: 473564
B32: 3. Administration (functions 2300, 2400, 2500, & 2900) | F32: 5616014
B33: 4. Support services—students (function 2100) | F33: 3639154 | H33: J. | I33: Certified staff salaries and FTE (funds 001-799 excluding 575) | L33: Salaries | M33: FTE | T33: =O22="X" -> FALSE
B34: 5. All other support services & operations (functions 2200, 2600, 2700, | I34: 1. Substitute teachers (functions 1000, 2213 & 3300, object codes 6105-6109) | L34: =SUM(SUMIFS('Accounting Data'!C2:C100000,'Accounting Data'!E2:E100000,{"0??","1??","2??","3??","4??","5??","6??","7??","COVID","Other"},'Accounting Data'!I2:I100000,"1???",'Accounting Data'!J2:J100000,"6105"),SUMIFS('Accounting Data'!C2:C100000,'Accounting Data'!E2:E100000,{"0??","1??","2??","3??","4??","5??","6??","7??","COVID","Other"},'Accounting Data'!I2:I100000,"1???",'Accounting Data'!J2:J100000,"6106"),SUMIFS('Accounting Data'!C2:C100000,'Accounting Data'!E2:E100000,{"0??","1??","2??","3??","4??","5??","6??","7??","COVID","Other"},'Accounting Data'!I2:I100000,"1???",'Accounting Data'!J2:J100000,"6107"),SUMIFS('Accounting Data'!C2:C100000,'Accounting Data'!E2:E100000,{"0??","1??","2??","3??","4??","5??","6??","7??","COVID","Other"},'Accounting Data'!I2:I100000,"1???",'Accounting Data'!J2:J100000,"6108"),SUMIFS('Accounting Data'!C2:C100000,'Accounting Data'!E2:E100000,{"0??","1??","2??","3??","4??","5??","6??","7??","COVID","Other"},'Accounting Data'!I2:I100000,"1???",'Accounting Data'!J2:J100000,"6109"))-SUM(SUMIFS('Accounting Data'!C2:C100000,'Accounting Data'!E2:E100000,"575",'Accounting Data'!I2:I100000,"1???",'Accounting Data'!J2:J100000,{"6105","6106","6107","6108","6109"}))+SUM(SUMIFS('Accounting Data'!C2:C100000,'Accounting Data'!E2:E100000,{"0??","1??","2??","3??","4??","5??","6??","7??","COVID","Other"},'Accounting Data'!I2:I100000,"2213",'Accounting Data'!J2:J100000,"6105"),SUMIFS('Accounting Data'!C2:C100000,'Accounting Data'!E2:E100000,{"0??","1??","2??","3??","4??","5??","6??","7??","COVID","Other"},'Accounting Data'!I2:I100000,"2213",'Accounting Data'!J2:J100000,"6106"),SUMIFS('Accounting Data'!C2:C100000,'Accounting Data'!E2:E100000,{"0??","1??","2??","3??","4??","5??","6??","7??","COVID","Other"},'Accounting Data'!I2:I100000,"2213",'Accounting Data'!J2:J100000,"6107"),SUMIFS('Accounting Data'!C2:C100000,'Accounting Data'!E2:E100000,{"0??","1??","2??","3??","4??","5??","6??","7??","COVID","Other"},'Accounting Data'!I2:I100000,"2213",'Accounting Data'!J2:J100000,"6108"),SUMIFS('Accounting Data'!C2:C100000,'Accounting Data'!E2:E100000,{"0??","1??","2??","3??","4??","5??","6??","7??","COVID","Other"},'Accounting Data'!I2:I100000,"2213",'Accounting Data'!J2:J100000,"6109"))-SUM(SUMIFS('Accounting Data'!C2:C100000,'Accounting Data'!E2:E100000,"575",'Accounting Data'!I2:I100000,"2213",'Accounting Data'!J2:J100000,{"6105","6106","6107","6108","6109"}))+SUM(SUMIFS('Accounting Data'!C2:C100000,'Accounting Data'!E2:E100000,{"0??","1??","2??","3??","4??","5??","6??","7??","COVID","Other"},'Accounting Data'!I2:I100000,"33??",'Accounting Data'!J2:J100000,"6105"),SUMIFS('Accounting Data'!C2:C100000,'Accounting Data'!E2:E100000,{"0??","1??","2??","3??","4??","5??","6??","7??","COVID","Other"},'Accounting Data'!I2:I100000,"33??",'Accounting Data'!J2:J100000,"6106"),SUMIFS('Accounting Data'!C2:C100000,'Accounting Data'!E2:E100000,{"0??","1??","2??","3??","4??","5??","6??","7??","COVID","Other"},'Accounting Data'!I2:I100000,"33??",'Accounting Data'!J2:J100000,"6107"),SUMIFS('Accounting Data'!C2:C100000,'Accounting Data'!E2:E100000,{"0??","1??","2??","3??","4??","5??","6??","7??","COVID","Other"},'Accounting Data'!I2:I100000,"33??",'Accounting Data'!J2:J100000,"6108"),SUMIFS('Accounting Data'!C2:C100000,'Accounting Data'!E2:E100000,{"0??","1??","2??","3??","4??","5??","6??","7??","COVID","Other"},'Accounting Data'!I2:I100000,"33??",'Accounting Data'!J2:J100000,"6109"))-SUM(SUMIFS('Accounting Data'!C2:C100000,'Accounting Data'!E2:E100000,"575",'Accounting Data'!I2:I100000,"33??",'Accounting Data'!J2:J100000,{"6105","6106","6107","6108","6109"})) -> 622914
B35: 3100, & 3400) | F35: 12291484 | I35: 2. Classroom teacher base salaries (functions 1000 & 3300, object codes 6110-6114) | L35: =SUM(SUMIFS('Accounting Data'!C2:C100000,'Accounting Data'!E2:E100000,{"0??","1??","2??","3??","4??","5??","6??","7??","COVID","Other"},'Accounting Data'!I2:I100000,"1???",'Accounting Data'!J2:J100000,"6110"),SUMIFS('Accounting Data'!C2:C100000,'Accounting Data'!E2:E100000,{"0??","1??","2??","3??","4??","5??","6??","7??","COVID","Other"},'Accounting Data'!I2:I100000,"1???",'Accounting Data'!J2:J100000,"6111"),SUMIFS('Accounting Data'!C2:C100000,'Accounting Data'!E2:E100000,{"0??","1??","2??","3??","4??","5??","6??","7??","COVID","Other"},'Accounting Data'!I2:I100000,"1???",'Accounting Data'!J2:J100000,"6112"),SUMIFS('Accounting Data'!C2:C100000,'Accounting Data'!E2:E100000,{"0??","1??","2??","3??","4??","5??","6??","7??","COVID","Other"},'Accounting Data'!I2:I100000,"1???",'Accounting Data'!J2:J100000,"6113"),SUMIFS('Accounting Data'!C2:C100000,'Accounting Data'!E2:E100000,{"0??","1??","2??","3??","4??","5??","6??","7??","COVID","Other"},'Accounting Data'!I2:I100000,"1???",'Accounting Data'!J2:J100000,"6114"))-SUM(SUMIFS('Accounting Data'!C2:C100000,'Accounting Data'!E2:E100000,"575",'Accounting Data'!I2:I100000,"1???",'Accounting Data'!J2:J100000,{"6110","6111","6112","6113","6114"}))+SUM(SUMIFS('Accounting Data'!C2:C100000,'Accounting Data'!E2:E100000,{"0??","1??","2??","3??","4??","5??","6??","7??","COVID","Other"},'Accounting Data'!I2:I100000,"33??",'Accounting Data'!J2:J100000,"6110"),SUMIFS('Accounting Data'!C2:C100000,'Accounting Data'!E2:E100000,{"0??","1??","2??","3??","4??","5??","6??","7??","COVID","Other"},'Accounting Data'!I2:I100000,"33??",'Accounting Data'!J2:J100000,"6111"),SUMIFS('Accounting Data'!C2:C100000,'Accounting Data'!E2:E100000,{"0??","1??","2??","3??","4??","5??","6??","7??","COVID","Other"},'Accounting Data'!I2:I100000,"33??",'Accounting Data'!J2:J100000,"6112"),SUMIFS('Accounting Data'!C2:C100000,'Accounting Data'!E2:E100000,{"0??","1??","2??","3??","4??","5??","6??","7??","COVID","Other"},'Accounting Data'!I2:I100000,"33??",'Accounting Data'!J2:J100000,"6113"),SUMIFS('Accounting Data'!C2:C100000,'Accounting Data'!E2:E100000,{"0??","1??","2??","3??","4??","5??","6??","7??","COVID","Other"},'Accounting Data'!I2:I100000,"33??",'Accounting Data'!J2:J100000,"6114"))-SUM(SUMIFS('Accounting Data'!C2:C100000,'Accounting Data'!E2:E100000,"575",'Accounting Data'!I2:I100000,"33??",'Accounting Data'!J2:J100000,{"6110","6111","6112","6113","6114"})) -> 14834315 | M35: 244.5
B36: 6. Total current expenditures | F36: =IF(F30="$","$",SUM(F30:F35)) -> 46993132 | I36: a. Classroom teachers in their first 3 years as defined by A.R.S. §15-941(E) | L36: 2294950 | M36: 56
B37: 7. Total current expenditures from federal funds, excluding those funds intended to replace local tax revenues (e.g., impact aid funds) | F37: 1220293 | I37: b. Classroom teachers in their 4th year or later as defined by A.R.S. §15-941(E) | L37: =L35-L36 -> 12539365 | M37: =M35-M36 -> 188.5
B38: 8. Total current expenditures from state and local funds, including those funds intended to replace local tax revenues (e.g., impact aid funds) | F38: =F36-F37 -> 45772839 | I38: 3. Classroom teacher performance pay (functions 1000 & 3300, object codes 6115-6119) | L38: =SUM(SUMIFS('Accounting Data'!C2:C100000,'Accounting Data'!E2:E100000,{"0??","1??","2??","3??","4??","5??","6??","7??","COVID","Other"},'Accounting Data'!I2:I100000,"1???",'Accounting Data'!J2:J100000,"6115"),SUMIFS('Accounting Data'!C2:C100000,'Accounting Data'!E2:E100000,{"0??","1??","2??","3??","4??","5??","6??","7??","COVID","Other"},'Accounting Data'!I2:I100000,"1???",'Accounting Data'!J2:J100000,"6116"),SUMIFS('Accounting Data'!C2:C100000,'Accounting Data'!E2:E100000,{"0??","1??","2??","3??","4??","5??","6??","7??","COVID","Other"},'Accounting Data'!I2:I100000,"1???",'Accounting Data'!J2:J100000,"6117"),SUMIFS('Accounting Data'!C2:C100000,'Accounting Data'!E2:E100000,{"0??","1??","2??","3??","4??","5??","6??","7??","COVID","Other"},'Accounting Data'!I2:I100000,"1???",'Accounting Data'!J2:J100000,"6118"),SUMIFS('Accounting Data'!C2:C100000,'Accounting Data'!E2:E100000,{"0??","1??","2??","3??","4??","5??","6??","7??","COVID","Other"},'Accounting Data'!I2:I100000,"1???",'Accounting Data'!J2:J100000,"6119"))-SUM(SUMIFS('Accounting Data'!C2:C100000,'Accounting Data'!E2:E100000,"575",'Accounting Data'!I2:I100000,"1???",'Accounting Data'!J2:J100000,{"6115","6116","6117","6118","6119"}))+SUM(SUMIFS('Accounting Data'!C2:C100000,'Accounting Data'!E2:E100000,{"0??","1??","2??","3??","4??","5??","6??","7??","COVID","Other"},'Accounting Data'!I2:I100000,"33??",'Accounting Data'!J2:J100000,"6115"),SUMIFS('Accounting Data'!C2:C100000,'Accounting Data'!E2:E100000,{"0??","1??","2??","3??","4??","5??","6??","7??","COVID","Other"},'Accounting Data'!I2:I100000,"33??",'Accounting Data'!J2:J100000,"6116"),SUMIFS('Accounting Data'!C2:C100000,'Accounting Data'!E2:E100000,{"0??","1??","2??","3??","4??","5??","6??","7??","COVID","Other"},'Accounting Data'!I2:I100000,"33??",'Accounting Data'!J2:J100000,"6117"),SUMIFS('Accounting Data'!C2:C100000,'Accounting Data'!E2:E100000,{"0??","1??","2??","3??","4??","5??","6??","7??","COVID","Other"},'Accounting Data'!I2:I100000,"33??",'Accounting Data'!J2:J100000,"6118"),SUMIFS('Accounting Data'!C2:C100000,'Accounting Data'!E2:E100000,{"0??","1??","2??","3??","4??","5??","6??","7??","COVID","Other"},'Accounting Data'!I2:I100000,"33??",'Accounting Data'!J2:J100000,"6119"))-SUM(SUMIFS('Accounting Data'!C2:C100000,'Accounting Data'!E2:E100000,"575",'Accounting Data'!I2:I100000,"33??",'Accounting Data'!J2:J100000,{"6115","6116","6117","6118","6119"})) -> 741663
I39: 4. Classroom teacher payments not related to additional duties (function 1000 & 3300, object codes 6120-6129) | L39: =SUM(SUMIFS('Accounting Data'!C2:C100000,'Accounting Data'!E2:E100000,{"0??","1??","2??","3??","4??","5??","6??","7??","COVID","Other"},'Accounting Data'!I2:I100000,"1???",'Accounting Data'!J2:J100000,"612?")-SUMIFS('Accounting Data'!C2:C100000,'Accounting Data'!E2:E100000,"575",'Accounting Data'!J2:J100000,"612?"))+SUM(SUMIFS('Accounting Data'!C2:C100000,'Accounting Data'!E2:E100000,{"0??","1??","2??","3??","4??","5??","6??","7??","COVID","Other"},'Accounting Data'!I2:I100000,"33??",'Accounting Data'!J2:J100000,"612?")-SUMIFS('Accounting Data'!C2:C100000,'Accounting Data'!E2:E100000,"575",'Accounting Data'!J2:J100000,"612?")) -> 26667
A40: E. | B40: Other long-term debt | I40: 5. Classroom teacher payments related to additional duties (all functions, object cods 6130-6139) | L40: =ROUND(SUM(SUMIFS('Accounting Data'!C2:C100000,'Accounting Data'!E2:E100000,{"0??","1??","2??","3??","4??","5??","6??","7??","COVID","Other"},'Accounting Data'!J2:J100000,"613?")-SUMIFS('Accounting Data'!C2:C100000,'Accounting Data'!E2:E100000,"575",'Accounting Data'!J2:J100000,"613?")),0) -> 0
B41: 1. Other principal (object 6832) | F41: 302388 | I41: 6. Other certified staff (all functions, object codes 6140-6149) | L41: =ROUND(SUM(SUMIFS('Accounting Data'!C2:C100000,'Accounting Data'!E2:E100000,{"0??","1??","2??","3??","4??","5??","6??","7??","COVID","Other"},'Accounting Data'!J2:J100000,"614?")-SUMIFS('Accounting Data'!C2:C100000,'Accounting Data'!E2:E100000,"575",'Accounting Data'!J2:J100000,"614?")),0) -> 4548544
B42: 2. Other interest (object 6842) | F42: 0
B43: 3. Instructional software subscriptions (more than 12 months) principal (object 6833) | F43: 0 | I43: 7. In FY 2025, did the district pay any of its classroom teachers for prior classroom experience outside of the school district using either of the following
B44: 4. Instructional software subscriptions (more than 12 months) interest (object 6843) | F44: 0 | I44: two methods:
B45: 5. Did the district enter into any new financed purchase agreements or more than 12-month lease agreements or software subscriptions during the fiscal year? (yes or no) | F45: yes | I45: a. Increasing base salary by granting years of experience on its salary schedule? (yes or no) | M45: No | AA45: Yes
I46: b. Making payments in addition to their base salary? (yes or no) | M46: Yes | O46: =IF(ABS(SUM(L34+L35+L38+L39+L40+L41)-M48)<5,"","Total certified salaries do not agree with your accounting records. Click on the instructions for line 8 for more information.") ->  | AA46: No
I48: 8. Total certified salary payments from accounting data | M48: =ROUND(SUM(SUMIFS('Accounting Data'!C2:C100000,'Accounting Data'!E2:E100000,{"0??","1??","2??","3??","4??","5??","6??","7??","COVID","Other"},'Accounting Data'!J2:J100000,"610?"),SUMIFS('Accounting Data'!C2:C100000,'Accounting Data'!E2:E100000,{"0??","1??","2??","3??","4??","5??","6??","7??","COVID","Other"},'Accounting Data'!J2:J100000,"611?"),SUMIFS('Accounting Data'!C2:C100000,'Accounting Data'!E2:E100000,{"0??","1??","2??","3??","4??","5??","6??","7??","COVID","Other"},'Accounting Data'!J2:J100000,"612?"),SUMIFS('Accounting Data'!C2:C100000,'Accounting Data'!E2:E100000,{"0??","1??","2??","3??","4??","5??","6??","7??","COVID","Other"},'Accounting Data'!J2:J100000,"613?"),SUMIFS('Accounting Data'!C2:C100000,'Accounting Data'!E2:E100000,{"0??","1??","2??","3??","4??","5??","6??","7??","COVID","Other"},'Accounting Data'!J2:J100000,"614?"))-SUM(SUMIFS('Accounting Data'!C2:C100000,'Accounting Data'!E2:E100000,"575",'Accounting Data'!J2:J100000,{"610?","611?","612?","613?","614?"})),0) -> 20774102

Sheet Page 8
B1: District name | C1: =CoverDistrictName -> Liberty Elementary School District No. 25 | G1: County | H1: =County -> Maricopa | P1: CTDS number | Q1: =Cover!Q1 -> 070425000
I2: Instructions
A3: A. Enrollment of gifted pupils by grade (A.R.S. §15-779.02)
D4: Grade
A5: Areas of identification [A.R.S. §15-203(A)(15)] | D5: K | E5: 1 | F5: 2 | G5: 3 | H5: 4 | I5: 5 | J5: 6 | K5: 7 | L5: 8 | M5: 9 | N5: 10 | O5: 11 | P5: 12 | Q5: Total | AA5: =IF(OR(AA6="yes",AA7="yes",AA8="yes",AA16="yes",AA17="yes"),"yes","") -> 
A6: 1. Quantitative reasoning | D6: 0 | E6: 11 | F6: 12 | G6: 14 | H6: 16 | I6: 20 | J6: 5 | K6: 13 | L6: 6 | M6: 0 | N6: 0 | O6: 0 | P6: 0 | Q6: =SUM(D6:P6) -> 97 | R6: 1. | AA6: =IF(OR(D6="",E6="",F6="",G6="",H6="",I6="",J6="",K6="",L6="",M6="",N6="",O6="",P6=""),"yes","") -> 
A7: 2. Verbal reasoning | D7: 0 | E7: 2 | F7: 2 | G7: 4 | H7: 3 | I7: 11 | J7: 8 | K7: 5 | L7: 4 | M7: 0 | N7: 0 | O7: 0 | P7: 0 | Q7: =SUM(D7:P7) -> 39 | R7: 2. | AA7: =IF(OR(D7="",E7="",F7="",G7="",H7="",I7="",J7="",K7="",L7="",M7="",N7="",O7="",P7=""),"yes","") -> 
A8: 3. Nonverbal reasoning | D8: 0 | E8: 7 | F8: 5 | G8: 10 | H8: 4 | I8: 11 | J8: 12 | K8: 8 | L8: 10 | M8: 0 | N8: 0 | O8: 0 | P8: 0 | Q8: =SUM(D8:P8) -> 67 | R8: 3. | AA8: =IF(OR(D8="",E8="",F8="",G8="",H8="",I8="",J8="",K8="",L8="",M8="",N8="",O8="",P8=""),"yes","") -> 
A9: 4. Total duplicated enrollment (lines 1-3) | D9: =SUM(D6:D8) -> 0 | E9: =SUM(E6:E8) -> 20 | F9: 19 | G9: 28 | H9: 23 | I9: 42 | J9: 25 | K9: 26 | L9: =SUM(L6:L8) -> 20 | M9: 0 | N9: 0 | O9: 0 | P9: 0 | Q9: 203 | R9: 4.
A12: B. M&O special education programs by type | I12: C. Maintenance and Operation expenditures for
A13: (A.R.S. § 15-761) | D13: Program | E13: Program | I13: gifted pupils (elementary, secondary, and total)
D14: 200 & 300 | E14: 200 & 300 | J14: Actual expenditures for all gifted programs:
D15: budget | E15: actual | K15: K-8 $ | L15: 257971
A16: 1. Total all disability classifications | D16: =[1]!F001P200Subtotal -> 7762296 | E16: 8295477 | F16: 1. | K16: 9-12 $ | L16: 0 | AA16: =IF(OR(E16="",E17="",E18="",E19="",E20="",E21="",E22="",E23="",E27=""),"yes","") -> 
A17: 2. Gifted education | D17: =[1]!SPEDGiftedEdBudgFY -> 240000 | E17: 257971 | F17: 2. | K17: Total $ | L17: =SUM(L15:L16) -> 257971 | AA17: =IF(OR(L15="",L16="",O21="",O22="",N26=""),"yes","") -> 
A18: 3. Remedial education | D18: =[1]!SPEDRemedialEdBudgFY -> 0 | E18: 0 | F18: 3.
A19: 4. ELL incremental costs | D19: =[1]!SPEDELLIncCostBudgFY -> 83000 | E19: 47509 | F19: 4. | I19: D. Expenditures for audit services
A20: 5. ELL compensatory instruction | D20: =[1]!SPEDELLCompInstrBudgFY -> 0 | E20: 0 | F20: 5. | N20: Budget | O20: Actual
A21: 6. Vocational and technological education (non-CTED) | D21: =[1]!SPEDVocTechEdBudgFY -> 0 | E21: 0 | F21: 6. | I21: 1. | J21: Nonfederal audit expenditures - M&O fund | M21: 6350 | N21: =[1]!F001AuditBudg6350 -> 42352 | O21: 42353 | P21: 1.
A22: 7. Career education | D22: =[1]!SPEDCareerEdBudgFY -> 0 | E22: 0 | F22: 7. | I22: 2. | J22: Federal audit expenditures - all funds | M22: 6330 | N22: =[1]!AllFundAuditBudg6330 -> 4600 | O22: 4600 | P22: 2.
A23: 8. Career technical education (CTED programs in 300 range) | D23: =[1]!JTEDBudgFY -> 0 | E23: 0 | F23: 8.
A24: 9. Total (lines 1-8) | D24: =SUM(D16:D23) -> 8085296 | E24: =SUM(E16:E23) -> 8600957 | F24: 9.
I25: E. Maintenance and Operation fund expenditures for performance pay (A.R.S. §15-920)
A26: 10. IEP required pupil transportation costs coded within program 400 | I26: Actual expenditures made in FY 2025 | M26: $ | N26: 0
D27: =[1]!IEPTransportCosts -> 650000 | E27: 700000 | F27: 10.
I29: F. Tuition | N29: Tuition expenditures
I30: 1. Tuition to other Arizona districts (object 6561) | N30: =(SUMIFS('Accounting Data'!C2:C100000,'Accounting Data'!J2:J100000,"6561",'Accounting Data'!I2:I100000,"1???")) -> 0
I31: 2. Tuition to out-of-state districts (object 6562) | N31: =(SUMIFS('Accounting Data'!C2:C100000,'Accounting Data'!J2:J100000,"6562",'Accounting Data'!I2:I100000,"1???")) -> 0
I32: 3. Tuition to private schools (object 6563) | N32: =(SUMIFS('Accounting Data'!C2:C100000,'Accounting Data'!J2:J100000,"6563",'Accounting Data'!I2:I100000,"1???")) -> 1484400
I33: 4. Tuition to ed services\coops\IGAs (object 6564) | N33: =(SUMIFS('Accounting Data'!C2:C100000,'Accounting Data'!J2:J100000,"6564",'Accounting Data'!I2:I100000,"1???")) -> 0
I34: 5. Tuition other (object 6569) (1) | N34: =(SUMIFS('Accounting Data'!C2:C100000,'Accounting Data'!J2:J100000,"6569",'Accounting Data'!I2:I100000,"1???")) -> 0
I35: 6. Total (lines 1-5) | N35: =SUM(N30:N34) -> 1484400
I37: (1) Tuition paid to the State and other governmental organizations, such as the Arizona School for the Deaf and Blind, as reimbursement for providing specialized instructional services to students residing within the boundaries of the paying district.

Sheet Page 9
A1: District name | B1: =CoverDistrictName -> Liberty Elementary School District No. 25 | G1: County | H1: =County -> Maricopa | M1: CTDS number | N1: =Cover!Q1 -> 070425000
A2: Instructions
A3: Additional information for National Public Education Financial Ssurvey (NPEFS) reporting | Z3: The following tables are outside the printable range of the AFR, but are used in the formulas in the NPEFS table to pull amounts from the accounting data based on the fund, program, function and object criteria indicated on the tables.
C5: Programs 100-630 | M5: Programs 700-900
E6: Purchased | I6: Judgments | L6: Miscellaneous and | DC6: Programs 700-999
D7: Employee | E7: services | I7: against a | J7: Redemption of | K7: Interest | L7: charges for | M7: All | S7: Food service supplies expenses minus commodities | Z7: Object 6100 | AH7: Object 6200 | BF7: Object 6600 | BN7: Object 6700 | BV7: Object 6810 | CT7: Object 6890 | DC7: All object codes
A8: Funds 001-799 (excluding 575) | C8: Salaries | D8: benefits | E8: 6300, 6400, | F8: Supplies | G8: Property | H8: Dues and fees | I8: district | J8: principal | K8: 6841, 6842, | L8: district services | M8: object codes | N8: Total | AA8: All funds | AB8: Excluded funds 575, 800-999 | AC8: Programs 700-900 | AD8: Programs 700-900 excluded funds (to add back to avoid double exclusion) | AI8: All funds | AJ8: Excluded funds 575, 800-999 | AK8: Programs 700-900 | AL8: Programs 700-900 excluded funds (to add back to avoid double exclusion) | AP8: Objects 6300, 6400 and 6500 | BF8: Function | BG8: All funds | BH8: Excluded funds 575,800-999 | BI8: Programs 700-900 all funds | BJ8: Programs 700-900 excluded funds (to add back to avoid double exclusion) | BO8: All funds | BP8: Funds 575,800-999 | BQ8: Programs 700-900 | BR8: Programs 700-900 excluded funds (to add back to avoid double exclusion) | BW8: All funds | BX8: Funds 575,800-999 | BY8: Programs 700-900 | BZ8: Programs 700-900 excluded funds (to add back to avoid double exclusion) | CT8: Function | CU8: All funds | CV8: Funds 575,800-999 | CW8: Programs 700-900 | CX8: Programs 700-900 fund 575 | CY8: Programs 700-900 funds 800-899 | CZ8: Programs 700-900 funds 900-999 | DC8: All funds and objects, programs 700-900 | DD8: All funds and object 6900, programs 700-900 | DE8: Funds 575 programs 700-900, and all objects. | DF8: Funds 800-999, programs 700-900, and all objects | DG8: Funds 575, programs 700-900, and object 6900 | DH8: Funds 800-999, programs 700-900, and object 6900
C9: 6100 | D9: 6200 | E9: 6500 | F9: 6600 | G9: 6700 | H9: 6810 | I9: 6820 | J9: 6831, 6832, 6833 | K9: 6843, 6850 | L9: 6885, 6890 | M9: (excluding 6900) | Z9: Function | AC9: all funds | AD9: Fund 575 | AE9: Funds 800-899 | AF9: Funds 900-999 | AH9: Function | AK9: all funds | AL9: Fund 575 | AM9: Funds 800-899 | AN9: Funds 900-999 | AP9: Function | AQ9: All funds | AR9: Excluded funds 575, 800-999 | AU9: Programs 700-900 | AV9: Programs 700-900, funds 575 | AY9: Programs 700-900, funds 800-899 | BB9: Programs 700-900, funds 900-999 | BJ9: Fund 575 | BK9: Funds 800-899 | BL9: Funds 900-999 | BN9: Function | BQ9: all funds | BR9: Fund 575 | BS9: Funds 800-899 | BT9: Funds 900-999 | BV9: Function | BY9: all funds | BZ9: Fund 575 | CA9: Funds 800-899 | CB9: Funds 900-999 | DB9: Function
A10: 1000 Instruction | B10: 1. | C10: =(AA10-AB10-AC10)+(AD10+AE10+AF10) -> 17605271 | D10: =(AI10-AJ10-AK10)+(AL10+AM10+AN10) -> 5291827 | E10: =(AQ10-AR10-AS10-AT10-AU10)+(AV10+AW10+AX10+AY10+AZ10+BA10+BB10+BC10+BD10) -> 1931162 | F10: =(BG10-BH10-BI10)+(BJ10+BK10+BL10) -> 769203 | G10: =(BO10-BP10-BQ10)+(BR10+BS10+BT10) -> 779502 | H10: =(BW10-BX10-BY10)+(BZ10+CA10+CB10) -> 5855 | L10: =(CU10-CV10-CW10)+(CX10+CY10+CZ10) -> 283631 | M10: =(DC10-DD10)-((DE10+DF10)-(DG10+DH10)) -> 0 | N10: =SUM(C10:M10) -> 26666451 | O10: 1. | S10: =F20-'Food Service'!D13 -> 20753 | T10: Amount used for food service allocation (lesser of restricted Fund 510 federal revenue or cell S14) | Z10: 1000 | AA10: =ROUND(SUMIFS('Accounting Data'!C2:C100000,'Accounting Data'!I2:I100000,"1???",'Accounting Data'!J2:J100000,"61??"),0) -> 17605271 | AB10: =ROUND(SUMIFS('Accounting Data'!C2:C100000,'Accounting Data'!E2:E100000,"575",'Accounting Data'!I2:I100000,"1???",'Accounting Data'!J2:J100000,"61??")+SUMIFS('Accounting Data'!C2:C100000,'Accounting Data'!E2:E100000,"8??",'Accounting Data'!I2:I100000,"1???",'Accounting Data'!J2:J100000,"61??")+SUMIFS('Accounting Data'!C2:C100000,'Accounting Data'!E2:E100000,"9??",'Accounting Data'!I2:I100000,"1???",'Accounting Data'!J2:J100000,"61??"),0) -> 0 | AC10: =ROUND(SUMIFS('Accounting Data'!C2:C100000,'Accounting Data'!H2:H100000,"7??",'Accounting Data'!I2:I100000,"1???",'Accounting Data'!J2:J100000,"61??")+SUMIFS('Accounting Data'!C2:C100000,'Accounting Data'!H2:H100000,"8??",'Accounting Data'!I2:I100000,"1???",'Accounting Data'!J2:J100000,"61??")+SUMIFS('Accounting Data'!C2:C100000,'Accounting Data'!H2:H100000,"9??",'Accounting Data'!I2:I100000,"1???",'Accounting Data'!J2:J100000,"61??"),0) -> 0 | AD10: =ROUND(SUMIFS('Accounting Data'!C2:C100000,'Accounting Data'!E2:E100000,"575",'Accounting Data'!H2:H100000,"7??",'Accounting Data'!I2:I100000,"1???",'Accounting Data'!J2:J100000,"61??")+SUMIFS('Accounting Data'!C2:C100000,'Accounting Data'!E2:E100000,"575",'Accounting Data'!H2:H100000,"8??",'Accounting Data'!I2:I100000,"1???",'Accounting Data'!J2:J100000,"61??")+SUMIFS('Accounting Data'!C2:C100000,'Accounting Data'!E2:E100000,"575",'Accounting Data'!H2:H100000,"9??",'Accounting Data'!I2:I100000,"1???",'Accounting Data'!J2:J100000,"61??"),0) -> 0 | AE10: =ROUND(SUMIFS('Accounting Data'!C2:C100000,'Accounting Data'!E2:E100000,"8??",'Accounting Data'!H2:H100000,"7??",'Accounting Data'!I2:I100000,"1???",'Accounting Data'!J2:J100000,"61??")+SUMIFS('Accounting Data'!C2:C100000,'Accounting Data'!E2:E100000,"8??",'Accounting Data'!H2:H100000,"8??",'Accounting Data'!I2:I100000,"1???",'Accounting Data'!J2:J100000,"61??")+SUMIFS('Accounting Data'!C2:C100000,'Accounting Data'!E2:E100000,"8??",'Accounting Data'!H2:H100000,"9??",'Accounting Data'!I2:I100000,"1???",'Accounting Data'!J2:J100000,"61??"),0) -> 0 | AF10: =ROUND(SUMIFS('Accounting Data'!C2:C100000,'Accounting Data'!E2:E100000,"9??",'Accounting Data'!H2:H100000,"7??",'Accounting Data'!I2:I100000,"1???",'Accounting Data'!J2:J100000,"61??")+SUMIFS('Accounting Data'!C2:C100000,'Accounting Data'!E2:E100000,"9??",'Accounting Data'!H2:H100000,"8??",'Accounting Data'!I2:I100000,"1???",'Accounting Data'!J2:J100000,"61??")+SUMIFS('Accounting Data'!C2:C100000,'Accounting Data'!E2:E100000,"9??",'Accounting Data'!H2:H100000,"9??",'Accounting Data'!I2:I100000,"1???",'Accounting Data'!J2:J100000,"61??"),0) -> 0 | AH10: 1000 | AI10: =SUMIFS('Accounting Data'!C2:C100000,'Accounting Data'!I2:I100000,"1???",'Accounting Data'!J2:J100000,"62??") -> 5291827 | AJ10: =SUMIFS('Accounting Data'!C2:C100000,'Accounting Data'!E2:E100000,"575",'Accounting Data'!I2:I100000,"1???",'Accounting Data'!J2:J100000,"62??")+SUMIFS('Accounting Data'!C2:C100000,'Accounting Data'!E2:E100000,"8??",'Accounting Data'!I2:I100000,"1???",'Accounting Data'!J2:J100000,"62??")+SUMIFS('Accounting Data'!C2:C100000,'Accounting Data'!E2:E100000,"9??",'Accounting Data'!I2:I100000,"1???",'Accounting Data'!J2:J100000,"62??") -> 0 | AK10: =SUMIFS('Accounting Data'!C2:C100000,'Accounting Data'!H2:H100000,"7??",'Accounting Data'!I2:I100000,"1???",'Accounting Data'!J2:J100000,"62??")+SUMIFS('Accounting Data'!C2:C100000,'Accounting Data'!H2:H100000,"8??",'Accounting Data'!I2:I100000,"1???",'Accounting Data'!J2:J100000,"62??")+SUMIFS('Accounting Data'!C2:C100000,'Accounting Data'!H2:H100000,"9??",'Accounting Data'!I2:I100000,"1???",'Accounting Data'!J2:J100000,"62??") -> 0 | AL10: =SUMIFS('Accounting Data'!C2:C100000,'Accounting Data'!E2:E100000,"575",'Accounting Data'!H2:H100000,"7??",'Accounting Data'!I2:I100000,"1???",'Accounting Data'!J2:J100000,"62??")+SUMIFS('Accounting Data'!C2:C100000,'Accounting Data'!E2:E100000,"575",'Accounting Data'!H2:H100000,"8??",'Accounting Data'!I2:I100000,"1???",'Accounting Data'!J2:J100000,"62??")+SUMIFS('Accounting Data'!C2:C100000,'Accounting Data'!E2:E100000,"575",'Accounting Data'!H2:H100000,"9??",'Accounting Data'!I2:I100000,"1???",'Accounting Data'!J2:J100000,"62??") -> 0 | AM10: =SUMIFS('Accounting Data'!C2:C100000,'Accounting Data'!E2:E100000,"8??",'Accounting Data'!H2:H100000,"7??",'Accounting Data'!I2:I100000,"1???",'Accounting Data'!J2:J100000,"62??")+SUMIFS('Accounting Data'!C2:C100000,'Accounting Data'!E2:E100000,"8??",'Accounting Data'!H2:H100000,"8??",'Accounting Data'!I2:I100000,"1???",'Accounting Data'!J2:J100000,"62??")+SUMIFS('Accounting Data'!C2:C100000,'Accounting Data'!E2:E100000,"8??",'Accounting Data'!H2:H100000,"9??",'Accounting Data'!I2:I100000,"1???",'Accounting Data'!J2:J100000,"62??") -> 0 | AN10: =SUMIFS('Accounting Data'!C2:C100000,'Accounting Data'!E2:E100000,"9??",'Accounting Data'!H2:H100000,"7??",'Accounting Data'!I2:I100000,"1???",'Accounting Data'!J2:J100000,"62??")+SUMIFS('Accounting Data'!C2:C100000,'Accounting Data'!E2:E100000,"9??",'Accounting Data'!H2:H100000,"8??",'Accounting Data'!I2:I100000,"1???",'Accounting Data'!J2:J100000,"62??")+SUMIFS('Accounting Data'!C2:C100000,'Accounting Data'!E2:E100000,"9??",'Accounting Data'!H2:H100000,"9??",'Accounting Data'!I2:I100000,"1???",'Accounting Data'!J2:J100000,"62??") -> 0 | AP10: 1000 | AQ10: =SUMIFS('Accounting Data'!C2:C100000,'Accounting Data'!I2:I100000,"1???",'Accounting Data'!J2:J100000,"63??")+SUMIFS('Accounting Data'!C2:C100000,'Accounting Data'!I2:I100000,"1???",'Accounting Data'!J2:J100000,"64??")+SUMIFS('Accounting Data'!C2:C100000,'Accounting Data'!I2:I100000,"1???",'Accounting Data'!J2:J100000,"65??") -> 1932793 | AR10: =SUMIFS('Accounting Data'!C2:C100000,'Accounting Data'!E2:E100000,"575",'Accounting Data'!I2:I100000,"1???",'Accounting Data'!J2:J100000,"63??")+SUMIFS('Accounting Data'!C2:C100000,'Accounting Data'!E2:E100000,"8??",'Accounting Data'!I2:I100000,"1???",'Accounting Data'!J2:J100000,"63??")+SUMIFS('Accounting Data'!C2:C100000,'Accounting Data'!E2:E100000,"9??",'Accounting Data'!I2:I100000,"1???",'Accounting Data'!J2:J100000,"63??") -> 1631 | AS10: =SUMIFS('Accounting Data'!C2:C100000,'Accounting Data'!E2:E100000,"575",'Accounting Data'!I2:I100000,"1???",'Accounting Data'!J2:J100000,"64??")+SUMIFS('Accounting Data'!C2:C100000,'Accounting Data'!E2:E100000,"8??",'Accounting Data'!I2:I100000,"1???",'Accounting Data'!J2:J100000,"64??")+SUMIFS('Accounting Data'!C2:C100000,'Accounting Data'!E2:E100000,"9??",'Accounting Data'!I2:I100000,"1???",'Accounting Data'!J2:J100000,"64??") -> 0 | AT10: =SUMIFS('Accounting Data'!C2:C100000,'Accounting Data'!E2:E100000,"575",'Accounting Data'!I2:I100000,"1???",'Accounting Data'!J2:J100000,"65??")+SUMIFS('Accounting Data'!C2:C100000,'Accounting Data'!E2:E100000,"8??",'Accounting Data'!I2:I100000,"1???",'Accounting Data'!J2:J100000,"65??")+SUMIFS('Accounting Data'!C2:C100000,'Accounting Data'!E2:E100000,"9??",'Accounting Data'!I2:I100000,"1???",'Accounting Data'!J2:J100000,"65??") -> 0 | AU10: =SUMIFS('Accounting Data'!C2:C100000,'Accounting Data'!H2:H100000,"7??",'Accounting Data'!I2:I100000,"1???",'Accounting Data'!J2:J100000,"63??")+SUMIFS('Accounting Data'!C2:C100000,'Accounting Data'!H2:H100000,"8??",'Accounting Data'!I2:I100000,"1???",'Accounting Data'!J2:J100000,"63??")+SUMIFS('Accounting Data'!C2:C100000,'Accounting Data'!H2:H100000,"9??",'Accounting Data'!I2:I100000,"1???",'Accounting Data'!J2:J100000,"63??")+SUMIFS('Accounting Data'!C2:C100000,'Accounting Data'!H2:H100000,"7??",'Accounting Data'!I2:I100000,"1???",'Accounting Data'!J2:J100000,"64??")+SUMIFS('Accounting Data'!C2:C100000,'Accounting Data'!H2:H100000,"8??",'Accounting Data'!I2:I100000,"1???",'Accounting Data'!J2:J100000,"64??")+SUMIFS('Accounting Data'!C2:C100000,'Accounting Data'!H2:H100000,"9??",'Accounting Data'!I2:I100000,"1???",'Accounting Data'!J2:J100000,"64??")+SUMIFS('Accounting Data'!C2:C100000,'Accounting Data'!H2:H100000,"7??",'Accounting Data'!I2:I100000,"1???",'Accounting Data'!J2:J100000,"65??")+SUMIFS('Accounting Data'!C2:C100000,'Accounting Data'!H2:H100000,"8??",'Accounting Data'!I2:I100000,"1???",'Accounting Data'!J2:J100000,"65??")+SUMIFS('Accounting Data'!C2:C100000,'Accounting Data'!H2:H100000,"9??",'Accounting Data'!I2:I100000,"1???",'Accounting Data'!J2:J100000,"65??") -> 0 | AV10: =SUMIFS('Accounting Data'!C2:C100000,'Accounting Data'!E2:E100000,"575",'Accounting Data'!H2:H100000,"7??",'Accounting Data'!I2:I100000,"1???",'Accounting Data'!J2:J100000,"63??")+SUMIFS('Accounting Data'!C2:C100000,'Accounting Data'!E2:E100000,"575",'Accounting Data'!H2:H100000,"8??",'Accounting Data'!I2:I100000,"1???",'Accounting Data'!J2:J100000,"63??")+SUMIFS('Accounting Data'!C2:C100000,'Accounting Data'!E2:E100000,"575",'Accounting Data'!H2:H100000,"9??",'Accounting Data'!I2:I100000,"1???",'Accounting Data'!J2:J100000,"63??") -> 0 | AW10: =SUMIFS('Accounting Data'!C2:C100000,'Accounting Data'!E2:E100000,"575",'Accounting Data'!H2:H100000,"7??",'Accounting Data'!I2:I100000,"1???",'Accounting Data'!J2:J100000,"64??")+SUMIFS('Accounting Data'!C2:C100000,'Accounting Data'!E2:E100000,"575",'Accounting Data'!H2:H100000,"8??",'Accounting Data'!I2:I100000,"1???",'Accounting Data'!J2:J100000,"64??")+SUMIFS('Accounting Data'!C2:C100000,'Accounting Data'!E2:E100000,"575",'Accounting Data'!H2:H100000,"9??",'Accounting Data'!I2:I100000,"1???",'Accounting Data'!J2:J100000,"64??") -> 0 | AX10: =SUMIFS('Accounting Data'!C2:C100000,'Accounting Data'!E2:E100000,"575",'Accounting Data'!H2:H100000,"7??",'Accounting Data'!I2:I100000,"1???",'Accounting Data'!J2:J100000,"65??")+SUMIFS('Accounting Data'!C2:C100000,'Accounting Data'!E2:E100000,"575",'Accounting Data'!H2:H100000,"8??",'Accounting Data'!I2:I100000,"1???",'Accounting Data'!J2:J100000,"65??")+SUMIFS('Accounting Data'!C2:C100000,'Accounting Data'!E2:E100000,"575",'Accounting Data'!H2:H100000,"9??",'Accounting Data'!I2:I100000,"1???",'Accounting Data'!J2:J100000,"65??") -> 0 | AY10: =SUMIFS('Accounting Data'!C2:C100000,'Accounting Data'!E2:E100000,"8??",'Accounting Data'!H2:H100000,"7??",'Accounting Data'!I2:I100000,"1???",'Accounting Data'!J2:J100000,"63??")+SUMIFS('Accounting Data'!C2:C100000,'Accounting Data'!E2:E100000,"8??",'Accounting Data'!H2:H100000,"8??",'Accounting Data'!I2:I100000,"1???",'Accounting Data'!J2:J100000,"63??")+SUMIFS('Accounting Data'!C2:C100000,'Accounting Data'!E2:E100000,"8??",'Accounting Data'!H2:H100000,"9??",'Accounting Data'!I2:I100000,"1???",'Accounting Data'!J2:J100000,"63??") -> 0 | AZ10: =SUMIFS('Accounting Data'!C2:C100000,'Accounting Data'!E2:E100000,"8??",'Accounting Data'!H2:H100000,"7??",'Accounting Data'!I2:I100000,"1???",'Accounting Data'!J2:J100000,"64??")+SUMIFS('Accounting Data'!C2:C100000,'Accounting Data'!E2:E100000,"8??",'Accounting Data'!H2:H100000,"8??",'Accounting Data'!I2:I100000,"1???",'Accounting Data'!J2:J100000,"64??")+SUMIFS('Accounting Data'!C2:C100000,'Accounting Data'!E2:E100000,"8??",'Accounting Data'!H2:H100000,"9??",'Accounting Data'!I2:I100000,"1???",'Accounting Data'!J2:J100000,"64??") -> 0 | BA10: =SUMIFS('Accounting Data'!C2:C100000,'Accounting Data'!E2:E100000,"8??",'Accounting Data'!H2:H100000,"7??",'Accounting Data'!I2:I100000,"1???",'Accounting Data'!J2:J100000,"65??")+SUMIFS('Accounting Data'!C2:C100000,'Accounting Data'!E2:E100000,"8??",'Accounting Data'!H2:H100000,"8??",'Accounting Data'!I2:I100000,"1???",'Accounting Data'!J2:J100000,"65??")+SUMIFS('Accounting Data'!C2:C100000,'Accounting Data'!E2:E100000,"8??",'Accounting Data'!H2:H100000,"9??",'Accounting Data'!I2:I100000,"1???",'Accounting Data'!J2:J100000,"65??") -> 0 | BB10: =SUMIFS('Accounting Data'!C2:C100000,'Accounting Data'!E2:E100000,"9??",'Accounting Data'!H2:H100000,"7??",'Accounting Data'!I2:I100000,"1???",'Accounting Data'!J2:J100000,"63??")+SUMIFS('Accounting Data'!C2:C100000,'Accounting Data'!E2:E100000,"9??",'Accounting Data'!H2:H100000,"8??",'Accounting Data'!I2:I100000,"1???",'Accounting Data'!J2:J100000,"63??")+SUMIFS('Accounting Data'!C2:C100000,'Accounting Data'!E2:E100000,"9??",'Accounting Data'!H2:H100000,"9??",'Accounting Data'!I2:I100000,"1???",'Accounting Data'!J2:J100000,"63??") -> 0 | BC10: =SUMIFS('Accounting Data'!C2:C100000,'Accounting Data'!E2:E100000,"9??",'Accounting Data'!H2:H100000,"7??",'Accounting Data'!I2:I100000,"1???",'Accounting Data'!J2:J100000,"64??")+SUMIFS('Accounting Data'!C2:C100000,'Accounting Data'!E2:E100000,"9??",'Accounting Data'!H2:H100000,"8??",'Accounting Data'!I2:I100000,"1???",'Accounting Data'!J2:J100000,"64??")+SUMIFS('Accounting Data'!C2:C100000,'Accounting Data'!E2:E100000,"9??",'Accounting Data'!H2:H100000,"9??",'Accounting Data'!I2:I100000,"1???",'Accounting Data'!J2:J100000,"64??") -> 0 | BD10: =SUMIFS('Accounting Data'!C2:C100000,'Accounting Data'!E2:E100000,"9??",'Accounting Data'!H2:H100000,"7??",'Accounting Data'!I2:I100000,"1???",'Accounting Data'!J2:J100000,"65??")+SUMIFS('Accounting Data'!C2:C100000,'Accounting Data'!E2:E100000,"9??",'Accounting Data'!H2:H100000,"8??",'Accounting Data'!I2:I100000,"1???",'Accounting Data'!J2:J100000,"65??")+SUMIFS('Accounting Data'!C2:C100000,'Accounting Data'!E2:E100000,"9??",'Accounting Data'!H2:H100000,"9??",'Accounting Data'!I2:I100000,"1???",'Accounting Data'!J2:J100000,"65??") -> 0 | BF10: 1000 | BG10: =SUMIFS('Accounting Data'!C2:C100000,'Accounting Data'!I2:I100000,"1???",'Accounting Data'!J2:J100000,"66??") -> 793145 | BH10: =SUMIFS('Accounting Data'!$C$2:$C$100000,'Accounting Data'!$E$2:$E$100000,"575",'Accounting Data'!$I$2:$I$100000,"1???",'Accounting Data'!$J$2:$J$100000,"66??")+SUMIFS('Accounting Data'!$C$2:$C$100000,'Accounting Data'!$E$2:$E$100000,"8??",'Accounting Data'!$I$2:$I$100000,"1???",'Accounting Data'!$J$2:$J$100000,"66??")+SUMIFS('Accounting Data'!$C$2:$C$100000,'Accounting Data'!$E$2:$E$100000,"9??",'Accounting Data'!$I$2:$I$100000,"1???",'Accounting Data'!$J$2:$J$100000,"66??") -> 23942 | BI10: =SUMIFS('Accounting Data'!$C$2:$C$100000,'Accounting Data'!$H$2:$H$100000,"7??",'Accounting Data'!$I$2:$I$100000,"1???",'Accounting Data'!$J$2:$J$100000,"66??")+SUMIFS('Accounting Data'!$C$2:$C$100000,'Accounting Data'!$H$2:$H$100000,"8??",'Accounting Data'!$I$2:$I$100000,"1???",'Accounting Data'!$J$2:$J$100000,"66??")+SUMIFS('Accounting Data'!$C$2:$C$100000,'Accounting Data'!$H$2:$H$100000,"9??",'Accounting Data'!$I$2:$I$100000,"1???",'Accounting Data'!$J$2:$J$100000,"66??") -> 0 | BJ10: =SUMIFS('Accounting Data'!$C$2:$C$100000,'Accounting Data'!$E$2:$E$100000,"575",'Accounting Data'!$H$2:$H$100000,"7??",'Accounting Data'!$I$2:$I$100000,"1???",'Accounting Data'!$J$2:$J$100000,"66??")+SUMIFS('Accounting Data'!$C$2:$C$100000,'Accounting Data'!$E$2:$E$100000,"575",'Accounting Data'!$H$2:$H$100000,"8??",'Accounting Data'!$I$2:$I$100000,"1???",'Accounting Data'!$J$2:$J$100000,"66??")+SUMIFS('Accounting Data'!$C$2:$C$100000,'Accounting Data'!$E$2:$E$100000,"575",'Accounting Data'!$H$2:$H$100000,"9??",'Accounting Data'!$I$2:$I$100000,"1???",'Accounting Data'!$J$2:$J$100000,"66??") -> 0 | BK10: =SUMIFS('Accounting Data'!$C$2:$C$100000,'Accounting Data'!$E$2:$E$100000,"8??",'Accounting Data'!$H$2:$H$100000,"7??",'Accounting Data'!$I$2:$I$100000,"1???",'Accounting Data'!$J$2:$J$100000,"66??")+SUMIFS('Accounting Data'!$C$2:$C$100000,'Accounting Data'!$E$2:$E$100000,"8??",'Accounting Data'!$H$2:$H$100000,"8??",'Accounting Data'!$I$2:$I$100000,"1???",'Accounting Data'!$J$2:$J$100000,"66??")+SUMIFS('Accounting Data'!$C$2:$C$100000,'Accounting Data'!$E$2:$E$100000,"8??",'Accounting Data'!$H$2:$H$100000,"9??",'Accounting Data'!$I$2:$I$100000,"1???",'Accounting Data'!$J$2:$J$100000,"66??") -> 0 | BL10: =SUMIFS('Accounting Data'!$C$2:$C$100000,'Accounting Data'!$E$2:$E$100000,"9??",'Accounting Data'!$H$2:$H$100000,"7??",'Accounting Data'!$I$2:$I$100000,"1???",'Accounting Data'!$J$2:$J$100000,"66??")+SUMIFS('Accounting Data'!$C$2:$C$100000,'Accounting Data'!$E$2:$E$100000,"9??",'Accounting Data'!$H$2:$H$100000,"8??",'Accounting Data'!$I$2:$I$100000,"1???",'Accounting Data'!$J$2:$J$100000,"66??")+SUMIFS('Accounting Data'!$C$2:$C$100000,'Accounting Data'!$E$2:$E$100000,"9??",'Accounting Data'!$H$2:$H$100000,"9??",'Accounting Data'!$I$2:$I$100000,"1???",'Accounting Data'!$J$2:$J$100000,"66??") -> 0 | BN10: 1000 | BO10: =SUMIFS('Accounting Data'!C2:C100000,'Accounting Data'!I2:I100000,"1???",'Accounting Data'!J2:J100000,"67??") -> 779502 | BP10: =SUMIFS('Accounting Data'!$C$2:$C$100000,'Accounting Data'!$E$2:$E$100000,"575",'Accounting Data'!$I$2:$I$100000,"1???",'Accounting Data'!$J$2:$J$100000,"67??")+SUMIFS('Accounting Data'!$C$2:$C$100000,'Accounting Data'!$E$2:$E$100000,"8??",'Accounting Data'!$I$2:$I$100000,"1???",'Accounting Data'!$J$2:$J$100000,"67??")+SUMIFS('Accounting Data'!$C$2:$C$100000,'Accounting Data'!$E$2:$E$100000,"9??",'Accounting Data'!$I$2:$I$100000,"1???",'Accounting Data'!$J$2:$J$100000,"67??") -> 0 | BQ10: =SUMIFS('Accounting Data'!$C$2:$C$100000,'Accounting Data'!$H$2:$H$100000,"7??",'Accounting Data'!$I$2:$I$100000,"1???",'Accounting Data'!$J$2:$J$100000,"67??")+SUMIFS('Accounting Data'!$C$2:$C$100000,'Accounting Data'!$H$2:$H$100000,"8??",'Accounting Data'!$I$2:$I$100000,"1???",'Accounting Data'!$J$2:$J$100000,"67??")+SUMIFS('Accounting Data'!$C$2:$C$100000,'Accounting Data'!$H$2:$H$100000,"9??",'Accounting Data'!$I$2:$I$100000,"1???",'Accounting Data'!$J$2:$J$100000,"67??") -> 0 | BR10: =SUMIFS('Accounting Data'!$C$2:$C$100000,'Accounting Data'!$E$2:$E$100000,"575",'Accounting Data'!$H$2:$H$100000,"7??",'Accounting Data'!$I$2:$I$100000,"1???",'Accounting Data'!$J$2:$J$100000,"67??")+SUMIFS('Accounting Data'!$C$2:$C$100000,'Accounting Data'!$E$2:$E$100000,"575",'Accounting Data'!$H$2:$H$100000,"8??",'Accounting Data'!$I$2:$I$100000,"1???",'Accounting Data'!$J$2:$J$100000,"67??")+SUMIFS('Accounting Data'!$C$2:$C$100000,'Accounting Data'!$E$2:$E$100000,"575",'Accounting Data'!$H$2:$H$100000,"9??",'Accounting Data'!$I$2:$I$100000,"1???",'Accounting Data'!$J$2:$J$100000,"67??") -> 0 | BS10: =SUMIFS('Accounting Data'!$C$2:$C$100000,'Accounting Data'!$E$2:$E$100000,"8??",'Accounting Data'!$H$2:$H$100000,"7??",'Accounting Data'!$I$2:$I$100000,"1???",'Accounting Data'!$J$2:$J$100000,"67??")+SUMIFS('Accounting Data'!$C$2:$C$100000,'Accounting Data'!$E$2:$E$100000,"8??",'Accounting Data'!$H$2:$H$100000,"8??",'Accounting Data'!$I$2:$I$100000,"1???",'Accounting Data'!$J$2:$J$100000,"67??")+SUMIFS('Accounting Data'!$C$2:$C$100000,'Accounting Data'!$E$2:$E$100000,"8??",'Accounting Data'!$H$2:$H$100000,"9??",'Accounting Data'!$I$2:$I$100000,"1???",'Accounting Data'!$J$2:$J$100000,"67??") -> 0 | BT10: =SUMIFS('Accounting Data'!$C$2:$C$100000,'Accounting Data'!$E$2:$E$100000,"9??",'Accounting Data'!$H$2:$H$100000,"7??",'Accounting Data'!$I$2:$I$100000,"1???",'Accounting Data'!$J$2:$J$100000,"67??")+SUMIFS('Accounting Data'!$C$2:$C$100000,'Accounting Data'!$E$2:$E$100000,"9??",'Accounting Data'!$H$2:$H$100000,"8??",'Accounting Data'!$I$2:$I$100000,"1???",'Accounting Data'!$J$2:$J$100000,"67??")+SUMIFS('Accounting Data'!$C$2:$C$100000,'Accounting Data'!$E$2:$E$100000,"9??",'Accounting Data'!$H$2:$H$100000,"9??",'Accounting Data'!$I$2:$I$100000,"1???",'Accounting Data'!$J$2:$J$100000,"67??") -> 0 | BV10: 1000 | BW10: =SUMIFS('Accounting Data'!C2:C100000,'Accounting Data'!I2:I100000,"1???",'Accounting Data'!J2:J100000,"681?") -> 5855 | BX10: =SUMIFS('Accounting Data'!$C$2:$C$100000,'Accounting Data'!$E$2:$E$100000,"575",'Accounting Data'!$I$2:$I$100000,"1???",'Accounting Data'!$J$2:$J$100000,"681?")+SUMIFS('Accounting Data'!$C$2:$C$100000,'Accounting Data'!$E$2:$E$100000,"8??",'Accounting Data'!$I$2:$I$100000,"1???",'Accounting Data'!$J$2:$J$100000,"681?")+SUMIFS('Accounting Data'!$C$2:$C$100000,'Accounting Data'!$E$2:$E$100000,"9??",'Accounting Data'!$I$2:$I$100000,"1???",'Accounting Data'!$J$2:$J$100000,"681?") -> 0 | BY10: =SUMIFS('Accounting Data'!$C$2:$C$100000,'Accounting Data'!$H$2:$H$100000,"7??",'Accounting Data'!$I$2:$I$100000,"1???",'Accounting Data'!$J$2:$J$100000,"681?")+SUMIFS('Accounting Data'!$C$2:$C$100000,'Accounting Data'!$H$2:$H$100000,"8??",'Accounting Data'!$I$2:$I$100000,"1???",'Accounting Data'!$J$2:$J$100000,"681?")+SUMIFS('Accounting Data'!$C$2:$C$100000,'Accounting Data'!$H$2:$H$100000,"9??",'Accounting Data'!$I$2:$I$100000,"1???",'Accounting Data'!$J$2:$J$100000,"681?") -> 0 | BZ10: =SUMIFS('Accounting Data'!$C$2:$C$100000,'Accounting Data'!$E$2:$E$100000,"575",'Accounting Data'!$H$2:$H$100000,"7??",'Accounting Data'!$I$2:$I$100000,"1???",'Accounting Data'!$J$2:$J$100000,"681?")+SUMIFS('Accounting Data'!$C$2:$C$100000,'Accounting Data'!$E$2:$E$100000,"575",'Accounting Data'!$H$2:$H$100000,"8??",'Accounting Data'!$I$2:$I$100000,"1???",'Accounting Data'!$J$2:$J$100000,"681?")+SUMIFS('Accounting Data'!$C$2:$C$100000,'Accounting Data'!$E$2:$E$100000,"575",'Accounting Data'!$H$2:$H$100000,"9??",'Accounting Data'!$I$2:$I$100000,"1???",'Accounting Data'!$J$2:$J$100000,"681?") -> 0 | CA10: =SUMIFS('Accounting Data'!$C$2:$C$100000,'Accounting Data'!$E$2:$E$100000,"8??",'Accounting Data'!$H$2:$H$100000,"7??",'Accounting Data'!$I$2:$I$100000,"1???",'Accounting Data'!$J$2:$J$100000,"681?")+SUMIFS('Accounting Data'!$C$2:$C$100000,'Accounting Data'!$E$2:$E$100000,"8??",'Accounting Data'!$H$2:$H$100000,"8??",'Accounting Data'!$I$2:$I$100000,"1???",'Accounting Data'!$J$2:$J$100000,"681?")+SUMIFS('Accounting Data'!$C$2:$C$100000,'Accounting Data'!$E$2:$E$100000,"8??",'Accounting Data'!$H$2:$H$100000,"9??",'Accounting Data'!$I$2:$I$100000,"1???",'Accounting Data'!$J$2:$J$100000,"681?") -> 0 | CB10: =SUMIFS('Accounting Data'!$C$2:$C$100000,'Accounting Data'!$E$2:$E$100000,"9??",'Accounting Data'!$H$2:$H$100000,"7??",'Accounting Data'!$I$2:$I$100000,"1???",'Accounting Data'!$J$2:$J$100000,"681?")+SUMIFS('Accounting Data'!$C$2:$C$100000,'Accounting Data'!$E$2:$E$100000,"9??",'Accounting Data'!$H$2:$H$100000,"8??",'Accounting Data'!$I$2:$I$100000,"1???",'Accounting Data'!$J$2:$J$100000,"681?")+SUMIFS('Accounting Data'!$C$2:$C$100000,'Accounting Data'!$E$2:$E$100000,"9??",'Accounting Data'!$H$2:$H$100000,"9??",'Accounting Data'!$I$2:$I$100000,"1???",'Accounting Data'!$J$2:$J$100000,"681?") -> 0 | CT10: 1000 | CU10: =SUM(SUMIFS('Accounting Data'!C2:C100000,'Accounting Data'!I2:I100000,"1???",'Accounting Data'!J2:J100000,{"689?","6885"})) -> 284431 | CV10: =SUM(SUMIFS('Accounting Data'!$C$2:$C$100000,'Accounting Data'!$E$2:$E$100000,"575",'Accounting Data'!$I$2:$I$100000,"1???",'Accounting Data'!$J$2:$J$100000,{"689?","6885"}))+SUM(SUMIFS('Accounting Data'!$C$2:$C$100000,'Accounting Data'!$E$2:$E$100000,"8??",'Accounting Data'!$I$2:$I$100000,"1???",'Accounting Data'!$J$2:$J$100000,{"689?","6885"}))+SUM(SUMIFS('Accounting Data'!$C$2:$C$100000,'Accounting Data'!$E$2:$E$100000,"9??",'Accounting Data'!$I$2:$I$100000,"1???",'Accounting Data'!$J$2:$J$100000,{"689?","6885"})) -> 800 | CW10: =SUM(SUMIFS('Accounting Data'!$C$2:$C$100000,'Accounting Data'!$H$2:$H$100000,"7??",'Accounting Data'!$I$2:$I$100000,"1???",'Accounting Data'!$J$2:$J$100000,{"689?","6885"}))+SUM(SUMIFS('Accounting Data'!$C$2:$C$100000,'Accounting Data'!$H$2:$H$100000,"8??",'Accounting Data'!$I$2:$I$100000,"1???",'Accounting Data'!$J$2:$J$100000,{"689?","6885"}))+SUM(SUMIFS('Accounting Data'!$C$2:$C$100000,'Accounting Data'!$H$2:$H$100000,"9??",'Accounting Data'!$I$2:$I$100000,"1???",'Accounting Data'!$J$2:$J$100000,{"689?","6885"})) -> 0 | CX10: =SUM(SUMIFS('Accounting Data'!$C$2:$C$100000,'Accounting Data'!$E$2:$E$100000,"575",'Accounting Data'!$H$2:$H$100000,"7??",'Accounting Data'!$I$2:$I$100000,"1???",'Accounting Data'!$J$2:$J$100000,{"689?","6885"}))+SUM(SUMIFS('Accounting Data'!$C$2:$C$100000,'Accounting Data'!$E$2:$E$100000,"575",'Accounting Data'!$H$2:$H$100000,"8??",'Accounting Data'!$I$2:$I$100000,"1???",'Accounting Data'!$J$2:$J$100000,{"689?","6885"}))+SUM(SUMIFS('Accounting Data'!$C$2:$C$100000,'Accounting Data'!$E$2:$E$100000,"575",'Accounting Data'!$H$2:$H$100000,"9??",'Accounting Data'!$I$2:$I$100000,"1???",'Accounting Data'!$J$2:$J$100000,{"689?","6885"})) -> 0 | CY10: =SUM(SUMIFS('Accounting Data'!$C$2:$C$100000,'Accounting Data'!$E$2:$E$100000,"8??",'Accounting Data'!$H$2:$H$100000,"7??",'Accounting Data'!$I$2:$I$100000,"1???",'Accounting Data'!$J$2:$J$100000,{"689?","6885"}))+SUM(SUMIFS('Accounting Data'!$C$2:$C$100000,'Accounting Data'!$E$2:$E$100000,"8??",'Accounting Data'!$H$2:$H$100000,"8??",'Accounting Data'!$I$2:$I$100000,"1???",'Accounting Data'!$J$2:$J$100000,{"689?","6885"}))+SUM(SUMIFS('Accounting Data'!$C$2:$C$100000,'Accounting Data'!$E$2:$E$100000,"8??",'Accounting Data'!$H$2:$H$100000,"9??",'Accounting Data'!$I$2:$I$100000,"1???",'Accounting Data'!$J$2:$J$100000,{"689?","6885"})) -> 0 | CZ10: =SUM(SUMIFS('Accounting Data'!$C$2:$C$100000,'Accounting Data'!$E$2:$E$100000,"9??",'Accounting Data'!$H$2:$H$100000,"7??",'Accounting Data'!$I$2:$I$100000,"1???",'Accounting Data'!$J$2:$J$100000,{"689?","6885"}))+SUM(SUMIFS('Accounting Data'!$C$2:$C$100000,'Accounting Data'!$E$2:$E$100000,"9??",'Accounting Data'!$H$2:$H$100000,"8??",'Accounting Data'!$I$2:$I$100000,"1???",'Accounting Data'!$J$2:$J$100000,{"689?","6885"}))+SUM(SUMIFS('Accounting Data'!$C$2:$C$100000,'Accounting Data'!$E$2:$E$100000,"9??",'Accounting Data'!$H$2:$H$100000,"9??",'Accounting Data'!$I$2:$I$100000,"1???",'Accounting Data'!$J$2:$J$100000,{"689?","6885"})) -> 0 | DB10: 1000 | DC10: =SUMIFS('Accounting Data'!$C$2:$C$100000,'Accounting Data'!$H$2:$H$100000,"7??",'Accounting Data'!$I$2:$I$100000,"1???",'Accounting Data'!$J$2:$J$100000,"6???")+SUMIFS('Accounting Data'!$C$2:$C$100000,'Accounting Data'!$H$2:$H$100000,"8??",'Accounting Data'!$I$2:$I$100000,"1???",'Accounting Data'!$J$2:$J$100000,"6???")+SUMIFS('Accounting Data'!$C$2:$C$100000,'Accounting Data'!$H$2:$H$100000,"9??",'Accounting Data'!$I$2:$I$100000,"1???",'Accounting Data'!$J$2:$J$100000,"6???") -> 0 | DD10: =SUMIFS('Accounting Data'!$C$2:$C$100000,'Accounting Data'!$H$2:$H$100000,"7??",'Accounting Data'!$I$2:$I$100000,"1???",'Accounting Data'!$J$2:$J$100000,"69??")+SUMIFS('Accounting Data'!$C$2:$C$100000,'Accounting Data'!$H$2:$H$100000,"8??",'Accounting Data'!$I$2:$I$100000,"1???",'Accounting Data'!$J$2:$J$100000,"69??")+SUMIFS('Accounting Data'!$C$2:$C$100000,'Accounting Data'!$H$2:$H$100000,"9??",'Accounting Data'!$I$2:$I$100000,"1???",'Accounting Data'!$J$2:$J$100000,"69??") -> 0 | DE10: =SUMIFS('Accounting Data'!$C$2:$C$100000,'Accounting Data'!$E$2:$E$100000,"575",'Accounting Data'!$H$2:$H$100000,"7??",'Accounting Data'!$I$2:$I$100000,"1???",'Accounting Data'!$J$2:$J$100000,"6???")+SUMIFS('Accounting Data'!$C$2:$C$100000,'Accounting Data'!$E$2:$E$100000,"575",'Accounting Data'!$H$2:$H$100000,"8??",'Accounting Data'!$I$2:$I$100000,"1???",'Accounting Data'!$J$2:$J$100000,"6???")+SUMIFS('Accounting Data'!$C$2:$C$100000,'Accounting Data'!$E$2:$E$100000,"575",'Accounting Data'!$H$2:$H$100000,"9??",'Accounting Data'!$I$2:$I$100000,"1???",'Accounting Data'!$J$2:$J$100000,"6???") -> 0 | DF10: =SUMIFS('Accounting Data'!$C$2:$C$100000,'Accounting Data'!$E$2:$E$100000,"8??",'Accounting Data'!$H$2:$H$100000,"7??",'Accounting Data'!$I$2:$I$100000,"1???",'Accounting Data'!$J$2:$J$100000,"6???")+SUMIFS('Accounting Data'!$C$2:$C$100000,'Accounting Data'!$E$2:$E$100000,"8??",'Accounting Data'!$H$2:$H$100000,"8??",'Accounting Data'!$I$2:$I$100000,"1???",'Accounting Data'!$J$2:$J$100000,"6???")+SUMIFS('Accounting Data'!$C$2:$C$100000,'Accounting Data'!$E$2:$E$100000,"8??",'Accounting Data'!$H$2:$H$100000,"9??",'Accounting Data'!$I$2:$I$100000,"1???",'Accounting Data'!$J$2:$J$100000,"6???")+SUMIFS('Accounting Data'!$C$2:$C$100000,'Accounting Data'!$E$2:$E$100000,"9??",'Accounting Data'!$H$2:$H$100000,"7??",'Accounting Data'!$I$2:$I$100000,"1???",'Accounting Data'!$J$2:$J$100000,"6???")+SUMIFS('Accounting Data'!$C$2:$C$100000,'Accounting Data'!$E$2:$E$100000,"9??",'Accounting Data'!$H$2:$H$100000,"8??",'Accounting Data'!$I$2:$I$100000,"1???",'Accounting Data'!$J$2:$J$100000,"6???")+SUMIFS('Accounting Data'!$C$2:$C$100000,'Accounting Data'!$E$2:$E$100000,"9??",'Accounting Data'!$H$2:$H$100000,"9??",'Accounting Data'!$I$2:$I$100000,"1???",'Accounting Data'!$J$2:$J$100000,"6???") -> 0 | DG10: =SUMIFS('Accounting Data'!$C$2:$C$100000,'Accounting Data'!$E$2:$E$100000,"575",'Accounting Data'!$H$2:$H$100000,"7??",'Accounting Data'!$I$2:$I$100000,"1???",'Accounting Data'!$J$2:$J$100000,"69??")+SUMIFS('Accounting Data'!$C$2:$C$100000,'Accounting Data'!$E$2:$E$100000,"575",'Accounting Data'!$H$2:$H$100000,"8??",'Accounting Data'!$I$2:$I$100000,"1???",'Accounting Data'!$J$2:$J$100000,"69??")+SUMIFS('Accounting Data'!$C$2:$C$100000,'Accounting Data'!$E$2:$E$100000,"575",'Accounting Data'!$H$2:$H$100000,"9??",'Accounting Data'!$I$2:$I$100000,"1???",'Accounting Data'!$J$2:$J$100000,"69??") -> 0 | DH10: =SUMIFS('Accounting Data'!$C$2:$C$100000,'Accounting Data'!$E$2:$E$100000,"8??",'Accounting Data'!$H$2:$H$100000,"7??",'Accounting Data'!$I$2:$I$100000,"1???",'Accounting Data'!$J$2:$J$100000,"69??")+SUMIFS('Accounting Data'!$C$2:$C$100000,'Accounting Data'!$E$2:$E$100000,"8??",'Accounting Data'!$H$2:$H$100000,"8??",'Accounting Data'!$I$2:$I$100000,"1???",'Accounting Data'!$J$2:$J$100000,"69??")+SUMIFS('Accounting Data'!$C$2:$C$100000,'Accounting Data'!$E$2:$E$100000,"8??",'Accounting Data'!$H$2:$H$100000,"9??",'Accounting Data'!$I$2:$I$100000,"1???",'Accounting Data'!$J$2:$J$100000,"69??")+SUMIFS('Accounting Data'!$C$2:$C$100000,'Accounting Data'!$E$2:$E$100000,"9??",'Accounting Data'!$H$2:$H$100000,"7??",'Accounting Data'!$I$2:$I$100000,"1???",'Accounting Data'!$J$2:$J$100000,"69??")+SUMIFS('Accounting Data'!$C$2:$C$100000,'Accounting Data'!$E$2:$E$100000,"9??",'Accounting Data'!$H$2:$H$100000,"8??",'Accounting Data'!$I$2:$I$100000,"1???",'Accounting Data'!$J$2:$J$100000,"69??")+SUMIFS('Accounting Data'!$C$2:$C$100000,'Accounting Data'!$E$2:$E$100000,"9??",'Accounting Data'!$H$2:$H$100000,"9??",'Accounting Data'!$I$2:$I$100000,"1???",'Accounting Data'!$J$2:$J$100000,"69??") -> 0
A11: 2000 Support services | S11: Total food service expenses minus commodities | CD11: Object 6820
